Workbook

Sheet Masque de saisie
B2: FICHE DE SUIVI D'AUDIT | E2: =TODAY() -> 2016-05-20
B4: PREVISIONNEL:
B5: Libellé de l'audit: | D5: CPAM FLANDRES
B7: Type d'audit: | D7: Structure
B9: Nature de l'audit: | D9: Suivi
B11: Organisme: | D11: CPAM Flandres-Dunkerque-Armentières
B13: PNA: | D13: 2016
B15: Période: | D15: 1er semestre
B17: Responsable de mission: | D17: Jacqueline Perez
B19: Auditeurs: | D19: Alexandre LE CORRE
D20: Joel MOSSARD
D21: Oliviana PIAZZA
B24: Prestataire:
B26: REALISATION DE L'AUDIT | C26: Prévisionnel | D26: Réalisé
B27: Commande du Diagnostic préalable: | C27: =IF($C$32="","",$C$32-135*(($C$32-$C$44)/135)) -> 2016-02-01 | E27: =IF(D27="","FAUX","VRAI") -> FAUX
B28: Formulation du bon de commande: | C28: =IF($C$32="","",$C$32-105*(($C$32-$C$44)/135)) -> 2016-03-02 | E28: =IF(D28="","FAUX","VRAI") -> FAUX
B29: Remise du rapport provisoire: | C29: =IF($C$32="","",$C$32-45*(($C$32-$C$44)/135)) -> 2016-05-01 | D29: 29/04/2016 | E29: VRAI
B30: Validation Interne: | C30: =IF($C$32="","",$C$32-30*(($C$32-$C$44)/135)) -> 2016-05-16 | E30: FAUX
B31: Phase contradictoire: | C31: =IF($C$32="","",$C$32-15*(($C$32-$C$44)/135)) -> 2016-05-31 | E31: FAUX
B32: Rapport définitif: | C32: 15/06/2016 | E32: FAUX
B33: Diffusion à l'organisme: | C33: =IF(C27="","",C32+15) -> 2016-06-30 | E33: FAUX
B34: Séminaire de restitution: | C34: =IF(C27="","",C33+15) -> 2016-07-15 | E34: FAUX
B35: Projet de plan d'action: | E35: FAUX
B36: Plan d'action validé: | C36: =IF(C27="","",C35+30) -> 1900-01-30 | E36: FAUX
B38: SUIVI DES RECOMMANDATIONS:
B39: Suivi SEM1: | C39: =IF(C27="","",C36+180) -> 1900-07-28 | E39: =IF(D39="","FAUX","VRAI") -> FAUX
B40: Suivi SEM2: | C40: =IF(C27="","",C39+180) -> 1901-01-24 | E40: FAUX
B41: Suivi SEM3: | C41: =IF(C27="","",C40+180) -> 1901-07-23 | E41: FAUX
B42: Suivi SEM4: | C42: =IF(C27="","",C41+180) -> 1902-01-19 | E42: FAUX
C44: 01/02/2016
B45: OBSERVATIONS:

Sheet Recap
A1: Descriptif | L1: Niveau d'avancement | AP1: Suivi des recommandations | CL1: Commentaires et Observations
A2: Dénomination de l'audit | B2: Type d'audit | C2: Nature de l'audit | D2: Organisme audité | E2: PNA | F2: Période | G2: Prestataire | H2: Directeurs de Mission | I2: Auditeurs | J2: Date de début de mission | K2: Date de fin de mission | L2: Analyse préalable | O2: Formulation BdC | R2: Remise du rapport provisoire | U2: Validation Interne | X2: Contradictoire | AA2: Rapport définitif | AD2: Diffusion | AG2: Seminaire de restitution | AJ2: Projet du plan d'action | AM2: Validation du plan | AP2: Suivi des reco - Semestre 1 | AS2: Suivi des reco - Semestre 2 | AV2: Suivi des reco - Semestre 3 | AY2: Suivi des reco - Semestre 4
L3: Prévisionnel | M3: Réel | N3: Ecart | O3: Prévisionnel | P3: Réel | Q3: Ecart | R3: Prévisionnel | S3: Réel | T3: Ecart | U3: Prévisionnel | V3: Réel | W3: Ecart | X3: Prévisionnel | Y3: Réel | Z3: Ecart | AA3: Prévisionnel | AB3: Réel | AC3: Ecart | AD3: Prévisionnel | AE3: Réel | AF3: Ecart | AG3: Prévisionnel | AH3: Réel | AI3: Ecart | AJ3: Prévisionnel | AK3: Réel | AL3: Ecart | AM3: Prévisionnel | AN3: Réel | AO3: Ecart | AP3: Prévisionnel | AQ3: Réel | AR3: Ecart | AS3: Prévisionnel | AT3: Réel | AU3: Ecart | AV3: Prévisionnel | AW3: Réel | AX3: Ecart | AY3: Prévisionnel | AZ3: Réel | BA3: Ecart
A4: Dénomination de l'audit | B4: Type d'audit | C4: Nature de l'audit | D4: Organisme audité | E4: PNA | F4: Période | G4: Prestataire | H4: Directeurs de Mission | I4: Auditeurs | J4: Date de début de mission | K4: Date de fin de mission | L4: Prévisionnel | M4: Réel | N4: Ecart | O4: Prévisionnel2 | P4: Réel2 | Q4: Ecart2 | R4: Ecart23 | S4: Ecart22 | T4: Ecart3 | U4: Remise du rapport provisoire | V4: Colonne4 | W4: Colonne3 | X4: Contradictoire | Y4: Colonne6 | Z4: Colonne5 | AA4: Rapport définitif | AB4: Colonne8 | AC4: Colonne7 | AD4: Diffusion | AE4: Colonne10 | AF4: Colonne9 | AG4: Seminaire de restitution | AH4: Colonne12 | AI4: Colonne11 | AJ4: Projet du plan d'action | AK4: Colonne14 | AL4: Colonne13 | AM4: Validation du plan | AN4: Colonne16 | AO4: Colonne15 | AP4: Suivi des reco Semestre 1 | AQ4: Suivi des reco Semestre 13 | AR4: Suivi des reco Semestre 12 | AS4: Suivi des reco Semestre 2 | AT4: Suivi des reco Semestre 23 | AU4: Suivi des reco Semestre 22 | AV4: Suivi des reco Semestre 3 | AW4: Suivi des reco Semestre 33 | AX4: Suivi des reco Semestre 32 | AY4: Suivi des reco Semestre 4 | AZ4: Suivi des reco Semestre 42 | BA4: Suivi des reco Semestre 5 | BB4: N.SEMAINE | BC4: auditeur1 | BD4: auditeur2 | BE4: auditeur3 | BF4: auditeur4 | BG4: AP | BH4: BDC | BI4: Fin terrain | BJ4: RP | BK4: C | BL4: RD | BM4: Diff | BN4: SEM | BO4: PPA | BP4: VP | BQ4: Colonne1 | BR4: Junior (<3) | BS4: Senior (3<5) | BT4: Manager (>5) | BU4: Nombre de défauts | BV4: M1 | BW4: M2 | BX4: M3 | BY4: M4 | BZ4: M5 | CA4: M6 | CB4: M7 | CC4: M8 | CD4: M9 | CE4: M10 | CF4: M11 | CG4: hebergement | CH4: nbj | CI4: nbpersonne | CJ4: debut | CK4: fin | CL4: Observation | CM4: AP2 | CN4: BDC3 | CO4: R.PROV | CP4: VI | CQ4: C6 | CR4: RD7 | CS4: Diff8 | CT4: SEM9 | CU4: PPA10 | CV4: VP11 | CW4: VP12 | CX4: VP13 | CY4: VP14 | CZ4: VP15
A5: a | B5: a | C5: a | D5: a | E5: a | F5: a | G5: a | H5: a | I5: a | J5: 2012-03-01 | K5: 2012-07-01 | L5: =Tableau5[Date de début de mission] -> 2012-03-01 | M5: 2012-03-03 | N5: =IF(Tableau5[[#This Row],[Réel]]="","",Tableau5[[#This Row],[Réel]]-Tableau5[[#This Row],[Prévisionnel]]) -> 2 | O5: =ROUND(Tableau5[Rapport définitif]-105*((Tableau5[Rapport définitif]-Tableau5[Prévisionnel])/135),0) -> 2012-03-28 | P5: 2012-03-24 | Q5: =IF(Tableau5[[#This Row],[Réel2]]="","",Tableau5[[#This Row],[Réel2]]-Tableau5[[#This Row],[Prévisionnel2]]) -> -4 | R5: =ROUND(Tableau5[Rapport définitif]-45*((Tableau5[Rapport définitif]-Tableau5[Prévisionnel])/135),0) -> 2012-05-21 | S5: 2012-05-23 | T5: =IF(Tableau5[[#This Row],[Ecart22]]="","",Tableau5[[#This Row],[Ecart22]]-Tableau5[[#This Row],[Ecart23]]) -> 2 | U5: =ROUND(Tableau5[Rapport définitif]-30*((Tableau5[Rapport définitif]-Tableau5[Prévisionnel])/135),0) -> 2012-06-04 | V5: 2012-06-09 | W5: =IF(Tableau5[[#This Row],[Colonne4]]="","",Tableau5[[#This Row],[Colonne4]]-Tableau5[[#This Row],[Remise du rapport provisoire]]) -> 5 | X5: =ROUND(Tableau5[Rapport définitif]-15*((Tableau5[Rapport définitif]-Tableau5[Prévisionnel])/135),0) -> 2012-06-17 | Y5: 2012-06-14 | Z5: =IF(Tableau5[[#This Row],[Colonne6]]="","",Tableau5[[#This Row],[Colonne6]]-Tableau5[[#This Row],[Contradictoire]]) -> -3 | AA5: =Tableau5[Date de fin de mission] -> 2012-07-01 | AB5: 2012-07-10 | AC5: =IF(Tableau5[[#This Row],[Colonne8]]="","",Tableau5[[#This Row],[Colonne8]]-Tableau5[[#This Row],[Rapport définitif]]) -> 9 | AD5: =Tableau5[Rapport définitif]+15 -> 2012-07-16 | AE5: 2012-07-16 | AF5: =IF(Tableau5[[#This Row],[Colonne10]]="","",Tableau5[[#This Row],[Colonne10]]-Tableau5[[#This Row],[Diffusion]]) -> 0 | AG5: =Tableau5[Diffusion]+15 -> 2012-07-31 | AH5: 2012-07-31 | AI5: =IF(Tableau5[[#This Row],[Colonne12]]="","",Tableau5[[#This Row],[Colonne12]]-Tableau5[[#This Row],[Seminaire de restitution]]) -> 0 | AJ5: =Tableau5[Seminaire de restitution]+60 -> 2012-09-29 | AK5: 2012-09-29 | AL5: =IF(Tableau5[[#This Row],[Colonne14]]="","",Tableau5[[#This Row],[Colonne14]]-Tableau5[[#This Row],[Projet du plan d''action]]) -> 0 | AM5: =Tableau5[Projet du plan d''action]+30 -> 2012-10-29 | AN5: 2012-10-29 | AO5: =IF(Tableau5[[#This Row],[Colonne16]]="","",Tableau5[[#This Row],[Colonne16]]-Tableau5[[#This Row],[Validation du plan]]) -> 0 | AP5: =Tableau5[Validation du plan]+180 -> 2013-04-27 | AQ5: 2013-04-27 | AR5: =IF(Tableau5[[#This Row],[Suivi des reco Semestre 13]]="","",Tableau5[[#This Row],[Suivi des reco Semestre 13]]-Tableau5[[#This Row],[Suivi des reco Semestre 1]]) -> 0 | AS5: =Tableau5[Suivi des reco Semestre 1]+180 -> 2013-10-24 | AT5: 2013-10-24 | AU5: =IF(Tableau5[[#This Row],[Suivi des reco Semestre 23]]="","",Tableau5[[#This Row],[Suivi des reco Semestre 23]]-Tableau5[[#This Row],[Suivi des reco Semestre 2]]) -> 0 | AV5: =Tableau5[Suivi des reco Semestre 2]+180 -> 2014-04-22 | AW5: 2014-04-22 | AX5: =IF(Tableau5[[#This Row],[Suivi des reco Semestre 33]]="","",Tableau5[[#This Row],[Suivi des reco Semestre 33]]-Tableau5[[#This Row],[Suivi des reco Semestre 3]]) -> 0 | AY5: =Tableau5[Suivi des reco Semestre 3]+180 -> 2014-10-19 | AZ5: 2014-10-19 | BA5: =IF(Tableau5[[#This Row],[Suivi des reco Semestre 42]]="","",Tableau5[[#This Row],[Suivi des reco Semestre 42]]-Tableau5[[#This Row],[Suivi des reco Semestre 4]]) -> 0 | BB5: =WEEKNUM(Tableau5[[#This Row],[Rapport définitif]]) -> 27 | BG5: =WEEKNUM(Tableau5[[#This Row],[Réel]]) -> 9 | BH5: =WEEKNUM(Tableau5[[#This Row],[Réel2]]) -> 12 | BI5: =WEEKNUM(Tableau5[[#This Row],[Ecart22]]) -> 21 | BJ5: =WEEKNUM(Tableau5[[#This Row],[Colonne4]]) -> 23 | BK5: =WEEKNUM(Tableau5[[#This Row],[Colonne6]]) -> 24 | BL5: =WEEKNUM(Tableau5[[#This Row],[Colonne8]]) -> 28 | BM5: =WEEKNUM(Tableau5[[#This Row],[Colonne10]]) -> 29 | BN5: =WEEKNUM(Tableau5[[#This Row],[Colonne12]]) -> 31 | BO5: =WEEKNUM(Tableau5[[#This Row],[Colonne14]]) -> 39 | BP5: =WEEKNUM(Tableau5[[#This Row],[Colonne16]]) -> 44 | BQ5: =IF(Tableau5[[#This Row],[Type d''audit]]="thématique",CONCATENATE(Tableau5[[#This Row],[Type d''audit]]," - ",Tableau5[[#This Row],[Dénomination de l''audit]]," - ",Tableau5[PNA]),CONCATENATE(Tableau5[[#This Row],[Type d''audit]]," - ",Tableau5[[#This Row],[Organisme audité]]," - ",Tableau5[PNA])) -> a - a - a | BR5: a | BS5: a | BT5: a | BU5: a | BV5: a | BW5: a | BX5: a | BY5: a | BZ5: a | CA5: a | CB5: a | CC5: a | CD5: a | CE5: a | CF5: a | CG5: a | CH5: a | CI5: a | CJ5: =Tableau5[[#This Row],[Date de début de mission]] -> 2012-03-01 | CK5: =Tableau5[[#This Row],[Date de fin de mission]] -> 2012-07-01 | CM5: =WEEKNUM(Tableau5[[#This Row],[Prévisionnel]]) -> 9 | CN5: =WEEKNUM(Tableau5[[#This Row],[Prévisionnel2]]) -> 13 | CO5: =WEEKNUM(Tableau5[[#This Row],[Ecart23]]) -> 21 | CP5: =WEEKNUM(Tableau5[[#This Row],[Remise du rapport provisoire]]) -> 23 | CQ5: =WEEKNUM(Tableau5[[#This Row],[Contradictoire]]) -> 25 | CR5: =WEEKNUM(Tableau5[[#This Row],[Rapport définitif]]) -> 27 | CS5: =WEEKNUM(Tableau5[[#This Row],[Diffusion]]) -> 29 | CT5: =WEEKNUM(Tableau5[[#This Row],[Seminaire de restitution]]) -> 31 | CU5: =WEEKNUM(Tableau5[[#This Row],[Projet du plan d''action]]) -> 39 | CV5: =WEEKNUM(Tableau5[[#This Row],[Validation du plan]]) -> 44 | CW5: =IF(Tableau5[[#This Row],[auditeur1]]="","",Tableau5[[#This Row],[auditeur1]]) ->  | CX5: =IF(Tableau5[[#This Row],[auditeur2]]="","",Tableau5[[#This Row],[auditeur2]]) ->  | CY5: =IF(Tableau5[[#This Row],[auditeur3]]="","",Tableau5[[#This Row],[auditeur3]]) ->  | CZ5: =IF(Tableau5[[#This Row],[auditeur4]]="","",Tableau5[[#This Row],[auditeur4]]) -> 
A6: Audit Côte d'Or | B6: Structure | C6: Initial | D6: CPAM Côte-d'Or | E6: 2016 | F6: 1er semestre | G6: Mazars | H6: Externe | I6: Corinne GALODE Joel MOSSARD Oliviana PIAZZA | J6: 14/03/2016 | K6: 27/07/2016 | L6: =Tableau5[Date de début de mission] -> 14/03/2016 | M6: 14/03/2016 | N6: =IF(Tableau5[[#This Row],[Réel]]="","",Tableau5[[#This Row],[Réel]]-Tableau5[[#This Row],[Prévisionnel]]) -> 0 | O6: =ROUND(Tableau5[Rapport définitif]-105*((Tableau5[Rapport définitif]-Tableau5[Prévisionnel])/135),0) -> 2016-04-13 | P6: 01/04/2016 | Q6: =IF(Tableau5[[#This Row],[Réel2]]="","",Tableau5[[#This Row],[Réel2]]-Tableau5[[#This Row],[Prévisionnel2]]) -> -12 | R6: =ROUND(Tableau5[Rapport définitif]-45*((Tableau5[Rapport définitif]-Tableau5[Prévisionnel])/135),0) -> 2016-06-12 | S6: 02/05/2016 | T6: =IF(Tableau5[[#This Row],[Ecart22]]="","",Tableau5[[#This Row],[Ecart22]]-Tableau5[[#This Row],[Ecart23]]) -> -41 | U6: =ROUND(Tableau5[Rapport définitif]-30*((Tableau5[Rapport définitif]-Tableau5[Prévisionnel])/135),0) -> 2016-06-27 | V6: 11/05/2016 | W6: =IF(Tableau5[[#This Row],[Colonne4]]="","",Tableau5[[#This Row],[Colonne4]]-Tableau5[[#This Row],[Remise du rapport provisoire]]) -> -47 | X6: =ROUND(Tableau5[Rapport définitif]-15*((Tableau5[Rapport définitif]-Tableau5[Prévisionnel])/135),0) -> 2016-07-12 | Y6: 13/05/2016 | Z6: =IF(Tableau5[[#This Row],[Colonne6]]="","",Tableau5[[#This Row],[Colonne6]]-Tableau5[[#This Row],[Contradictoire]]) -> -60 | AA6: =Tableau5[Date de fin de mission] -> 27/07/2016 | AC6: =IF(Tableau5[[#This Row],[Colonne8]]="","",Tableau5[[#This Row],[Colonne8]]-Tableau5[[#This Row],[Rapport définitif]]) ->  | AD6: =Tableau5[Rapport définitif]+15 -> 2016-08-11 | AF6: =IF(Tableau5[[#This Row],[Colonne10]]="","",Tableau5[[#This Row],[Colonne10]]-Tableau5[[#This Row],[Diffusion]]) ->  | AG6: =Tableau5[Diffusion]+15 -> 2016-08-26 | AI6: =IF(Tableau5[[#This Row],[Colonne12]]="","",Tableau5[[#This Row],[Colonne12]]-Tableau5[[#This Row],[Seminaire de restitution]]) ->  | AJ6: =Tableau5[Seminaire de restitution]+60 -> 2016-10-25 | AL6: =IF(Tableau5[[#This Row],[Colonne14]]="","",Tableau5[[#This Row],[Colonne14]]-Tableau5[[#This Row],[Projet du plan d''action]]) ->  | AM6: =Tableau5[Projet du plan d''action]+30 -> 2016-11-24 | AO6: =IF(Tableau5[[#This Row],[Colonne16]]="","",Tableau5[[#This Row],[Colonne16]]-Tableau5[[#This Row],[Validation du plan]]) ->  | AP6: =Tableau5[Validation du plan]+180 -> 2017-05-23 | AR6: =IF(Tableau5[[#This Row],[Suivi des reco Semestre 13]]="","",Tableau5[[#This Row],[Suivi des reco Semestre 13]]-Tableau5[[#This Row],[Suivi des reco Semestre 1]]) ->  | AS6: =Tableau5[Suivi des reco Semestre 1]+180 -> 2017-11-19 | AU6: =IF(Tableau5[[#This Row],[Suivi des reco Semestre 23]]="","",Tableau5[[#This Row],[Suivi des reco Semestre 23]]-Tableau5[[#This Row],[Suivi des reco Semestre 2]]) ->  | AV6: =Tableau5[Suivi des reco Semestre 2]+180 -> 2018-05-18 | AX6: =IF(Tableau5[[#This Row],[Suivi des reco Semestre 33]]="","",Tableau5[[#This Row],[Suivi des reco Semestre 33]]-Tableau5[[#This Row],[Suivi des reco Semestre 3]]) ->  | AY6: =Tableau5[Suivi des reco Semestre 3]+180 -> 2018-11-14 | BA6: =IF(Tableau5[[#This Row],[Suivi des reco Semestre 42]]="","",Tableau5[[#This Row],[Suivi des reco Semestre 42]]-Tableau5[[#This Row],[Suivi des reco Semestre 4]]) ->  | BB6: =WEEKNUM(AA6) -> 31 | BC6: Corinne GALODE | BD6: Joel MOSSARD | BE6: Oliviana PIAZZA | BG6: =WEEKNUM(Tableau5[[#This Row],[Réel]]) -> 12 | BH6: =WEEKNUM(Tableau5[[#This Row],[Réel2]]) -> 14 | BI6: =WEEKNUM(Tableau5[[#This Row],[Ecart22]]) -> 19 | BJ6: =WEEKNUM(Tableau5[[#This Row],[Colonne4]]) -> 20 | BK6: =WEEKNUM(Tableau5[[#This Row],[Colonne6]]) -> 20 | BL6: =WEEKNUM(Tableau5[[#This Row],[Colonne8]]) ->  | BM6: =WEEKNUM(Tableau5[[#This Row],[Colonne10]]) ->  | BN6: =WEEKNUM(Tableau5[[#This Row],[Colonne12]]) ->  | BO6: =WEEKNUM(Tableau5[[#This Row],[Colonne14]]) ->  | BP6: =WEEKNUM(Tableau5[[#This Row],[Colonne16]]) ->  | BQ6: =IF(Tableau5[[#This Row],[Type d''audit]]="thématique",CONCATENATE(Tableau5[[#This Row],[Type d''audit]]," - ",Tableau5[[#This Row],[Dénomination de l''audit]]," - ",Tableau5[PNA]),CONCATENATE(Tableau5[[#This Row],[Type d''audit]]," - ",Tableau5[[#This Row],[Organisme audité]]," - ",Tableau5[PNA])) -> Structure - CPAM Côte-d'Or - 2016 | CJ6: =Tableau5[[#This Row],[Date de début de mission]] -> 14/03/2016 | CK6: =Tableau5[[#This Row],[Date de fin de mission]] -> 27/07/2016 | CM6: =WEEKNUM(Tableau5[[#This Row],[Prévisionnel]]) -> 12 | CN6: =WEEKNUM(Tableau5[[#This Row],[Prévisionnel2]]) -> 16 | CO6: =WEEKNUM(Tableau5[[#This Row],[Ecart23]]) -> 25 | CP6: =WEEKNUM(Tableau5[[#This Row],[Remise du rapport provisoire]]) -> 27 | CQ6: =WEEKNUM(Tableau5[[#This Row],[Contradictoire]]) -> 29 | CR6: =WEEKNUM(Tableau5[[#This Row],[Rapport définitif]]) -> 31 | CS6: =WEEKNUM(Tableau5[[#This Row],[Diffusion]]) -> 33 | CT6: =WEEKNUM(Tableau5[[#This Row],[Seminaire de restitution]]) -> 35 | CU6: =WEEKNUM(Tableau5[[#This Row],[Projet du plan d''action]]) -> 44 | CV6: =WEEKNUM(Tableau5[[#This Row],[Validation du plan]]) -> 48 | CW6: =IF(Tableau5[[#This Row],[auditeur1]]="","",Tableau5[[#This Row],[auditeur1]]) -> Corinne GALODE | CX6: =IF(Tableau5[[#This Row],[auditeur2]]="","",Tableau5[[#This Row],[auditeur2]]) -> Joel MOSSARD | CY6: =IF(Tableau5[[#This Row],[auditeur3]]="","",Tableau5[[#This Row],[auditeur3]]) -> Oliviana PIAZZA | CZ6: =IF(Tableau5[[#This Row],[auditeur4]]="","",Tableau5[[#This Row],[auditeur4]]) -> 
A7: CPAM FLANDRES | B7: Structure | C7: Suivi | D7: CPAM Flandres-Dunkerque-Armentières | E7: 2016 | F7: 1er semestre | H7: Jacqueline Perez | I7: Alexandre LE CORRE Joel MOSSARD Oliviana PIAZZA | J7: 01/02/2016 | K7: 15/06/2016 | L7: =Tableau5[Date de début de mission] -> 01/02/2016 | N7: =IF(Tableau5[[#This Row],[Réel]]="","",Tableau5[[#This Row],[Réel]]-Tableau5[[#This Row],[Prévisionnel]]) ->  | O7: =ROUND(Tableau5[Rapport définitif]-105*((Tableau5[Rapport définitif]-Tableau5[Prévisionnel])/135),0) -> 2016-03-02 | Q7: =IF(Tableau5[[#This Row],[Réel2]]="","",Tableau5[[#This Row],[Réel2]]-Tableau5[[#This Row],[Prévisionnel2]]) ->  | R7: =ROUND(Tableau5[Rapport définitif]-45*((Tableau5[Rapport définitif]-Tableau5[Prévisionnel])/135),0) -> 2016-05-01 | S7: 29/04/2016 | T7: =IF(Tableau5[[#This Row],[Ecart22]]="","",Tableau5[[#This Row],[Ecart22]]-Tableau5[[#This Row],[Ecart23]]) -> -2 | U7: =ROUND(Tableau5[Rapport définitif]-30*((Tableau5[Rapport définitif]-Tableau5[Prévisionnel])/135),0) -> 2016-05-16 | W7: =IF(Tableau5[[#This Row],[Colonne4]]="","",Tableau5[[#This Row],[Colonne4]]-Tableau5[[#This Row],[Remise du rapport provisoire]]) ->  | X7: =ROUND(Tableau5[Rapport définitif]-15*((Tableau5[Rapport définitif]-Tableau5[Prévisionnel])/135),0) -> 2016-05-31 | Z7: =IF(Tableau5[[#This Row],[Colonne6]]="","",Tableau5[[#This Row],[Colonne6]]-Tableau5[[#This Row],[Contradictoire]]) ->  | AA7: =Tableau5[Date de fin de mission] -> 15/06/2016 | AC7: =IF(Tableau5[[#This Row],[Colonne8]]="","",Tableau5[[#This Row],[Colonne8]]-Tableau5[[#This Row],[Rapport définitif]]) ->  | AD7: =Tableau5[Rapport définitif]+15 -> 2016-06-30 | AF7: =IF(Tableau5[[#This Row],[Colonne10]]="","",Tableau5[[#This Row],[Colonne10]]-Tableau5[[#This Row],[Diffusion]]) ->  | AG7: =Tableau5[Diffusion]+15 -> 2016-07-15 | AI7: =IF(Tableau5[[#This Row],[Colonne12]]="","",Tableau5[[#This Row],[Colonne12]]-Tableau5[[#This Row],[Seminaire de restitution]]) ->  | AJ7: =Tableau5[Seminaire de restitution]+60 -> 2016-09-13 | AL7: =IF(Tableau5[[#This Row],[Colonne14]]="","",Tableau5[[#This Row],[Colonne14]]-Tableau5[[#This Row],[Projet du plan d''action]]) ->  | AM7: =Tableau5[Projet du plan d''action]+30 -> 2016-10-13 | AO7: =IF(Tableau5[[#This Row],[Colonne16]]="","",Tableau5[[#This Row],[Colonne16]]-Tableau5[[#This Row],[Validation du plan]]) ->  | AP7: =Tableau5[Validation du plan]+180 -> 2017-04-11 | AR7: =IF(Tableau5[[#This Row],[Suivi des reco Semestre 13]]="","",Tableau5[[#This Row],[Suivi des reco Semestre 13]]-Tableau5[[#This Row],[Suivi des reco Semestre 1]]) ->  | AS7: =Tableau5[Suivi des reco Semestre 1]+180 -> 2017-10-08 | AU7: =IF(Tableau5[[#This Row],[Suivi des reco Semestre 23]]="","",Tableau5[[#This Row],[Suivi des reco Semestre 23]]-Tableau5[[#This Row],[Suivi des reco Semestre 2]]) ->  | AV7: =Tableau5[Suivi des reco Semestre 2]+180 -> 2018-04-06 | AX7: =IF(Tableau5[[#This Row],[Suivi des reco Semestre 33]]="","",Tableau5[[#This Row],[Suivi des reco Semestre 33]]-Tableau5[[#This Row],[Suivi des reco Semestre 3]]) ->  | AY7: =Tableau5[Suivi des reco Semestre 3]+180 -> 2018-10-03 | BA7: =IF(Tableau5[[#This Row],[Suivi des reco Semestre 42]]="","",Tableau5[[#This Row],[Suivi des reco Semestre 42]]-Tableau5[[#This Row],[Suivi des reco Semestre 4]]) ->  | BB7: =WEEKNUM(AA7) -> 25 | BC7: Alexandre LE CORRE | BD7: Joel MOSSARD | BE7: Oliviana PIAZZA | BG7: =WEEKNUM(Tableau5[[#This Row],[Réel]]) ->  | BH7: =WEEKNUM(Tableau5[[#This Row],[Réel2]]) ->  | BI7: =WEEKNUM(Tableau5[[#This Row],[Ecart22]]) -> 18 | BJ7: =WEEKNUM(Tableau5[[#This Row],[Colonne4]]) ->  | BK7: =WEEKNUM(Tableau5[[#This Row],[Colonne6]]) ->  | BL7: =WEEKNUM(Tableau5[[#This Row],[Colonne8]]) ->  | BM7: =WEEKNUM(Tableau5[[#This Row],[Colonne10]]) ->  | BN7: =WEEKNUM(Tableau5[[#This Row],[Colonne12]]) ->  | BO7: =WEEKNUM(Tableau5[[#This Row],[Colonne14]]) ->  | BP7: =WEEKNUM(Tableau5[[#This Row],[Colonne16]]) ->  | BQ7: =IF(Tableau5[[#This Row],[Type d''audit]]="thématique",CONCATENATE(Tableau5[[#This Row],[Type d''audit]]," - ",Tableau5[[#This Row],[Dénomination de l''audit]]," - ",Tableau5[PNA]),CONCATENATE(Tableau5[[#This Row],[Type d''audit]]," - ",Tableau5[[#This Row],[Organisme audité]]," - ",Tableau5[PNA])) -> Structure - CPAM Flandres-Dunkerque-Armentières - 2016 | CJ7: =Tableau5[[#This Row],[Date de début de mission]] -> 01/02/2016 | CK7: =Tableau5[[#This Row],[Date de fin de mission]] -> 15/06/2016 | CM7: =WEEKNUM(Tableau5[[#This Row],[Prévisionnel]]) -> 6 | CN7: =WEEKNUM(Tableau5[[#This Row],[Prévisionnel2]]) -> 10 | CO7: =WEEKNUM(Tableau5[[#This Row],[Ecart23]]) -> 19 | CP7: =WEEKNUM(Tableau5[[#This Row],[Remise du rapport provisoire]]) -> 21 | CQ7: =WEEKNUM(Tableau5[[#This Row],[Contradictoire]]) -> 23 | CR7: =WEEKNUM(Tableau5[[#This Row],[Rapport définitif]]) -> 25 | CS7: =WEEKNUM(Tableau5[[#This Row],[Diffusion]]) -> 27 | CT7: =WEEKNUM(Tableau5[[#This Row],[Seminaire de restitution]]) -> 29 | CU7: =WEEKNUM(Tableau5[[#This Row],[Projet du plan d''action]]) -> 38 | CV7: =WEEKNUM(Tableau5[[#This Row],[Validation du plan]]) -> 42 | CW7: =IF(Tableau5[[#This Row],[auditeur1]]="","",Tableau5[[#This Row],[auditeur1]]) -> Alexandre LE CORRE | CX7: =IF(Tableau5[[#This Row],[auditeur2]]="","",Tableau5[[#This Row],[auditeur2]]) -> Joel MOSSARD | CY7: =IF(Tableau5[[#This Row],[auditeur3]]="","",Tableau5[[#This Row],[auditeur3]]) -> Oliviana PIAZZA | CZ7: =IF(Tableau5[[#This Row],[auditeur4]]="","",Tableau5[[#This Row],[auditeur4]]) -> 

Sheet Données (hidden)
A1: Alain PERROT | E1: Multiples organismes
A2: Alain SPAENLE | E2: CARSAT Alsace Moselle
A3: Alexandre LE CORRE | E3: CARSAT Aquitaine
A4: Arnaud MUDRY | E4: CARSAT Auvergne
A5: Corinne GALODE | E5: CARSAT Bourgogne Franche-Compté
A6: Joel MOSSARD | E6: CARSAT Bretagne
A7: Loic LE DEUNFF | E7: CARSAT Centre
A8: Mathias DIEZ | E8: CARSAT Centre-Ouest
A9: Oliviana PIAZZA | E9: CARSAT Languedoc Roussillon
A10: Patricia DAVANNE | E10: CARSAT Midi-Pyrénées
A11: Pierre Jean BONNOIT | E11: CARSAT Nord Est
A12: Said BOUNOUA | E12: CARSAT Nord Picardie
A13: Sylvie ZEILIG | E13: CARSAT Normandie
E14: CARSAT Pays de la Loire
A15: Anne Sanchez | E15: CARSAT Rhône-Alpes
A16: Francine SCHERPEREEL | E16: CARSAT Sud-Est
A17: Jacqueline PEREZ | E17: CRAMIF
A18: Jean-Michel VALLET | E18: CCSS Lozère
A19: Externe | E19: CGSS Guadeloupe
E20: CGSS Guyane
A21: Structure | E21: CGSS Martinique
A22: Thématique | E22: CGSS Réunion
E23: CICOA
A24: BearingPoint | E24: CPAM Charente-Maritime
A25: Eurogroup | E25: CPAM Haute-Loire
A26: Grant Thornton | E26: CPAM Ain
A27: Interne | E27: CPAM Aisne
A28: Mazars | E28: CPAM Allier
E29: CPAM Alpes-de-Haute-Provence
A30: 1er semestre | E30: CPAM Alpes-Maritimes
A31: 2eme semestre | E31: CPAM Ardèche
E32: CPAM Ardennes
A33: Initial | E33: CPAM Ariège
A34: Suivi | E34: CPAM Artois
E35: CPAM Aube
E36: CPAM Aude
E37: CPAM Aveyron
E38: CPAM Bas-Rhin
E39: CPAM Bayonne
E40: CPAM Boûches-du-Rhône
E41: CPAM Calvados
E42: CPAM Cantal
E43: CPAM Charente
E44: CPAM Cher
E45: CPAM Corrèze
E46: CPAM Corse-du-sud
E47: CPAM Côte d'Armor
E48: CPAM Côte-d'Opale
E49: CPAM Côte-d'Or
E50: CPAM Creuse
E51: CPAM Deux-Sèvres
E52: CPAM Dordogne
E53: CPAM Doubs
E54: CPAM Drôme
E55: CPAM Essonne
E56: CPAM Eure
E57: CPAM Eure-et-Loir
E58: CPAM Finistère
E59: CPAM Flandres-Dunkerque-Armentières
E60: CPAM Gard
E61: CPAM Gers
E62: CPAM Gironde
E63: CPAM Hainaut
E64: CPAM Haute-Corse
E65: CPAM Haute-Garonne
E66: CPAM Haute-Marne
E67: CPAM Hautes-Alpes
E68: CPAM Haute-Saône
E69: CPAM Haute-Savoie
E70: CPAM Hautes-Pyrénées
E71: CPAM Haute-Vienne
E72: CPAM Haut-Rhin
E73: CPAM Hauts-de-Seine
E74: CPAM Hérault
E75: CPAM Ille-et-Vilaine
E76: CPAM Indre
E77: CPAM Indre-et-Loire
E78: CPAM Isère
E79: CPAM Jura
E80: CPAM Landes
E81: CPAM Le Havre
E82: CPAM Lille-Douai
E83: CPAM Loire
E84: CPAM Loire-Atlantique
E85: CPAM Loiret
E86: CPAM Loir-et-Cher
E87: CPAM Lot
E88: CPAM Lot-et-Garonne
E89: CPAM Maine-et-Loir
E90: CPAM Manche
E91: CPAM Marne
E92: CPAM Mayenne
E93: CPAM Meurthe-et-Moselle
E94: CPAM Meuse
E95: CPAM Morbihan
E96: CPAM Moselle
E97: CPAM Nièvre
E98: CPAM Oise
E99: CPAM Orne
E100: CPAM Paris
E101: CPAM Pau
E102: CPAM Puy-de-Dôme
E103: CPAM Pyrénées-Orientales
E104: CPAM Rhône
E105: CPAM Roubaix-Tourcoing
E106: CPAM Rouen-Elbeuf-Dieppe-Seine-Maritime
E107: CPAM Saône-et-Loire
E108: CPAM Sarthe
E109: CPAM Savoie
E110: CPAM Seine-et-Marne
E111: CPAM Seine-Saint-Denis
E112: CPAM Somme
E113: CPAM Tarn
E114: CPAM Tarn-et-Garonne
E115: CPAM Territoire-de-Belfort
E116: CPAM Val-de-Marne
E117: CPAM Val-d'Oise
E118: CPAM Var
E119: CPAM Vaucluse
E120: CPAM Vendée
E121: CPAM Vienne
E122: CPAM Vosges
E123: CPAM Yonne
E124: CPAM Yvelines
E125: CSSM Mayotte
E126: CTI Bretagne - Pays de Loire
E127: CTI Grand Est
E128: CTI PACAC
E129: CTI Rhône Alpes Auvergne
E130: CTI NP-NP
E131: CTI Sud Toulouse
E132: DRSM Alsace-Moselle
E133: DRSM Aquitaine
E134: DRSM Auvergne
E135: DRSM Bourgogne-Franche-Comté
E136: DRSM Bretagne
E137: DRSM Centre
E138: DRSM Centre-Ouest
E139: DRSM Guadeloupe
E140: DRSM Guyane
E141: DRSM Ile de France
E142: DRSM La Réunion
E143: DRSM Languedoc-Rousillon
E144: DRSM Martinique
E145: DRSM Midi-Pyrénées
E146: DRSM Nord-Est
E147: DRSM Nord-Picardie
E148: DRSM Normandie
E149: DRSM Pays de Loire
E150: DRSM Rhône-Alpes
E151: DRSM Sud-Est-Corse
E152: CESTIF
E153: UGECAM Alsace
E154: UGECAM Aquitaine
E155: UGECAM Auvergne Limousin Poitou-Charente
E156: UGECAM Bourgogne Franche-Compté
E157: UGECAM Bretagne Pays de la Loire
E158: UGECAM Centre
E159: UGECAM Ile-de-France
E160: UGECAM Languedoc-Roussillon Midi-Pyrénées
E161: UGECAM Nord Pas-de-Calais Picardie
E162: UGECAM Nord-Est
E163: UGECAM Normandie
E164: UGECAM PACA-Corse
E165: UGECAM Rhône Alpes

Sheet Table délais (hidden)
A1: Audit initial de structure en externe | D1: Audit initial thématique en externe | G1: Audit initial thématique en interne | J1: Audit de suivi de structure en interne | M1: Audit de suivi thématique en interne
A2: Analyse préalable | B2: 30 | C2: 4 | D2: Analyse préalable | E2: 30 | F2: 4 | G2: Analyse préalable | H2: 30 | I2: 4 | J2: Analyse préalable | K2: 30 | L2: 4 | M2: Analyse préalable | N2: 30 | O2: 4
A3: Phase terrain | B3: 60 | C3: 8 | D3: Phase terrain | E3: 60 | F3: 8 | G3: Phase terrain | H3: 60 | I3: 8 | J3: Phase terrain | K3: 60 | L3: 8 | M3: Phase terrain | N3: 60 | O3: 8
A4: Rapport provisoire | B4: 15 | C4: 2 | D4: Rapport provisoire | E4: 15 | F4: 2 | G4: Rapport provisoire | H4: 15 | I4: 2 | J4: Rapport provisoire | K4: 15 | L4: 2 | M4: Rapport provisoire | N4: 15 | O4: 2
A5: Contradictoire | B5: 15 | C5: 2 | D5: Contradictoire | E5: 15 | F5: 2 | G5: Contradictoire | H5: 15 | I5: 2 | J5: Contradictoire | K5: 15 | L5: 2 | M5: Contradictoire | N5: 15 | O5: 2
A6: Rapport définitif | B6: 15 | C6: 2 | D6: Rapport définitif | E6: 15 | F6: 2 | G6: Rapport définitif | H6: 15 | I6: 2 | J6: Rapport définitif | K6: 15 | L6: 2 | M6: Rapport définitif | N6: 15 | O6: 2
A7: Diffusion | B7: 15 | C7: 2 | D7: Diffusion | E7: 15 | F7: 2 | G7: Diffusion | H7: 15 | I7: 2 | J7: Diffusion | K7: 15 | L7: 2 | M7: Diffusion | N7: 15 | O7: 2
A8: Seminaire de restitution | B8: 30 | C8: 4 | D8: Seminaire de restitution | E8: 30 | F8: 4 | G8: Seminaire de restitution | H8: 30 | I8: 4 | J8: Seminaire de restitution | K8: 30 | L8: 4 | M8: Seminaire de restitution | N8: 30 | O8: 4
A9: Projet du plan d'action | B9: 60 | C9: 8 | D9: Projet du plan d'action | E9: 60 | F9: 8 | G9: Projet du plan d'action | H9: 60 | I9: 8 | J9: Projet du plan d'action | K9: 60 | L9: 8 | M9: Projet du plan d'action | N9: 60 | O9: 8
A10: Validation du plan d'action | B10: 15 | C10: 2 | D10: Validation du plan d'action | E10: 15 | F10: 2 | G10: Validation du plan d'action | H10: 15 | I10: 2 | J10: Validation du plan d'action | K10: 15 | L10: 2 | M10: Validation du plan d'action | N10: 15 | O10: 2

Sheet Macro-planning
A1: Dénomination | B1: Organisme | C1: DM | D1: PNA | E1: fin mission | F1: Analyse Préalable | G1: BdC | H1: Terrain | I1: RP | J1: Contradictoire | K1: RD | L1: Diff | M1: Séminaire | N1: plan d'action | O1: validation | AO1: Année N | CP1: Année N+1
P2: janvier | U2: février | Y2: mars | AD2: avril | AH2: mai | AL2: juin | AQ2: juillet | AU2: août | AZ2: septembre | BD2: octobre | BH2: novembre | BM2: décembre | BQ2: janvier | BV2: février | BZ2: mars | CE2: avril | CI2: mai | CM2: juin | CR2: juillet | CV2: août | DA2: septembre | DE2: octobre | DI2: novembre | DN2: décembre
P3: S1 | Q3: S2 | R3: S3 | S3: S4 | T3: S5 | U3: S1 | V3: S2 | W3: S3 | X3: S4 | Y3: S1 | Z3: S2 | AA3: S3 | AB3: S4 | AC3: S5 | AD3: S1 | AE3: S2 | AF3: S3 | AG3: S4 | AH3: S1 | AI3: S2 | AJ3: S3 | AK3: S4 | AL3: S1 | AM3: S2 | AN3: S3 | AO3: S4 | AP3: S5 | AQ3: S1 | AR3: S2 | AS3: S3 | AT3: S4 | AU3: S1 | AV3: S2 | AW3: S3 | AX3: S4 | AY3: S5 | AZ3: S1 | BA3: S2 | BB3: S3 | BC3: S4 | BD3: S1 | BE3: S2 | BF3: S3 | BG3: S4 | BH3: S1 | BI3: S2 | BJ3: S3 | BK3: S4 | BL3: S5 | BM3: S1 | BN3: S2 | BO3: S3 | BP3: S4 | BQ3: S1 | BR3: S2 | BS3: S3 | BT3: S4 | BU3: S5 | BV3: S1 | BW3: S2 | BX3: S3 | BY3: S4 | BZ3: S1 | CA3: S2 | CB3: S3 | CC3: S4 | CD3: S5 | CE3: S1 | CF3: S2 | CG3: S3 | CH3: S4 | CI3: S1 | CJ3: S2 | CK3: S3 | CL3: S4 | CM3: S1 | CN3: S2 | CO3: S3 | CP3: S4 | CQ3: S5 | CR3: S1 | CS3: S2 | CT3: S3 | CU3: S4 | CV3: S1 | CW3: S2 | CX3: S3 | CY3: S4 | CZ3: S5 | DA3: S1 | DB3: S2 | DC3: S3 | DD3: S4 | DE3: S1 | DF3: S2 | DG3: S3 | DH3: S4 | DI3: S1 | DJ3: S2 | DK3: S3 | DL3: S4 | DM3: S5 | DN3: S1 | DO3: S2 | DP3: S3 | DQ3: S4
P4: 1 | Q4: 2 | R4: 3 | S4: 4 | T4: 5 | U4: 6 | V4: 7 | W4: 8 | X4: 9 | Y4: 10 | Z4: 11 | AA4: 12 | AB4: 13 | AC4: 14 | AD4: 15 | AE4: 16 | AF4: 17 | AG4: 18 | AH4: 19 | AI4: 20 | AJ4: 21 | AK4: 22 | AL4: 23 | AM4: 24 | AN4: 25 | AO4: 26 | AP4: 27 | AQ4: 28 | AR4: 29 | AS4: 30 | AT4: 31 | AU4: 32 | AV4: 33 | AW4: 34 | AX4: 35 | AY4: 36 | AZ4: 37 | BA4: 38 | BB4: 39 | BC4: 40 | BD4: 41 | BE4: 42 | BF4: 43 | BG4: 44 | BH4: 45 | BI4: 46 | BJ4: 47 | BK4: 48 | BL4: 49 | BM4: 50 | BN4: 51 | BO4: 52 | BP4: 53 | BQ4: 54 | BR4: 55 | BS4: 56 | BT4: 57 | BU4: 58 | BV4: 59 | BW4: 60 | BX4: 61 | BY4: 62 | BZ4: 63 | CA4: 64 | CB4: 65 | CC4: 66 | CD4: 67 | CE4: 68 | CF4: 69 | CG4: 70 | CH4: 71 | CI4: 72 | CJ4: 73 | CK4: 74 | CL4: 75 | CM4: 76 | CN4: 77 | CO4: 78 | CP4: 79 | CQ4: 80 | CR4: 81 | CS4: 82 | CT4: 83 | CU4: 84 | CV4: 85 | CW4: 86 | CX4: 87 | CY4: 88 | CZ4: 89 | DA4: 90 | DB4: 91 | DC4: 92 | DD4: 93 | DE4: 94 | DF4: 95 | DG4: 96 | DH4: 97 | DI4: 98 | DJ4: 99 | DK4: 100 | DL4: 101 | DM4: 102 | DN4: 103 | DO4: 104 | DP4: 105 | DQ4: 106
A5: a | B5: a | C5: a | D5: a | E5: =Recap!BB5 -> 27 | F5: =Recap!CM5 -> 9 | G5: =Recap!CN5 -> 13 | H5: =Recap!CO5 -> 21 | I5: =Recap!CP5 -> 23 | J5: =Recap!CQ5 -> 25 | K5: =Recap!CR5 -> 27 | L5: =Recap!CS5 -> 29 | M5: =Recap!CT5 -> 31 | N5: =Recap!CU5 -> 39 | O5: =Recap!CV5 -> 44
F6: =Recap!BG5 -> 9 | G6: =Recap!BH5 -> 12 | H6: =Recap!BI5 -> 21 | I6: =Recap!BJ5 -> 23 | J6: =Recap!BK5 -> 24 | K6: =Recap!BL5 -> 28 | L6: =Recap!BM5 -> 29 | M6: =Recap!BN5 -> 31 | N6: =Recap!BO5 -> 39 | O6: =Recap!BP5 -> 44
A7: Audit Côte d'Or | B7: CPAM Côte-d'Or | C7: Externe | D7: 2016 | E7: =IF(ISNA(VLOOKUP(A7,Recap!A:BB,54,FALSE)),"",VLOOKUP(A7,Recap!A:BB,54,FALSE)) -> 31 | F7: =IF(ISNA(VLOOKUP($A7,Recap!$A:CM,91,FALSE)),"",VLOOKUP($A7,Recap!$A:CM,91,FALSE)) -> 12 | G7: =IF(ISNA(VLOOKUP($A7,Recap!$A:CN,92,FALSE)),"",VLOOKUP($A7,Recap!$A:CN,92,FALSE)) -> 16 | H7: =IF(ISNA(VLOOKUP($A7,Recap!$A:CO,93,FALSE)),"",VLOOKUP($A7,Recap!$A:CO,93,FALSE)) -> 25 | I7: =IF(ISNA(VLOOKUP($A7,Recap!$A:CP,94,FALSE)),"",VLOOKUP($A7,Recap!$A:CP,94,FALSE)) -> 27 | J7: =IF(ISNA(VLOOKUP($A7,Recap!$A:CQ,95,FALSE)),"",VLOOKUP($A7,Recap!$A:CQ,95,FALSE)) -> 29 | K7: =IF(ISNA(VLOOKUP($A7,Recap!$A:CR,96,FALSE)),"",VLOOKUP($A7,Recap!$A:CR,96,FALSE)) -> 31 | L7: =IF(ISNA(VLOOKUP($A7,Recap!$A:CS,97,FALSE)),"",VLOOKUP($A7,Recap!$A:CS,97,FALSE)) -> 33 | M7: =IF(ISNA(VLOOKUP($A7,Recap!$A:CT,98,FALSE)),"",VLOOKUP($A7,Recap!$A:CT,98,FALSE)) -> 35 | N7: =IF(ISNA(VLOOKUP($A7,Recap!$A:CU,99,FALSE)),"",VLOOKUP($A7,Recap!$A:CU,99,FALSE)) -> 44 | O7: =IF(ISNA(VLOOKUP($A7,Recap!$A:CV,100,FALSE)),"",VLOOKUP($A7,Recap!$A:CV,100,FALSE)) -> 48
F8: =IF(ISNA(VLOOKUP($A7,Recap!$A:BG,59,FALSE)),"",VLOOKUP($A7,Recap!$A:BG,59,FALSE)) -> 12 | G8: =IF(ISNA(VLOOKUP($A7,Recap!$A:BH,60,FALSE)),"",VLOOKUP($A7,Recap!$A:BH,60,FALSE)) -> 14 | H8: =IF(ISNA(VLOOKUP($A7,Recap!$A:BI,61,FALSE)),"",VLOOKUP($A7,Recap!$A:BI,61,FALSE)) -> 19 | I8: =IF(ISNA(VLOOKUP($A7,Recap!$A:BJ,62,FALSE)),"",VLOOKUP($A7,Recap!$A:BJ,62,FALSE)) -> 20 | J8: =IF(ISNA(VLOOKUP($A7,Recap!$A:BK,63,FALSE)),"",VLOOKUP($A7,Recap!$A:BK,63,FALSE)) -> 20 | K8: =IF(ISNA(VLOOKUP($A7,Recap!$A:BL,64,FALSE)),"",VLOOKUP($A7,Recap!$A:BL,64,FALSE)) ->  | L8: =IF(ISNA(VLOOKUP($A7,Recap!$A:BM,65,FALSE)),"",VLOOKUP($A7,Recap!$A:BM,65,FALSE)) ->  | M8: =IF(ISNA(VLOOKUP($A7,Recap!$A:BN,66,FALSE)),"",VLOOKUP($A7,Recap!$A:BN,66,FALSE)) ->  | N8: =IF(ISNA(VLOOKUP($A7,Recap!$A:BO,67,FALSE)),"",VLOOKUP($A7,Recap!$A:BO,67,FALSE)) ->  | O8: =IF(ISNA(VLOOKUP($A7,Recap!$A:BP,68,FALSE)),"",VLOOKUP($A7,Recap!$A:BP,68,FALSE)) -> 
A9: CPAM FLANDRES | B9: CPAM Flandres-Dunkerque-Armentières | C9: Jacqueline Perez | D9: 2016 | E9: =IF(ISNA(VLOOKUP(A9,Recap!A:BB,54,FALSE)),"",VLOOKUP(A9,Recap!A:BB,54,FALSE)) -> 25 | F9: =IF(ISNA(VLOOKUP($A9,Recap!$A:CM,91,FALSE)),"",VLOOKUP($A9,Recap!$A:CM,91,FALSE)) -> 6 | G9: =IF(ISNA(VLOOKUP($A9,Recap!$A:CN,92,FALSE)),"",VLOOKUP($A9,Recap!$A:CN,92,FALSE)) -> 10 | H9: =IF(ISNA(VLOOKUP($A9,Recap!$A:CO,93,FALSE)),"",VLOOKUP($A9,Recap!$A:CO,93,FALSE)) -> 19 | I9: =IF(ISNA(VLOOKUP($A9,Recap!$A:CP,94,FALSE)),"",VLOOKUP($A9,Recap!$A:CP,94,FALSE)) -> 21 | J9: =IF(ISNA(VLOOKUP($A9,Recap!$A:CQ,95,FALSE)),"",VLOOKUP($A9,Recap!$A:CQ,95,FALSE)) -> 23 | K9: =IF(ISNA(VLOOKUP($A9,Recap!$A:CR,96,FALSE)),"",VLOOKUP($A9,Recap!$A:CR,96,FALSE)) -> 25 | L9: =IF(ISNA(VLOOKUP($A9,Recap!$A:CS,97,FALSE)),"",VLOOKUP($A9,Recap!$A:CS,97,FALSE)) -> 27 | M9: =IF(ISNA(VLOOKUP($A9,Recap!$A:CT,98,FALSE)),"",VLOOKUP($A9,Recap!$A:CT,98,FALSE)) -> 29 | N9: =IF(ISNA(VLOOKUP($A9,Recap!$A:CU,99,FALSE)),"",VLOOKUP($A9,Recap!$A:CU,99,FALSE)) -> 38 | O9: =IF(ISNA(VLOOKUP($A9,Recap!$A:CV,100,FALSE)),"",VLOOKUP($A9,Recap!$A:CV,100,FALSE)) -> 42
F10: =IF(ISNA(VLOOKUP($A9,Recap!$A:BG,59,FALSE)),"",VLOOKUP($A9,Recap!$A:BG,59,FALSE)) ->  | G10: =IF(ISNA(VLOOKUP($A9,Recap!$A:BH,60,FALSE)),"",VLOOKUP($A9,Recap!$A:BH,60,FALSE)) ->  | H10: =IF(ISNA(VLOOKUP($A9,Recap!$A:BI,61,FALSE)),"",VLOOKUP($A9,Recap!$A:BI,61,FALSE)) -> 18 | I10: =IF(ISNA(VLOOKUP($A9,Recap!$A:BJ,62,FALSE)),"",VLOOKUP($A9,Recap!$A:BJ,62,FALSE)) ->  | J10: =IF(ISNA(VLOOKUP($A9,Recap!$A:BK,63,FALSE)),"",VLOOKUP($A9,Recap!$A:BK,63,FALSE)) ->  | K10: =IF(ISNA(VLOOKUP($A9,Recap!$A:BL,64,FALSE)),"",VLOOKUP($A9,Recap!$A:BL,64,FALSE)) ->  | L10: =IF(ISNA(VLOOKUP($A9,Recap!$A:BM,65,FALSE)),"",VLOOKUP($A9,Recap!$A:BM,65,FALSE)) ->  | M10: =IF(ISNA(VLOOKUP($A9,Recap!$A:BN,66,FALSE)),"",VLOOKUP($A9,Recap!$A:BN,66,FALSE)) ->  | N10: =IF(ISNA(VLOOKUP($A9,Recap!$A:BO,67,FALSE)),"",VLOOKUP($A9,Recap!$A:BO,67,FALSE)) ->  | O10: =IF(ISNA(VLOOKUP($A9,Recap!$A:BP,68,FALSE)),"",VLOOKUP($A9,Recap!$A:BP,68,FALSE)) -> 
E11: =IF(ISNA(VLOOKUP(A11,Recap!A:BB,54,FALSE)),"",VLOOKUP(A11,Recap!A:BB,54,FALSE)) ->  | F11: =IF(ISNA(VLOOKUP($A11,Recap!$A:CM,91,FALSE)),"",VLOOKUP($A11,Recap!$A:CM,91,FALSE)) ->  | G11: =IF(ISNA(VLOOKUP($A11,Recap!$A:CN,92,FALSE)),"",VLOOKUP($A11,Recap!$A:CN,92,FALSE)) ->  | H11: =IF(ISNA(VLOOKUP($A11,Recap!$A:CO,93,FALSE)),"",VLOOKUP($A11,Recap!$A:CO,93,FALSE)) ->  | I11: =IF(ISNA(VLOOKUP($A11,Recap!$A:CP,94,FALSE)),"",VLOOKUP($A11,Recap!$A:CP,94,FALSE)) ->  | J11: =IF(ISNA(VLOOKUP($A11,Recap!$A:CQ,95,FALSE)),"",VLOOKUP($A11,Recap!$A:CQ,95,FALSE)) ->  | K11: =IF(ISNA(VLOOKUP($A11,Recap!$A:CR,96,FALSE)),"",VLOOKUP($A11,Recap!$A:CR,96,FALSE)) ->  | L11: =IF(ISNA(VLOOKUP($A11,Recap!$A:CS,97,FALSE)),"",VLOOKUP($A11,Recap!$A:CS,97,FALSE)) ->  | M11: =IF(ISNA(VLOOKUP($A11,Recap!$A:CT,98,FALSE)),"",VLOOKUP($A11,Recap!$A:CT,98,FALSE)) ->  | N11: =IF(ISNA(VLOOKUP($A11,Recap!$A:CU,99,FALSE)),"",VLOOKUP($A11,Recap!$A:CU,99,FALSE)) ->  | O11: =IF(ISNA(VLOOKUP($A11,Recap!$A:CV,100,FALSE)),"",VLOOKUP($A11,Recap!$A:CV,100,FALSE)) -> 
F12: =IF(ISNA(VLOOKUP($A11,Recap!$A:BG,59,FALSE)),"",VLOOKUP($A11,Recap!$A:BG,59,FALSE)) ->  | G12: =IF(ISNA(VLOOKUP($A11,Recap!$A:BH,60,FALSE)),"",VLOOKUP($A11,Recap!$A:BH,60,FALSE)) ->  | H12: =IF(ISNA(VLOOKUP($A11,Recap!$A:BI,61,FALSE)),"",VLOOKUP($A11,Recap!$A:BI,61,FALSE)) ->  | I12: =IF(ISNA(VLOOKUP($A11,Recap!$A:BJ,62,FALSE)),"",VLOOKUP($A11,Recap!$A:BJ,62,FALSE)) ->  | J12: =IF(ISNA(VLOOKUP($A11,Recap!$A:BK,63,FALSE)),"",VLOOKUP($A11,Recap!$A:BK,63,FALSE)) ->  | K12: =IF(ISNA(VLOOKUP($A11,Recap!$A:BL,64,FALSE)),"",VLOOKUP($A11,Recap!$A:BL,64,FALSE)) ->  | L12: =IF(ISNA(VLOOKUP($A11,Recap!$A:BM,65,FALSE)),"",VLOOKUP($A11,Recap!$A:BM,65,FALSE)) ->  | M12: =IF(ISNA(VLOOKUP($A11,Recap!$A:BN,66,FALSE)),"",VLOOKUP($A11,Recap!$A:BN,66,FALSE)) ->  | N12: =IF(ISNA(VLOOKUP($A11,Recap!$A:BO,67,FALSE)),"",VLOOKUP($A11,Recap!$A:BO,67,FALSE)) ->  | O12: =IF(ISNA(VLOOKUP($A11,Recap!$A:BP,68,FALSE)),"",VLOOKUP($A11,Recap!$A:BP,68,FALSE)) -> 
E13: =IF(ISNA(VLOOKUP(A13,Recap!A:BB,54,FALSE)),"",VLOOKUP(A13,Recap!A:BB,54,FALSE)) ->  | F13: =IF(ISNA(VLOOKUP($A13,Recap!$A:CM,91,FALSE)),"",VLOOKUP($A13,Recap!$A:CM,91,FALSE)) ->  | G13: =IF(ISNA(VLOOKUP($A13,Recap!$A:CN,92,FALSE)),"",VLOOKUP($A13,Recap!$A:CN,92,FALSE)) ->  | H13: =IF(ISNA(VLOOKUP($A13,Recap!$A:CO,93,FALSE)),"",VLOOKUP($A13,Recap!$A:CO,93,FALSE)) ->  | I13: =IF(ISNA(VLOOKUP($A13,Recap!$A:CP,94,FALSE)),"",VLOOKUP($A13,Recap!$A:CP,94,FALSE)) ->  | J13: =IF(ISNA(VLOOKUP($A13,Recap!$A:CQ,95,FALSE)),"",VLOOKUP($A13,Recap!$A:CQ,95,FALSE)) ->  | K13: =IF(ISNA(VLOOKUP($A13,Recap!$A:CR,96,FALSE)),"",VLOOKUP($A13,Recap!$A:CR,96,FALSE)) ->  | L13: =IF(ISNA(VLOOKUP($A13,Recap!$A:CS,97,FALSE)),"",VLOOKUP($A13,Recap!$A:CS,97,FALSE)) ->  | M13: =IF(ISNA(VLOOKUP($A13,Recap!$A:CT,98,FALSE)),"",VLOOKUP($A13,Recap!$A:CT,98,FALSE)) ->  | N13: =IF(ISNA(VLOOKUP($A13,Recap!$A:CU,99,FALSE)),"",VLOOKUP($A13,Recap!$A:CU,99,FALSE)) ->  | O13: =IF(ISNA(VLOOKUP($A13,Recap!$A:CV,100,FALSE)),"",VLOOKUP($A13,Recap!$A:CV,100,FALSE)) -> 
F14: =IF(ISNA(VLOOKUP($A13,Recap!$A:BG,59,FALSE)),"",VLOOKUP($A13,Recap!$A:BG,59,FALSE)) ->  | G14: =IF(ISNA(VLOOKUP($A13,Recap!$A:BH,60,FALSE)),"",VLOOKUP($A13,Recap!$A:BH,60,FALSE)) ->  | H14: =IF(ISNA(VLOOKUP($A13,Recap!$A:BI,61,FALSE)),"",VLOOKUP($A13,Recap!$A:BI,61,FALSE)) ->  | I14: =IF(ISNA(VLOOKUP($A13,Recap!$A:BJ,62,FALSE)),"",VLOOKUP($A13,Recap!$A:BJ,62,FALSE)) ->  | J14: =IF(ISNA(VLOOKUP($A13,Recap!$A:BK,63,FALSE)),"",VLOOKUP($A13,Recap!$A:BK,63,FALSE)) ->  | K14: =IF(ISNA(VLOOKUP($A13,Recap!$A:BL,64,FALSE)),"",VLOOKUP($A13,Recap!$A:BL,64,FALSE)) ->  | L14: =IF(ISNA(VLOOKUP($A13,Recap!$A:BM,65,FALSE)),"",VLOOKUP($A13,Recap!$A:BM,65,FALSE)) ->  | M14: =IF(ISNA(VLOOKUP($A13,Recap!$A:BN,66,FALSE)),"",VLOOKUP($A13,Recap!$A:BN,66,FALSE)) ->  | N14: =IF(ISNA(VLOOKUP($A13,Recap!$A:BO,67,FALSE)),"",VLOOKUP($A13,Recap!$A:BO,67,FALSE)) ->  | O14: =IF(ISNA(VLOOKUP($A13,Recap!$A:BP,68,FALSE)),"",VLOOKUP($A13,Recap!$A:BP,68,FALSE)) -> 
E15: =IF(ISNA(VLOOKUP(A15,Recap!A:BB,54,FALSE)),"",VLOOKUP(A15,Recap!A:BB,54,FALSE)) ->  | F15: =IF(ISNA(VLOOKUP($A15,Recap!$A:CM,91,FALSE)),"",VLOOKUP($A15,Recap!$A:CM,91,FALSE)) ->  | G15: =IF(ISNA(VLOOKUP($A15,Recap!$A:CN,92,FALSE)),"",VLOOKUP($A15,Recap!$A:CN,92,FALSE)) ->  | H15: =IF(ISNA(VLOOKUP($A15,Recap!$A:CO,93,FALSE)),"",VLOOKUP($A15,Recap!$A:CO,93,FALSE)) ->  | I15: =IF(ISNA(VLOOKUP($A15,Recap!$A:CP,94,FALSE)),"",VLOOKUP($A15,Recap!$A:CP,94,FALSE)) ->  | J15: =IF(ISNA(VLOOKUP($A15,Recap!$A:CQ,95,FALSE)),"",VLOOKUP($A15,Recap!$A:CQ,95,FALSE)) ->  | K15: =IF(ISNA(VLOOKUP($A15,Recap!$A:CR,96,FALSE)),"",VLOOKUP($A15,Recap!$A:CR,96,FALSE)) ->  | L15: =IF(ISNA(VLOOKUP($A15,Recap!$A:CS,97,FALSE)),"",VLOOKUP($A15,Recap!$A:CS,97,FALSE)) ->  | M15: =IF(ISNA(VLOOKUP($A15,Recap!$A:CT,98,FALSE)),"",VLOOKUP($A15,Recap!$A:CT,98,FALSE)) ->  | N15: =IF(ISNA(VLOOKUP($A15,Recap!$A:CU,99,FALSE)),"",VLOOKUP($A15,Recap!$A:CU,99,FALSE)) ->  | O15: =IF(ISNA(VLOOKUP($A15,Recap!$A:CV,100,FALSE)),"",VLOOKUP($A15,Recap!$A:CV,100,FALSE)) -> 
F16: =IF(ISNA(VLOOKUP($A15,Recap!$A:BG,59,FALSE)),"",VLOOKUP($A15,Recap!$A:BG,59,FALSE)) ->  | G16: =IF(ISNA(VLOOKUP($A15,Recap!$A:BH,60,FALSE)),"",VLOOKUP($A15,Recap!$A:BH,60,FALSE)) ->  | H16: =IF(ISNA(VLOOKUP($A15,Recap!$A:BI,61,FALSE)),"",VLOOKUP($A15,Recap!$A:BI,61,FALSE)) ->  | I16: =IF(ISNA(VLOOKUP($A15,Recap!$A:BJ,62,FALSE)),"",VLOOKUP($A15,Recap!$A:BJ,62,FALSE)) ->  | J16: =IF(ISNA(VLOOKUP($A15,Recap!$A:BK,63,FALSE)),"",VLOOKUP($A15,Recap!$A:BK,63,FALSE)) ->  | K16: =IF(ISNA(VLOOKUP($A15,Recap!$A:BL,64,FALSE)),"",VLOOKUP($A15,Recap!$A:BL,64,FALSE)) ->  | L16: =IF(ISNA(VLOOKUP($A15,Recap!$A:BM,65,FALSE)),"",VLOOKUP($A15,Recap!$A:BM,65,FALSE)) ->  | M16: =IF(ISNA(VLOOKUP($A15,Recap!$A:BN,66,FALSE)),"",VLOOKUP($A15,Recap!$A:BN,66,FALSE)) ->  | N16: =IF(ISNA(VLOOKUP($A15,Recap!$A:BO,67,FALSE)),"",VLOOKUP($A15,Recap!$A:BO,67,FALSE)) ->  | O16: =IF(ISNA(VLOOKUP($A15,Recap!$A:BP,68,FALSE)),"",VLOOKUP($A15,Recap!$A:BP,68,FALSE)) -> 
E17: =IF(ISNA(VLOOKUP(A17,Recap!A:BB,54,FALSE)),"",VLOOKUP(A17,Recap!A:BB,54,FALSE)) ->  | F17: =IF(ISNA(VLOOKUP($A17,Recap!$A:CM,91,FALSE)),"",VLOOKUP($A17,Recap!$A:CM,91,FALSE)) ->  | G17: =IF(ISNA(VLOOKUP($A17,Recap!$A:CN,92,FALSE)),"",VLOOKUP($A17,Recap!$A:CN,92,FALSE)) ->  | H17: =IF(ISNA(VLOOKUP($A17,Recap!$A:CO,93,FALSE)),"",VLOOKUP($A17,Recap!$A:CO,93,FALSE)) ->  | I17: =IF(ISNA(VLOOKUP($A17,Recap!$A:CP,94,FALSE)),"",VLOOKUP($A17,Recap!$A:CP,94,FALSE)) ->  | J17: =IF(ISNA(VLOOKUP($A17,Recap!$A:CQ,95,FALSE)),"",VLOOKUP($A17,Recap!$A:CQ,95,FALSE)) ->  | K17: =IF(ISNA(VLOOKUP($A17,Recap!$A:CR,96,FALSE)),"",VLOOKUP($A17,Recap!$A:CR,96,FALSE)) ->  | L17: =IF(ISNA(VLOOKUP($A17,Recap!$A:CS,97,FALSE)),"",VLOOKUP($A17,Recap!$A:CS,97,FALSE)) ->  | M17: =IF(ISNA(VLOOKUP($A17,Recap!$A:CT,98,FALSE)),"",VLOOKUP($A17,Recap!$A:CT,98,FALSE)) ->  | N17: =IF(ISNA(VLOOKUP($A17,Recap!$A:CU,99,FALSE)),"",VLOOKUP($A17,Recap!$A:CU,99,FALSE)) ->  | O17: =IF(ISNA(VLOOKUP($A17,Recap!$A:CV,100,FALSE)),"",VLOOKUP($A17,Recap!$A:CV,100,FALSE)) -> 
F18: =IF(ISNA(VLOOKUP($A17,Recap!$A:BG,59,FALSE)),"",VLOOKUP($A17,Recap!$A:BG,59,FALSE)) ->  | G18: =IF(ISNA(VLOOKUP($A17,Recap!$A:BH,60,FALSE)),"",VLOOKUP($A17,Recap!$A:BH,60,FALSE)) ->  | H18: =IF(ISNA(VLOOKUP($A17,Recap!$A:BI,61,FALSE)),"",VLOOKUP($A17,Recap!$A:BI,61,FALSE)) ->  | I18: =IF(ISNA(VLOOKUP($A17,Recap!$A:BJ,62,FALSE)),"",VLOOKUP($A17,Recap!$A:BJ,62,FALSE)) ->  | J18: =IF(ISNA(VLOOKUP($A17,Recap!$A:BK,63,FALSE)),"",VLOOKUP($A17,Recap!$A:BK,63,FALSE)) ->  | K18: =IF(ISNA(VLOOKUP($A17,Recap!$A:BL,64,FALSE)),"",VLOOKUP($A17,Recap!$A:BL,64,FALSE)) ->  | L18: =IF(ISNA(VLOOKUP($A17,Recap!$A:BM,65,FALSE)),"",VLOOKUP($A17,Recap!$A:BM,65,FALSE)) ->  | M18: =IF(ISNA(VLOOKUP($A17,Recap!$A:BN,66,FALSE)),"",VLOOKUP($A17,Recap!$A:BN,66,FALSE)) ->  | N18: =IF(ISNA(VLOOKUP($A17,Recap!$A:BO,67,FALSE)),"",VLOOKUP($A17,Recap!$A:BO,67,FALSE)) ->  | O18: =IF(ISNA(VLOOKUP($A17,Recap!$A:BP,68,FALSE)),"",VLOOKUP($A17,Recap!$A:BP,68,FALSE)) -> 
E19: =IF(ISNA(VLOOKUP(A19,Recap!A:BB,54,FALSE)),"",VLOOKUP(A19,Recap!A:BB,54,FALSE)) ->  | F19: =IF(ISNA(VLOOKUP($A19,Recap!$A:CM,91,FALSE)),"",VLOOKUP($A19,Recap!$A:CM,91,FALSE)) ->  | G19: =IF(ISNA(VLOOKUP($A19,Recap!$A:CN,92,FALSE)),"",VLOOKUP($A19,Recap!$A:CN,92,FALSE)) ->  | H19: =IF(ISNA(VLOOKUP($A19,Recap!$A:CO,93,FALSE)),"",VLOOKUP($A19,Recap!$A:CO,93,FALSE)) ->  | I19: =IF(ISNA(VLOOKUP($A19,Recap!$A:CP,94,FALSE)),"",VLOOKUP($A19,Recap!$A:CP,94,FALSE)) ->  | J19: =IF(ISNA(VLOOKUP($A19,Recap!$A:CQ,95,FALSE)),"",VLOOKUP($A19,Recap!$A:CQ,95,FALSE)) ->  | K19: =IF(ISNA(VLOOKUP($A19,Recap!$A:CR,96,FALSE)),"",VLOOKUP($A19,Recap!$A:CR,96,FALSE)) ->  | L19: =IF(ISNA(VLOOKUP($A19,Recap!$A:CS,97,FALSE)),"",VLOOKUP($A19,Recap!$A:CS,97,FALSE)) ->  | M19: =IF(ISNA(VLOOKUP($A19,Recap!$A:CT,98,FALSE)),"",VLOOKUP($A19,Recap!$A:CT,98,FALSE)) ->  | N19: =IF(ISNA(VLOOKUP($A19,Recap!$A:CU,99,FALSE)),"",VLOOKUP($A19,Recap!$A:CU,99,FALSE)) ->  | O19: =IF(ISNA(VLOOKUP($A19,Recap!$A:CV,100,FALSE)),"",VLOOKUP($A19,Recap!$A:CV,100,FALSE)) -> 
F20: =IF(ISNA(VLOOKUP($A19,Recap!$A:BG,59,FALSE)),"",VLOOKUP($A19,Recap!$A:BG,59,FALSE)) ->  | G20: =IF(ISNA(VLOOKUP($A19,Recap!$A:BH,60,FALSE)),"",VLOOKUP($A19,Recap!$A:BH,60,FALSE)) ->  | H20: =IF(ISNA(VLOOKUP($A19,Recap!$A:BI,61,FALSE)),"",VLOOKUP($A19,Recap!$A:BI,61,FALSE)) ->  | I20: =IF(ISNA(VLOOKUP($A19,Recap!$A:BJ,62,FALSE)),"",VLOOKUP($A19,Recap!$A:BJ,62,FALSE)) ->  | J20: =IF(ISNA(VLOOKUP($A19,Recap!$A:BK,63,FALSE)),"",VLOOKUP($A19,Recap!$A:BK,63,FALSE)) ->  | K20: =IF(ISNA(VLOOKUP($A19,Recap!$A:BL,64,FALSE)),"",VLOOKUP($A19,Recap!$A:BL,64,FALSE)) ->  | L20: =IF(ISNA(VLOOKUP($A19,Recap!$A:BM,65,FALSE)),"",VLOOKUP($A19,Recap!$A:BM,65,FALSE)) ->  | M20: =IF(ISNA(VLOOKUP($A19,Recap!$A:BN,66,FALSE)),"",VLOOKUP($A19,Recap!$A:BN,66,FALSE)) ->  | N20: =IF(ISNA(VLOOKUP($A19,Recap!$A:BO,67,FALSE)),"",VLOOKUP($A19,Recap!$A:BO,67,FALSE)) ->  | O20: =IF(ISNA(VLOOKUP($A19,Recap!$A:BP,68,FALSE)),"",VLOOKUP($A19,Recap!$A:BP,68,FALSE)) -> 
E21: =IF(ISNA(VLOOKUP(A21,Recap!A:BB,54,FALSE)),"",VLOOKUP(A21,Recap!A:BB,54,FALSE)) ->  | F21: =IF(ISNA(VLOOKUP($A21,Recap!$A:CM,91,FALSE)),"",VLOOKUP($A21,Recap!$A:CM,91,FALSE)) ->  | G21: =IF(ISNA(VLOOKUP($A21,Recap!$A:CN,92,FALSE)),"",VLOOKUP($A21,Recap!$A:CN,92,FALSE)) ->  | H21: =IF(ISNA(VLOOKUP($A21,Recap!$A:CO,93,FALSE)),"",VLOOKUP($A21,Recap!$A:CO,93,FALSE)) ->  | I21: =IF(ISNA(VLOOKUP($A21,Recap!$A:CP,94,FALSE)),"",VLOOKUP($A21,Recap!$A:CP,94,FALSE)) ->  | J21: =IF(ISNA(VLOOKUP($A21,Recap!$A:CQ,95,FALSE)),"",VLOOKUP($A21,Recap!$A:CQ,95,FALSE)) ->  | K21: =IF(ISNA(VLOOKUP($A21,Recap!$A:CR,96,FALSE)),"",VLOOKUP($A21,Recap!$A:CR,96,FALSE)) ->  | L21: =IF(ISNA(VLOOKUP($A21,Recap!$A:CS,97,FALSE)),"",VLOOKUP($A21,Recap!$A:CS,97,FALSE)) ->  | M21: =IF(ISNA(VLOOKUP($A21,Recap!$A:CT,98,FALSE)),"",VLOOKUP($A21,Recap!$A:CT,98,FALSE)) ->  | N21: =IF(ISNA(VLOOKUP($A21,Recap!$A:CU,99,FALSE)),"",VLOOKUP($A21,Recap!$A:CU,99,FALSE)) ->  | O21: =IF(ISNA(VLOOKUP($A21,Recap!$A:CV,100,FALSE)),"",VLOOKUP($A21,Recap!$A:CV,100,FALSE)) -> 
F22: =IF(ISNA(VLOOKUP($A21,Recap!$A:BG,59,FALSE)),"",VLOOKUP($A21,Recap!$A:BG,59,FALSE)) ->  | G22: =IF(ISNA(VLOOKUP($A21,Recap!$A:BH,60,FALSE)),"",VLOOKUP($A21,Recap!$A:BH,60,FALSE)) ->  | H22: =IF(ISNA(VLOOKUP($A21,Recap!$A:BI,61,FALSE)),"",VLOOKUP($A21,Recap!$A:BI,61,FALSE)) ->  | I22: =IF(ISNA(VLOOKUP($A21,Recap!$A:BJ,62,FALSE)),"",VLOOKUP($A21,Recap!$A:BJ,62,FALSE)) ->  | J22: =IF(ISNA(VLOOKUP($A21,Recap!$A:BK,63,FALSE)),"",VLOOKUP($A21,Recap!$A:BK,63,FALSE)) ->  | K22: =IF(ISNA(VLOOKUP($A21,Recap!$A:BL,64,FALSE)),"",VLOOKUP($A21,Recap!$A:BL,64,FALSE)) ->  | L22: =IF(ISNA(VLOOKUP($A21,Recap!$A:BM,65,FALSE)),"",VLOOKUP($A21,Recap!$A:BM,65,FALSE)) ->  | M22: =IF(ISNA(VLOOKUP($A21,Recap!$A:BN,66,FALSE)),"",VLOOKUP($A21,Recap!$A:BN,66,FALSE)) ->  | N22: =IF(ISNA(VLOOKUP($A21,Recap!$A:BO,67,FALSE)),"",VLOOKUP($A21,Recap!$A:BO,67,FALSE)) ->  | O22: =IF(ISNA(VLOOKUP($A21,Recap!$A:BP,68,FALSE)),"",VLOOKUP($A21,Recap!$A:BP,68,FALSE)) -> 
E23: =IF(ISNA(VLOOKUP(A23,Recap!A:BB,54,FALSE)),"",VLOOKUP(A23,Recap!A:BB,54,FALSE)) ->  | F23: =IF(ISNA(VLOOKUP($A23,Recap!$A:CM,91,FALSE)),"",VLOOKUP($A23,Recap!$A:CM,91,FALSE)) ->  | G23: =IF(ISNA(VLOOKUP($A23,Recap!$A:CN,92,FALSE)),"",VLOOKUP($A23,Recap!$A:CN,92,FALSE)) ->  | H23: =IF(ISNA(VLOOKUP($A23,Recap!$A:CO,93,FALSE)),"",VLOOKUP($A23,Recap!$A:CO,93,FALSE)) ->  | I23: =IF(ISNA(VLOOKUP($A23,Recap!$A:CP,94,FALSE)),"",VLOOKUP($A23,Recap!$A:CP,94,FALSE)) ->  | J23: =IF(ISNA(VLOOKUP($A23,Recap!$A:CQ,95,FALSE)),"",VLOOKUP($A23,Recap!$A:CQ,95,FALSE)) ->  | K23: =IF(ISNA(VLOOKUP($A23,Recap!$A:CR,96,FALSE)),"",VLOOKUP($A23,Recap!$A:CR,96,FALSE)) ->  | L23: =IF(ISNA(VLOOKUP($A23,Recap!$A:CS,97,FALSE)),"",VLOOKUP($A23,Recap!$A:CS,97,FALSE)) ->  | M23: =IF(ISNA(VLOOKUP($A23,Recap!$A:CT,98,FALSE)),"",VLOOKUP($A23,Recap!$A:CT,98,FALSE)) ->  | N23: =IF(ISNA(VLOOKUP($A23,Recap!$A:CU,99,FALSE)),"",VLOOKUP($A23,Recap!$A:CU,99,FALSE)) ->  | O23: =IF(ISNA(VLOOKUP($A23,Recap!$A:CV,100,FALSE)),"",VLOOKUP($A23,Recap!$A:CV,100,FALSE)) -> 
F24: =IF(ISNA(VLOOKUP($A23,Recap!$A:BG,59,FALSE)),"",VLOOKUP($A23,Recap!$A:BG,59,FALSE)) ->  | G24: =IF(ISNA(VLOOKUP($A23,Recap!$A:BH,60,FALSE)),"",VLOOKUP($A23,Recap!$A:BH,60,FALSE)) ->  | H24: =IF(ISNA(VLOOKUP($A23,Recap!$A:BI,61,FALSE)),"",VLOOKUP($A23,Recap!$A:BI,61,FALSE)) ->  | I24: =IF(ISNA(VLOOKUP($A23,Recap!$A:BJ,62,FALSE)),"",VLOOKUP($A23,Recap!$A:BJ,62,FALSE)) ->  | J24: =IF(ISNA(VLOOKUP($A23,Recap!$A:BK,63,FALSE)),"",VLOOKUP($A23,Recap!$A:BK,63,FALSE)) ->  | K24: =IF(ISNA(VLOOKUP($A23,Recap!$A:BL,64,FALSE)),"",VLOOKUP($A23,Recap!$A:BL,64,FALSE)) ->  | L24: =IF(ISNA(VLOOKUP($A23,Recap!$A:BM,65,FALSE)),"",VLOOKUP($A23,Recap!$A:BM,65,FALSE)) ->  | M24: =IF(ISNA(VLOOKUP($A23,Recap!$A:BN,66,FALSE)),"",VLOOKUP($A23,Recap!$A:BN,66,FALSE)) ->  | N24: =IF(ISNA(VLOOKUP($A23,Recap!$A:BO,67,FALSE)),"",VLOOKUP($A23,Recap!$A:BO,67,FALSE)) ->  | O24: =IF(ISNA(VLOOKUP($A23,Recap!$A:BP,68,FALSE)),"",VLOOKUP($A23,Recap!$A:BP,68,FALSE)) -> 
E25: =IF(ISNA(VLOOKUP(A25,Recap!A:BB,54,FALSE)),"",VLOOKUP(A25,Recap!A:BB,54,FALSE)) ->  | F25: =IF(ISNA(VLOOKUP($A25,Recap!$A:CM,91,FALSE)),"",VLOOKUP($A25,Recap!$A:CM,91,FALSE)) ->  | G25: =IF(ISNA(VLOOKUP($A25,Recap!$A:CN,92,FALSE)),"",VLOOKUP($A25,Recap!$A:CN,92,FALSE)) ->  | H25: =IF(ISNA(VLOOKUP($A25,Recap!$A:CO,93,FALSE)),"",VLOOKUP($A25,Recap!$A:CO,93,FALSE)) ->  | I25: =IF(ISNA(VLOOKUP($A25,Recap!$A:CP,94,FALSE)),"",VLOOKUP($A25,Recap!$A:CP,94,FALSE)) ->  | J25: =IF(ISNA(VLOOKUP($A25,Recap!$A:CQ,95,FALSE)),"",VLOOKUP($A25,Recap!$A:CQ,95,FALSE)) ->  | K25: =IF(ISNA(VLOOKUP($A25,Recap!$A:CR,96,FALSE)),"",VLOOKUP($A25,Recap!$A:CR,96,FALSE)) ->  | L25: =IF(ISNA(VLOOKUP($A25,Recap!$A:CS,97,FALSE)),"",VLOOKUP($A25,Recap!$A:CS,97,FALSE)) ->  | M25: =IF(ISNA(VLOOKUP($A25,Recap!$A:CT,98,FALSE)),"",VLOOKUP($A25,Recap!$A:CT,98,FALSE)) ->  | N25: =IF(ISNA(VLOOKUP($A25,Recap!$A:CU,99,FALSE)),"",VLOOKUP($A25,Recap!$A:CU,99,FALSE)) ->  | O25: =IF(ISNA(VLOOKUP($A25,Recap!$A:CV,100,FALSE)),"",VLOOKUP($A25,Recap!$A:CV,100,FALSE)) -> 
F26: =IF(ISNA(VLOOKUP($A25,Recap!$A:BG,59,FALSE)),"",VLOOKUP($A25,Recap!$A:BG,59,FALSE)) ->  | G26: =IF(ISNA(VLOOKUP($A25,Recap!$A:BH,60,FALSE)),"",VLOOKUP($A25,Recap!$A:BH,60,FALSE)) ->  | H26: =IF(ISNA(VLOOKUP($A25,Recap!$A:BI,61,FALSE)),"",VLOOKUP($A25,Recap!$A:BI,61,FALSE)) ->  | I26: =IF(ISNA(VLOOKUP($A25,Recap!$A:BJ,62,FALSE)),"",VLOOKUP($A25,Recap!$A:BJ,62,FALSE)) ->  | J26: =IF(ISNA(VLOOKUP($A25,Recap!$A:BK,63,FALSE)),"",VLOOKUP($A25,Recap!$A:BK,63,FALSE)) ->  | K26: =IF(ISNA(VLOOKUP($A25,Recap!$A:BL,64,FALSE)),"",VLOOKUP($A25,Recap!$A:BL,64,FALSE)) ->  | L26: =IF(ISNA(VLOOKUP($A25,Recap!$A:BM,65,FALSE)),"",VLOOKUP($A25,Recap!$A:BM,65,FALSE)) ->  | M26: =IF(ISNA(VLOOKUP($A25,Recap!$A:BN,66,FALSE)),"",VLOOKUP($A25,Recap!$A:BN,66,FALSE)) ->  | N26: =IF(ISNA(VLOOKUP($A25,Recap!$A:BO,67,FALSE)),"",VLOOKUP($A25,Recap!$A:BO,67,FALSE)) ->  | O26: =IF(ISNA(VLOOKUP($A25,Recap!$A:BP,68,FALSE)),"",VLOOKUP($A25,Recap!$A:BP,68,FALSE)) -> 
E27: =IF(ISNA(VLOOKUP(A27,Recap!A:BB,54,FALSE)),"",VLOOKUP(A27,Recap!A:BB,54,FALSE)) ->  | F27: =IF(ISNA(VLOOKUP($A27,Recap!$A:CM,91,FALSE)),"",VLOOKUP($A27,Recap!$A:CM,91,FALSE)) ->  | G27: =IF(ISNA(VLOOKUP($A27,Recap!$A:CN,92,FALSE)),"",VLOOKUP($A27,Recap!$A:CN,92,FALSE)) ->  | H27: =IF(ISNA(VLOOKUP($A27,Recap!$A:CO,93,FALSE)),"",VLOOKUP($A27,Recap!$A:CO,93,FALSE)) ->  | I27: =IF(ISNA(VLOOKUP($A27,Recap!$A:CP,94,FALSE)),"",VLOOKUP($A27,Recap!$A:CP,94,FALSE)) ->  | J27: =IF(ISNA(VLOOKUP($A27,Recap!$A:CQ,95,FALSE)),"",VLOOKUP($A27,Recap!$A:CQ,95,FALSE)) ->  | K27: =IF(ISNA(VLOOKUP($A27,Recap!$A:CR,96,FALSE)),"",VLOOKUP($A27,Recap!$A:CR,96,FALSE)) ->  | L27: =IF(ISNA(VLOOKUP($A27,Recap!$A:CS,97,FALSE)),"",VLOOKUP($A27,Recap!$A:CS,97,FALSE)) ->  | M27: =IF(ISNA(VLOOKUP($A27,Recap!$A:CT,98,FALSE)),"",VLOOKUP($A27,Recap!$A:CT,98,FALSE)) ->  | N27: =IF(ISNA(VLOOKUP($A27,Recap!$A:CU,99,FALSE)),"",VLOOKUP($A27,Recap!$A:CU,99,FALSE)) ->  | O27: =IF(ISNA(VLOOKUP($A27,Recap!$A:CV,100,FALSE)),"",VLOOKUP($A27,Recap!$A:CV,100,FALSE)) -> 
F28: =IF(ISNA(VLOOKUP($A27,Recap!$A:BG,59,FALSE)),"",VLOOKUP($A27,Recap!$A:BG,59,FALSE)) ->  | G28: =IF(ISNA(VLOOKUP($A27,Recap!$A:BH,60,FALSE)),"",VLOOKUP($A27,Recap!$A:BH,60,FALSE)) ->  | H28: =IF(ISNA(VLOOKUP($A27,Recap!$A:BI,61,FALSE)),"",VLOOKUP($A27,Recap!$A:BI,61,FALSE)) ->  | I28: =IF(ISNA(VLOOKUP($A27,Recap!$A:BJ,62,FALSE)),"",VLOOKUP($A27,Recap!$A:BJ,62,FALSE)) ->  | J28: =IF(ISNA(VLOOKUP($A27,Recap!$A:BK,63,FALSE)),"",VLOOKUP($A27,Recap!$A:BK,63,FALSE)) ->  | K28: =IF(ISNA(VLOOKUP($A27,Recap!$A:BL,64,FALSE)),"",VLOOKUP($A27,Recap!$A:BL,64,FALSE)) ->  | L28: =IF(ISNA(VLOOKUP($A27,Recap!$A:BM,65,FALSE)),"",VLOOKUP($A27,Recap!$A:BM,65,FALSE)) ->  | M28: =IF(ISNA(VLOOKUP($A27,Recap!$A:BN,66,FALSE)),"",VLOOKUP($A27,Recap!$A:BN,66,FALSE)) ->  | N28: =IF(ISNA(VLOOKUP($A27,Recap!$A:BO,67,FALSE)),"",VLOOKUP($A27,Recap!$A:BO,67,FALSE)) ->  | O28: =IF(ISNA(VLOOKUP($A27,Recap!$A:BP,68,FALSE)),"",VLOOKUP($A27,Recap!$A:BP,68,FALSE)) -> 
E29: =IF(ISNA(VLOOKUP(A29,Recap!A:BB,54,FALSE)),"",VLOOKUP(A29,Recap!A:BB,54,FALSE)) ->  | F29: =IF(ISNA(VLOOKUP($A29,Recap!$A:CM,91,FALSE)),"",VLOOKUP($A29,Recap!$A:CM,91,FALSE)) ->  | G29: =IF(ISNA(VLOOKUP($A29,Recap!$A:CN,92,FALSE)),"",VLOOKUP($A29,Recap!$A:CN,92,FALSE)) ->  | H29: =IF(ISNA(VLOOKUP($A29,Recap!$A:CO,93,FALSE)),"",VLOOKUP($A29,Recap!$A:CO,93,FALSE)) ->  | I29: =IF(ISNA(VLOOKUP($A29,Recap!$A:CP,94,FALSE)),"",VLOOKUP($A29,Recap!$A:CP,94,FALSE)) ->  | J29: =IF(ISNA(VLOOKUP($A29,Recap!$A:CQ,95,FALSE)),"",VLOOKUP($A29,Recap!$A:CQ,95,FALSE)) ->  | K29: =IF(ISNA(VLOOKUP($A29,Recap!$A:CR,96,FALSE)),"",VLOOKUP($A29,Recap!$A:CR,96,FALSE)) ->  | L29: =IF(ISNA(VLOOKUP($A29,Recap!$A:CS,97,FALSE)),"",VLOOKUP($A29,Recap!$A:CS,97,FALSE)) ->  | M29: =IF(ISNA(VLOOKUP($A29,Recap!$A:CT,98,FALSE)),"",VLOOKUP($A29,Recap!$A:CT,98,FALSE)) ->  | N29: =IF(ISNA(VLOOKUP($A29,Recap!$A:CU,99,FALSE)),"",VLOOKUP($A29,Recap!$A:CU,99,FALSE)) ->  | O29: =IF(ISNA(VLOOKUP($A29,Recap!$A:CV,100,FALSE)),"",VLOOKUP($A29,Recap!$A:CV,100,FALSE)) -> 
F30: =IF(ISNA(VLOOKUP($A29,Recap!$A:BG,59,FALSE)),"",VLOOKUP($A29,Recap!$A:BG,59,FALSE)) ->  | G30: =IF(ISNA(VLOOKUP($A29,Recap!$A:BH,60,FALSE)),"",VLOOKUP($A29,Recap!$A:BH,60,FALSE)) ->  | H30: =IF(ISNA(VLOOKUP($A29,Recap!$A:BI,61,FALSE)),"",VLOOKUP($A29,Recap!$A:BI,61,FALSE)) ->  | I30: =IF(ISNA(VLOOKUP($A29,Recap!$A:BJ,62,FALSE)),"",VLOOKUP($A29,Recap!$A:BJ,62,FALSE)) ->  | J30: =IF(ISNA(VLOOKUP($A29,Recap!$A:BK,63,FALSE)),"",VLOOKUP($A29,Recap!$A:BK,63,FALSE)) ->  | K30: =IF(ISNA(VLOOKUP($A29,Recap!$A:BL,64,FALSE)),"",VLOOKUP($A29,Recap!$A:BL,64,FALSE)) ->  | L30: =IF(ISNA(VLOOKUP($A29,Recap!$A:BM,65,FALSE)),"",VLOOKUP($A29,Recap!$A:BM,65,FALSE)) ->  | M30: =IF(ISNA(VLOOKUP($A29,Recap!$A:BN,66,FALSE)),"",VLOOKUP($A29,Recap!$A:BN,66,FALSE)) ->  | N30: =IF(ISNA(VLOOKUP($A29,Recap!$A:BO,67,FALSE)),"",VLOOKUP($A29,Recap!$A:BO,67,FALSE)) ->  | O30: =IF(ISNA(VLOOKUP($A29,Recap!$A:BP,68,FALSE)),"",VLOOKUP($A29,Recap!$A:BP,68,FALSE)) -> 
E31: =IF(ISNA(VLOOKUP(A31,Recap!A:BB,54,FALSE)),"",VLOOKUP(A31,Recap!A:BB,54,FALSE)) ->  | F31: =IF(ISNA(VLOOKUP($A31,Recap!$A:CM,91,FALSE)),"",VLOOKUP($A31,Recap!$A:CM,91,FALSE)) ->  | G31: =IF(ISNA(VLOOKUP($A31,Recap!$A:CN,92,FALSE)),"",VLOOKUP($A31,Recap!$A:CN,92,FALSE)) ->  | H31: =IF(ISNA(VLOOKUP($A31,Recap!$A:CO,93,FALSE)),"",VLOOKUP($A31,Recap!$A:CO,93,FALSE)) ->  | I31: =IF(ISNA(VLOOKUP($A31,Recap!$A:CP,94,FALSE)),"",VLOOKUP($A31,Recap!$A:CP,94,FALSE)) ->  | J31: =IF(ISNA(VLOOKUP($A31,Recap!$A:CQ,95,FALSE)),"",VLOOKUP($A31,Recap!$A:CQ,95,FALSE)) ->  | K31: =IF(ISNA(VLOOKUP($A31,Recap!$A:CR,96,FALSE)),"",VLOOKUP($A31,Recap!$A:CR,96,FALSE)) ->  | L31: =IF(ISNA(VLOOKUP($A31,Recap!$A:CS,97,FALSE)),"",VLOOKUP($A31,Recap!$A:CS,97,FALSE)) ->  | M31: =IF(ISNA(VLOOKUP($A31,Recap!$A:CT,98,FALSE)),"",VLOOKUP($A31,Recap!$A:CT,98,FALSE)) ->  | N31: =IF(ISNA(VLOOKUP($A31,Recap!$A:CU,99,FALSE)),"",VLOOKUP($A31,Recap!$A:CU,99,FALSE)) ->  | O31: =IF(ISNA(VLOOKUP($A31,Recap!$A:CV,100,FALSE)),"",VLOOKUP($A31,Recap!$A:CV,100,FALSE)) -> 
F32: =IF(ISNA(VLOOKUP($A31,Recap!$A:BG,59,FALSE)),"",VLOOKUP($A31,Recap!$A:BG,59,FALSE)) ->  | G32: =IF(ISNA(VLOOKUP($A31,Recap!$A:BH,60,FALSE)),"",VLOOKUP($A31,Recap!$A:BH,60,FALSE)) ->  | H32: =IF(ISNA(VLOOKUP($A31,Recap!$A:BI,61,FALSE)),"",VLOOKUP($A31,Recap!$A:BI,61,FALSE)) ->  | I32: =IF(ISNA(VLOOKUP($A31,Recap!$A:BJ,62,FALSE)),"",VLOOKUP($A31,Recap!$A:BJ,62,FALSE)) ->  | J32: =IF(ISNA(VLOOKUP($A31,Recap!$A:BK,63,FALSE)),"",VLOOKUP($A31,Recap!$A:BK,63,FALSE)) ->  | K32: =IF(ISNA(VLOOKUP($A31,Recap!$A:BL,64,FALSE)),"",VLOOKUP($A31,Recap!$A:BL,64,FALSE)) ->  | L32: =IF(ISNA(VLOOKUP($A31,Recap!$A:BM,65,FALSE)),"",VLOOKUP($A31,Recap!$A:BM,65,FALSE)) ->  | M32: =IF(ISNA(VLOOKUP($A31,Recap!$A:BN,66,FALSE)),"",VLOOKUP($A31,Recap!$A:BN,66,FALSE)) ->  | N32: =IF(ISNA(VLOOKUP($A31,Recap!$A:BO,67,FALSE)),"",VLOOKUP($A31,Recap!$A:BO,67,FALSE)) ->  | O32: =IF(ISNA(VLOOKUP($A31,Recap!$A:BP,68,FALSE)),"",VLOOKUP($A31,Recap!$A:BP,68,FALSE)) -> 
E33: =IF(ISNA(VLOOKUP(A33,Recap!A:BB,54,FALSE)),"",VLOOKUP(A33,Recap!A:BB,54,FALSE)) ->  | F33: =IF(ISNA(VLOOKUP($A33,Recap!$A:CM,91,FALSE)),"",VLOOKUP($A33,Recap!$A:CM,91,FALSE)) ->  | G33: =IF(ISNA(VLOOKUP($A33,Recap!$A:CN,92,FALSE)),"",VLOOKUP($A33,Recap!$A:CN,92,FALSE)) ->  | H33: =IF(ISNA(VLOOKUP($A33,Recap!$A:CO,93,FALSE)),"",VLOOKUP($A33,Recap!$A:CO,93,FALSE)) ->  | I33: =IF(ISNA(VLOOKUP($A33,Recap!$A:CP,94,FALSE)),"",VLOOKUP($A33,Recap!$A:CP,94,FALSE)) ->  | J33: =IF(ISNA(VLOOKUP($A33,Recap!$A:CQ,95,FALSE)),"",VLOOKUP($A33,Recap!$A:CQ,95,FALSE)) ->  | K33: =IF(ISNA(VLOOKUP($A33,Recap!$A:CR,96,FALSE)),"",VLOOKUP($A33,Recap!$A:CR,96,FALSE)) ->  | L33: =IF(ISNA(VLOOKUP($A33,Recap!$A:CS,97,FALSE)),"",VLOOKUP($A33,Recap!$A:CS,97,FALSE)) ->  | M33: =IF(ISNA(VLOOKUP($A33,Recap!$A:CT,98,FALSE)),"",VLOOKUP($A33,Recap!$A:CT,98,FALSE)) ->  | N33: =IF(ISNA(VLOOKUP($A33,Recap!$A:CU,99,FALSE)),"",VLOOKUP($A33,Recap!$A:CU,99,FALSE)) ->  | O33: =IF(ISNA(VLOOKUP($A33,Recap!$A:CV,100,FALSE)),"",VLOOKUP($A33,Recap!$A:CV,100,FALSE)) -> 
F34: =IF(ISNA(VLOOKUP($A33,Recap!$A:BG,59,FALSE)),"",VLOOKUP($A33,Recap!$A:BG,59,FALSE)) ->  | G34: =IF(ISNA(VLOOKUP($A33,Recap!$A:BH,60,FALSE)),"",VLOOKUP($A33,Recap!$A:BH,60,FALSE)) ->  | H34: =IF(ISNA(VLOOKUP($A33,Recap!$A:BI,61,FALSE)),"",VLOOKUP($A33,Recap!$A:BI,61,FALSE)) ->  | I34: =IF(ISNA(VLOOKUP($A33,Recap!$A:BJ,62,FALSE)),"",VLOOKUP($A33,Recap!$A:BJ,62,FALSE)) ->  | J34: =IF(ISNA(VLOOKUP($A33,Recap!$A:BK,63,FALSE)),"",VLOOKUP($A33,Recap!$A:BK,63,FALSE)) ->  | K34: =IF(ISNA(VLOOKUP($A33,Recap!$A:BL,64,FALSE)),"",VLOOKUP($A33,Recap!$A:BL,64,FALSE)) ->  | L34: =IF(ISNA(VLOOKUP($A33,Recap!$A:BM,65,FALSE)),"",VLOOKUP($A33,Recap!$A:BM,65,FALSE)) ->  | M34: =IF(ISNA(VLOOKUP($A33,Recap!$A:BN,66,FALSE)),"",VLOOKUP($A33,Recap!$A:BN,66,FALSE)) ->  | N34: =IF(ISNA(VLOOKUP($A33,Recap!$A:BO,67,FALSE)),"",VLOOKUP($A33,Recap!$A:BO,67,FALSE)) ->  | O34: =IF(ISNA(VLOOKUP($A33,Recap!$A:BP,68,FALSE)),"",VLOOKUP($A33,Recap!$A:BP,68,FALSE)) -> 
E35: =IF(ISNA(VLOOKUP(A35,Recap!A:BB,54,FALSE)),"",VLOOKUP(A35,Recap!A:BB,54,FALSE)) ->  | F35: =IF(ISNA(VLOOKUP($A35,Recap!$A:CM,91,FALSE)),"",VLOOKUP($A35,Recap!$A:CM,91,FALSE)) ->  | G35: =IF(ISNA(VLOOKUP($A35,Recap!$A:CN,92,FALSE)),"",VLOOKUP($A35,Recap!$A:CN,92,FALSE)) ->  | H35: =IF(ISNA(VLOOKUP($A35,Recap!$A:CO,93,FALSE)),"",VLOOKUP($A35,Recap!$A:CO,93,FALSE)) ->  | I35: =IF(ISNA(VLOOKUP($A35,Recap!$A:CP,94,FALSE)),"",VLOOKUP($A35,Recap!$A:CP,94,FALSE)) ->  | J35: =IF(ISNA(VLOOKUP($A35,Recap!$A:CQ,95,FALSE)),"",VLOOKUP($A35,Recap!$A:CQ,95,FALSE)) ->  | K35: =IF(ISNA(VLOOKUP($A35,Recap!$A:CR,96,FALSE)),"",VLOOKUP($A35,Recap!$A:CR,96,FALSE)) ->  | L35: =IF(ISNA(VLOOKUP($A35,Recap!$A:CS,97,FALSE)),"",VLOOKUP($A35,Recap!$A:CS,97,FALSE)) ->  | M35: =IF(ISNA(VLOOKUP($A35,Recap!$A:CT,98,FALSE)),"",VLOOKUP($A35,Recap!$A:CT,98,FALSE)) ->  | N35: =IF(ISNA(VLOOKUP($A35,Recap!$A:CU,99,FALSE)),"",VLOOKUP($A35,Recap!$A:CU,99,FALSE)) ->  | O35: =IF(ISNA(VLOOKUP($A35,Recap!$A:CV,100,FALSE)),"",VLOOKUP($A35,Recap!$A:CV,100,FALSE)) -> 
F36: =IF(ISNA(VLOOKUP($A35,Recap!$A:BG,59,FALSE)),"",VLOOKUP($A35,Recap!$A:BG,59,FALSE)) ->  | G36: =IF(ISNA(VLOOKUP($A35,Recap!$A:BH,60,FALSE)),"",VLOOKUP($A35,Recap!$A:BH,60,FALSE)) ->  | H36: =IF(ISNA(VLOOKUP($A35,Recap!$A:BI,61,FALSE)),"",VLOOKUP($A35,Recap!$A:BI,61,FALSE)) ->  | I36: =IF(ISNA(VLOOKUP($A35,Recap!$A:BJ,62,FALSE)),"",VLOOKUP($A35,Recap!$A:BJ,62,FALSE)) ->  | J36: =IF(ISNA(VLOOKUP($A35,Recap!$A:BK,63,FALSE)),"",VLOOKUP($A35,Recap!$A:BK,63,FALSE)) ->  | K36: =IF(ISNA(VLOOKUP($A35,Recap!$A:BL,64,FALSE)),"",VLOOKUP($A35,Recap!$A:BL,64,FALSE)) ->  | L36: =IF(ISNA(VLOOKUP($A35,Recap!$A:BM,65,FALSE)),"",VLOOKUP($A35,Recap!$A:BM,65,FALSE)) ->  | M36: =IF(ISNA(VLOOKUP($A35,Recap!$A:BN,66,FALSE)),"",VLOOKUP($A35,Recap!$A:BN,66,FALSE)) ->  | N36: =IF(ISNA(VLOOKUP($A35,Recap!$A:BO,67,FALSE)),"",VLOOKUP($A35,Recap!$A:BO,67,FALSE)) ->  | O36: =IF(ISNA(VLOOKUP($A35,Recap!$A:BP,68,FALSE)),"",VLOOKUP($A35,Recap!$A:BP,68,FALSE)) -> 
C39: Analyse préalable
C40: Phase terrain
C41: Validation Interne
C42: Contradictoire
C43: Rapport définitif
C44: Diffusion
C45: Seminaire de restitution
C46: Projet du plan d'action
C47: Validation du plan d'action

Sheet Planning auditeurs (hidden)
B1: Alain PERROT | D1: Alain SPAENLE | F1: Alexandre LE CORRE | H1: Arnaud MUDRY | J1: Corinne GALODE | L1: Joel MOSSARD | N1: Loic LE DEUNFF | P1: Mathias DIEZ | R1: Oliviana PIAZZA | T1: Patricia DAVANNE | V1: Pierre Jean BONNOIT | X1: Said BOUNOUA | Z1: Sylvie ZEILIG | AB1: Teddy FEUILLASTRE
B2: Début | C2: Fin | D2: Début | E2: Fin | F2: Début | G2: Fin | H2: Début | I2: Fin | J2: Début | K2: Fin | L2: Début | M2: Fin | N2: Début | O2: Fin | P2: Début | Q2: Fin | R2: Début | S2: Fin | T2: Début | U2: Fin | V2: Début | W2: Fin | X2: Début | Y2: Fin | Z2: Début | AA2: Fin | AB2: Début | AC2: Fin
A3: Colonne1 | B3: Colonne2 | C3: Colonne3 | D3: Colonne4 | E3: Colonne5 | F3: Colonne6 | G3: Colonne7 | H3: Colonne8 | I3: Colonne9 | J3: Colonne10 | K3: Colonne11 | L3: Colonne12 | M3: Colonne13 | N3: Colonne14 | O3: Colonne15 | P3: Colonne16 | Q3: Colonne17 | R3: Colonne18 | S3: Colonne19 | T3: Colonne20 | U3: Colonne21 | V3: Colonne22 | W3: Colonne23 | X3: Colonne24 | Y3: Colonne25 | Z3: Colonne26 | AA3: Colonne27 | AB3: Colonne28 | AC3: Colonne29
A4: =IF(A68="","",A68) -> a - a - a | B4: =IF(B68="","",WEEKNUM(B68)) ->  | R4: =IF(R68="","",WEEKNUM(R68)) -> 
A5: Structure - CPAM Côte-d'Or - 2016 | B5: =IF(B69="","",WEEKNUM(B69)) ->  | J5: 12 | K5: 31 | L5: 12 | M5: 31 | R5: 12 | S5: 31
A6: Structure - CPAM Flandres-Dunkerque-Armentières - 2016 | B6: =IF(B70="","",WEEKNUM(B70)) ->  | F6: 6 | G6: 25 | L6: 6 | M6: 25 | R6: 6 | S6: 25
B7: =IF(B71="","",WEEKNUM(B71)) -> 
B8: =IF(B72="","",WEEKNUM(B72)) -> 
B9: =IF(B73="","",WEEKNUM(B73)) -> 
B10: =IF(B74="","",WEEKNUM(B74)) -> 
B11: =IF(B75="","",WEEKNUM(B75)) -> 
B12: =IF(B76="","",WEEKNUM(B76)) -> 
B13: =IF(B77="","",WEEKNUM(B77)) -> 
B14: =IF(B78="","",WEEKNUM(B78)) -> 
B15: =IF(B79="","",WEEKNUM(B79)) -> 
B16: =IF(B80="","",WEEKNUM(B80)) -> 
B17: =IF(B81="","",WEEKNUM(B81)) -> 
B18: =IF(B82="","",WEEKNUM(B82)) -> 
B19: =IF(B83="","",WEEKNUM(B83)) -> 
B20: =IF(B84="","",WEEKNUM(B84)) -> 
B21: =IF(B85="","",WEEKNUM(B85)) -> 
B22: =IF(B86="","",WEEKNUM(B86)) -> 
B23: =IF(B87="","",WEEKNUM(B87)) -> 
B24: =IF(B88="","",WEEKNUM(B88)) -> 
B25: =IF(B89="","",WEEKNUM(B89)) -> 
B26: =IF(B90="","",WEEKNUM(B90)) -> 
B27: =IF(B91="","",WEEKNUM(B91)) -> 
B28: =IF(B92="","",WEEKNUM(B92)) -> 
B29: =IF(B93="","",WEEKNUM(B93)) -> 
B30: =IF(B94="","",WEEKNUM(B94)) -> 
B31: =IF(B95="","",WEEKNUM(B95)) -> 
B32: =IF(B96="","",WEEKNUM(B96)) -> 
B33: =IF(B97="","",WEEKNUM(B97)) -> 
B34: =IF(B98="","",WEEKNUM(B98)) -> 
B35: =IF(B99="","",WEEKNUM(B99)) -> 
A36: =IF(A100="","",A100) ->  | B36: =IF(B100="","",WEEKNUM(B100)) -> 
B37: =IF(B101="","",WEEKNUM(B101)) -> 
B38: =IF(B102="","",WEEKNUM(B102)) -> 
B39: =IF(B103="","",WEEKNUM(B103)) -> 
B40: =IF(B104="","",WEEKNUM(B104)) -> 
B41: =IF(B105="","",WEEKNUM(B105)) -> 
B42: =IF(B106="","",WEEKNUM(B106)) -> 
B43: =IF(B107="","",WEEKNUM(B107)) -> 
B44: =IF(B108="","",WEEKNUM(B108)) -> 
B45: =IF(B109="","",WEEKNUM(B109)) -> 
B46: =IF(B110="","",WEEKNUM(B110)) -> 
B47: =IF(B111="","",WEEKNUM(B111)) -> 
B48: =IF(B112="","",WEEKNUM(B112)) -> 
B49: =IF(B113="","",WEEKNUM(B113)) -> 
B50: =IF(B114="","",WEEKNUM(B114)) -> 
B51: =IF(B115="","",WEEKNUM(B115)) -> 
B52: =IF(B116="","",WEEKNUM(B116)) -> 
B53: =IF(B117="","",WEEKNUM(B117)) -> 
B54: =IF(B118="","",WEEKNUM(B118)) -> 
B55: =IF(B119="","",WEEKNUM(B119)) -> 
B56: =IF(B120="","",WEEKNUM(B120)) -> 
B57: =IF(B121="","",WEEKNUM(B121)) -> 
B58: =IF(B122="","",WEEKNUM(B122)) -> 
B59: =IF(B123="","",WEEKNUM(B123)) -> 
B60: =IF(B124="","",WEEKNUM(B124)) -> 
B61: =IF(B125="","",WEEKNUM(B125)) -> 
B62: =IF(B126="","",WEEKNUM(B126)) -> 
B63: =IF(B127="","",WEEKNUM(B127)) -> 
B64: =IF(B128="","",WEEKNUM(B128)) -> 
B65: Alain PERROT | D65: Alain SPAENLE | F65: Alexandre LE CORRE | H65: Arnaud MUDRY | J65: Corinne GALODE | L65: Joel MOSSARD | N65: Loic LE DEUNFF | P65: Mathias DIEZ | R65: Oliviana PIAZZA | T65: Patricia DAVANNE | V65: Pierre Jean BONNOIT | X65: Said BOUNOUA | Z65: Sylvie ZEILIG | AB65: Teddy FEUILLASTRE
B66: Début | C66: Fin | D66: Début | E66: Fin | F66: Début | G66: Fin | H66: Début | I66: Fin | J66: Début | K66: Fin | L66: Début | M66: Fin | N66: Début | O66: Fin | P66: Début | Q66: Fin | R66: Début | S66: Fin | T66: Début | U66: Fin | V66: Début | W66: Fin | X66: Début | Y66: Fin | Z66: Début | AA66: Fin | AB66: Début | AC66: Fin
A67: Colonne29 | B67: Colonne1 | C67: Colonne2 | D67: Colonne3 | E67: Colonne4 | F67: Colonne5 | G67: Colonne6 | H67: Colonne7 | I67: Colonne8 | J67: Colonne9 | K67: Colonne10 | L67: Colonne11 | M67: Colonne12 | N67: Colonne13 | O67: Colonne14 | P67: Colonne15 | Q67: Colonne16 | R67: Colonne17 | S67: Colonne18 | T67: Colonne19 | U67: Colonne20 | V67: Colonne21 | W67: Colonne22 | X67: Colonne23 | Y67: Colonne24 | Z67: Colonne25 | AA67: Colonne26 | AB67: Colonne27 | AC67: Colonne28
A68: a - a - a | B68: =IF(VLOOKUP(Tableau4[[#This Row],[Colonne29]],table,33)=B$65,VLOOKUP(Tableau4[[#This Row],[Colonne29]],table,20),IF(VLOOKUP(Tableau4[[#This Row],[Colonne29]],table,34)=B$65,VLOOKUP(Tableau4[[#This Row],[Colonne29]],table,20),IF(VLOOKUP(Tableau4[[#This Row],[Colonne29]],table,35)=B$65,VLOOKUP(Tableau4[[#This Row],[Colonne29]],table,20),IF(VLOOKUP(Tableau4[[#This Row],[Colonne29]],table,36)=B$65,VLOOKUP(Tableau4[[#This Row],[Colonne29]],table,20),"")))) ->  | C68: =IF(VLOOKUP(Tableau4[[#This Row],[Colonne29]],table,33)=B$65,VLOOKUP(Tableau4[[#This Row],[Colonne29]],table,21),IF(VLOOKUP(Tableau4[[#This Row],[Colonne29]],table,34)=B$65,VLOOKUP(Tableau4[[#This Row],[Colonne29]],table,21),IF(VLOOKUP(Tableau4[[#This Row],[Colonne29]],table,35)=B$65,VLOOKUP(Tableau4[[#This Row],[Colonne29]],table,21),IF(VLOOKUP(Tableau4[[#This Row],[Colonne29]],table,36)=B$65,VLOOKUP(Tableau4[[#This Row],[Colonne29]],table,21),"")))) ->  | D68: =IF(VLOOKUP(Tableau4[[#This Row],[Colonne29]],table,33)=D$65,VLOOKUP(Tableau4[[#This Row],[Colonne29]],table,20),IF(VLOOKUP(Tableau4[[#This Row],[Colonne29]],table,34)=D$65,VLOOKUP(Tableau4[[#This Row],[Colonne29]],table,20),IF(VLOOKUP(Tableau4[[#This Row],[Colonne29]],table,35)=D$65,VLOOKUP(Tableau4[[#This Row],[Colonne29]],table,20),IF(VLOOKUP(Tableau4[[#This Row],[Colonne29]],table,36)=D$65,VLOOKUP(Tableau4[[#This Row],[Colonne29]],table,20),"")))) ->  | E68: =IF(VLOOKUP(Tableau4[[#This Row],[Colonne29]],table,33)=D$65,VLOOKUP(Tableau4[[#This Row],[Colonne29]],table,21),IF(VLOOKUP(Tableau4[[#This Row],[Colonne29]],table,34)=D$65,VLOOKUP(Tableau4[[#This Row],[Colonne29]],table,21),IF(VLOOKUP(Tableau4[[#This Row],[Colonne29]],table,35)=D$65,VLOOKUP(Tableau4[[#This Row],[Colonne29]],table,21),IF(VLOOKUP(Tableau4[[#This Row],[Colonne29]],table,36)=D$65,VLOOKUP(Tableau4[[#This Row],[Colonne29]],table,21),"")))) ->  | F68: =IF(VLOOKUP(Tableau4[[#This Row],[Colonne29]],table,33)=F$65,VLOOKUP(Tableau4[[#This Row],[Colonne29]],table,20),IF(VLOOKUP(Tableau4[[#This Row],[Colonne29]],table,34)=F$65,VLOOKUP(Tableau4[[#This Row],[Colonne29]],table,20),IF(VLOOKUP(Tableau4[[#This Row],[Colonne29]],table,35)=F$65,VLOOKUP(Tableau4[[#This Row],[Colonne29]],table,20),IF(VLOOKUP(Tableau4[[#This Row],[Colonne29]],table,36)=F$65,VLOOKUP(Tableau4[[#This Row],[Colonne29]],table,20),"")))) ->  | G68: =IF(VLOOKUP(Tableau4[[#This Row],[Colonne29]],table,33)=F$65,VLOOKUP(Tableau4[[#This Row],[Colonne29]],table,21),IF(VLOOKUP(Tableau4[[#This Row],[Colonne29]],table,34)=F$65,VLOOKUP(Tableau4[[#This Row],[Colonne29]],table,21),IF(VLOOKUP(Tableau4[[#This Row],[Colonne29]],table,35)=F$65,VLOOKUP(Tableau4[[#This Row],[Colonne29]],table,21),IF(VLOOKUP(Tableau4[[#This Row],[Colonne29]],table,36)=F$65,VLOOKUP(Tableau4[[#This Row],[Colonne29]],table,21),"")))) ->  | H68: =IF(VLOOKUP(Tableau4[[#This Row],[Colonne29]],table,33)=H$65,VLOOKUP(Tableau4[[#This Row],[Colonne29]],table,20),IF(VLOOKUP(Tableau4[[#This Row],[Colonne29]],table,34)=H$65,VLOOKUP(Tableau4[[#This Row],[Colonne29]],table,20),IF(VLOOKUP(Tableau4[[#This Row],[Colonne29]],table,35)=H$65,VLOOKUP(Tableau4[[#This Row],[Colonne29]],table,20),IF(VLOOKUP(Tableau4[[#This Row],[Colonne29]],table,36)=H$65,VLOOKUP(Tableau4[[#This Row],[Colonne29]],table,20),"")))) ->  | I68: =IF(VLOOKUP(Tableau4[[#This Row],[Colonne29]],table,33)=H$65,VLOOKUP(Tableau4[[#This Row],[Colonne29]],table,21),IF(VLOOKUP(Tableau4[[#This Row],[Colonne29]],table,34)=H$65,VLOOKUP(Tableau4[[#This Row],[Colonne29]],table,21),IF(VLOOKUP(Tableau4[[#This Row],[Colonne29]],table,35)=H$65,VLOOKUP(Tableau4[[#This Row],[Colonne29]],table,21),IF(VLOOKUP(Tableau4[[#This Row],[Colonne29]],table,36)=H$65,VLOOKUP(Tableau4[[#This Row],[Colonne29]],table,21),"")))) ->  | J68: =IF(VLOOKUP(Tableau4[[#This Row],[Colonne29]],table,33)=J$65,VLOOKUP(Tableau4[[#This Row],[Colonne29]],table,20),IF(VLOOKUP(Tableau4[[#This Row],[Colonne29]],table,34)=J$65,VLOOKUP(Tableau4[[#This Row],[Colonne29]],table,20),IF(VLOOKUP(Tableau4[[#This Row],[Colonne29]],table,35)=J$65,VLOOKUP(Tableau4[[#This Row],[Colonne29]],table,20),IF(VLOOKUP(Tableau4[[#This Row],[Colonne29]],table,36)=J$65,VLOOKUP(Tableau4[[#This Row],[Colonne29]],table,20),"")))) ->  | K68: =IF(VLOOKUP(Tableau4[[#This Row],[Colonne29]],table,33)=J$65,VLOOKUP(Tableau4[[#This Row],[Colonne29]],table,21),IF(VLOOKUP(Tableau4[[#This Row],[Colonne29]],table,34)=J$65,VLOOKUP(Tableau4[[#This Row],[Colonne29]],table,21),IF(VLOOKUP(Tableau4[[#This Row],[Colonne29]],table,35)=J$65,VLOOKUP(Tableau4[[#This Row],[Colonne29]],table,21),IF(VLOOKUP(Tableau4[[#This Row],[Colonne29]],table,36)=J$65,VLOOKUP(Tableau4[[#This Row],[Colonne29]],table,21),"")))) ->  | L68: =IF(VLOOKUP(Tableau4[[#This Row],[Colonne29]],table,33)=L$65,VLOOKUP(Tableau4[[#This Row],[Colonne29]],table,20),IF(VLOOKUP(Tableau4[[#This Row],[Colonne29]],table,34)=L$65,VLOOKUP(Tableau4[[#This Row],[Colonne29]],table,20),IF(VLOOKUP(Tableau4[[#This Row],[Colonne29]],table,35)=L$65,VLOOKUP(Tableau4[[#This Row],[Colonne29]],table,20),IF(VLOOKUP(Tableau4[[#This Row],[Colonne29]],table,36)=L$65,VLOOKUP(Tableau4[[#This Row],[Colonne29]],table,20),"")))) ->  | M68: =IF(VLOOKUP(Tableau4[[#This Row],[Colonne29]],table,33)=L$65,VLOOKUP(Tableau4[[#This Row],[Colonne29]],table,21),IF(VLOOKUP(Tableau4[[#This Row],[Colonne29]],table,34)=L$65,VLOOKUP(Tableau4[[#This Row],[Colonne29]],table,21),IF(VLOOKUP(Tableau4[[#This Row],[Colonne29]],table,35)=L$65,VLOOKUP(Tableau4[[#This Row],[Colonne29]],table,21),IF(VLOOKUP(Tableau4[[#This Row],[Colonne29]],table,36)=L$65,VLOOKUP(Tableau4[[#This Row],[Colonne29]],table,21),"")))) ->  | N68: =IF(VLOOKUP(Tableau4[[#This Row],[Colonne29]],table,33)=N$65,VLOOKUP(Tableau4[[#This Row],[Colonne29]],table,20),IF(VLOOKUP(Tableau4[[#This Row],[Colonne29]],table,34)=N$65,VLOOKUP(Tableau4[[#This Row],[Colonne29]],table,20),IF(VLOOKUP(Tableau4[[#This Row],[Colonne29]],table,35)=N$65,VLOOKUP(Tableau4[[#This Row],[Colonne29]],table,20),IF(VLOOKUP(Tableau4[[#This Row],[Colonne29]],table,36)=N$65,VLOOKUP(Tableau4[[#This Row],[Colonne29]],table,20),"")))) ->  | O68: =IF(VLOOKUP(Tableau4[[#This Row],[Colonne29]],table,33)=N$65,VLOOKUP(Tableau4[[#This Row],[Colonne29]],table,21),IF(VLOOKUP(Tableau4[[#This Row],[Colonne29]],table,34)=N$65,VLOOKUP(Tableau4[[#This Row],[Colonne29]],table,21),IF(VLOOKUP(Tableau4[[#This Row],[Colonne29]],table,35)=N$65,VLOOKUP(Tableau4[[#This Row],[Colonne29]],table,21),IF(VLOOKUP(Tableau4[[#This Row],[Colonne29]],table,36)=N$65,VLOOKUP(Tableau4[[#This Row],[Colonne29]],table,21),"")))) ->  | P68: =IF(VLOOKUP(Tableau4[[#This Row],[Colonne29]],table,33)=P$65,VLOOKUP(Tableau4[[#This Row],[Colonne29]],table,20),IF(VLOOKUP(Tableau4[[#This Row],[Colonne29]],table,34)=P$65,VLOOKUP(Tableau4[[#This Row],[Colonne29]],table,20),IF(VLOOKUP(Tableau4[[#This Row],[Colonne29]],table,35)=P$65,VLOOKUP(Tableau4[[#This Row],[Colonne29]],table,20),IF(VLOOKUP(Tableau4[[#This Row],[Colonne29]],table,36)=P$65,VLOOKUP(Tableau4[[#This Row],[Colonne29]],table,20),"")))) ->  | Q68: =IF(VLOOKUP(Tableau4[[#This Row],[Colonne29]],table,33)=P$65,VLOOKUP(Tableau4[[#This Row],[Colonne29]],table,21),IF(VLOOKUP(Tableau4[[#This Row],[Colonne29]],table,34)=P$65,VLOOKUP(Tableau4[[#This Row],[Colonne29]],table,21),IF(VLOOKUP(Tableau4[[#This Row],[Colonne29]],table,35)=P$65,VLOOKUP(Tableau4[[#This Row],[Colonne29]],table,21),IF(VLOOKUP(Tableau4[[#This Row],[Colonne29]],table,36)=P$65,VLOOKUP(Tableau4[[#This Row],[Colonne29]],table,21),"")))) ->  | R68: =IF(VLOOKUP(Tableau4[[#This Row],[Colonne29]],table,33)=R$65,VLOOKUP(Tableau4[[#This Row],[Colonne29]],table,20),IF(VLOOKUP(Tableau4[[#This Row],[Colonne29]],table,34)=R$65,VLOOKUP(Tableau4[[#This Row],[Colonne29]],table,20),IF(VLOOKUP(Tableau4[[#This Row],[Colonne29]],table,35)=R$65,VLOOKUP(Tableau4[[#This Row],[Colonne29]],table,20),IF(VLOOKUP(Tableau4[[#This Row],[Colonne29]],table,36)=R$65,VLOOKUP(Tableau4[[#This Row],[Colonne29]],table,20),"")))) ->  | S68: =IF(VLOOKUP(Tableau4[[#This Row],[Colonne29]],table,33)=R$65,VLOOKUP(Tableau4[[#This Row],[Colonne29]],table,21),IF(VLOOKUP(Tableau4[[#This Row],[Colonne29]],table,34)=R$65,VLOOKUP(Tableau4[[#This Row],[Colonne29]],table,21),IF(VLOOKUP(Tableau4[[#This Row],[Colonne29]],table,35)=R$65,VLOOKUP(Tableau4[[#This Row],[Colonne29]],table,21),IF(VLOOKUP(Tableau4[[#This Row],[Colonne29]],table,36)=R$65,VLOOKUP(Tableau4[[#This Row],[Colonne29]],table,21),"")))) ->  | T68: =IF(VLOOKUP(Tableau4[[#This Row],[Colonne29]],table,33)=T$65,VLOOKUP(Tableau4[[#This Row],[Colonne29]],table,20),IF(VLOOKUP(Tableau4[[#This Row],[Colonne29]],table,34)=T$65,VLOOKUP(Tableau4[[#This Row],[Colonne29]],table,20),IF(VLOOKUP(Tableau4[[#This Row],[Colonne29]],table,35)=T$65,VLOOKUP(Tableau4[[#This Row],[Colonne29]],table,20),IF(VLOOKUP(Tableau4[[#This Row],[Colonne29]],table,36)=T$65,VLOOKUP(Tableau4[[#This Row],[Colonne29]],table,20),"")))) ->  | U68: =IF(VLOOKUP(Tableau4[[#This Row],[Colonne29]],table,33)=T$65,VLOOKUP(Tableau4[[#This Row],[Colonne29]],table,21),IF(VLOOKUP(Tableau4[[#This Row],[Colonne29]],table,34)=T$65,VLOOKUP(Tableau4[[#This Row],[Colonne29]],table,21),IF(VLOOKUP(Tableau4[[#This Row],[Colonne29]],table,35)=T$65,VLOOKUP(Tableau4[[#This Row],[Colonne29]],table,21),IF(VLOOKUP(Tableau4[[#This Row],[Colonne29]],table,36)=T$65,VLOOKUP(Tableau4[[#This Row],[Colonne29]],table,21),"")))) ->  | V68: =IF(VLOOKUP(Tableau4[[#This Row],[Colonne29]],table,33)=V$65,VLOOKUP(Tableau4[[#This Row],[Colonne29]],table,20),IF(VLOOKUP(Tableau4[[#This Row],[Colonne29]],table,34)=V$65,VLOOKUP(Tableau4[[#This Row],[Colonne29]],table,20),IF(VLOOKUP(Tableau4[[#This Row],[Colonne29]],table,35)=V$65,VLOOKUP(Tableau4[[#This Row],[Colonne29]],table,20),IF(VLOOKUP(Tableau4[[#This Row],[Colonne29]],table,36)=V$65,VLOOKUP(Tableau4[[#This Row],[Colonne29]],table,20),"")))) ->  | W68: =IF(VLOOKUP(Tableau4[[#This Row],[Colonne29]],table,33)=V$65,VLOOKUP(Tableau4[[#This Row],[Colonne29]],table,21),IF(VLOOKUP(Tableau4[[#This Row],[Colonne29]],table,34)=V$65,VLOOKUP(Tableau4[[#This Row],[Colonne29]],table,21),IF(VLOOKUP(Tableau4[[#This Row],[Colonne29]],table,35)=V$65,VLOOKUP(Tableau4[[#This Row],[Colonne29]],table,21),IF(VLOOKUP(Tableau4[[#This Row],[Colonne29]],table,36)=V$65,VLOOKUP(Tableau4[[#This Row],[Colonne29]],table,21),"")))) ->  | X68: =IF(VLOOKUP(Tableau4[[#This Row],[Colonne29]],table,33)=X$65,VLOOKUP(Tableau4[[#This Row],[Colonne29]],table,20),IF(VLOOKUP(Tableau4[[#This Row],[Colonne29]],table,34)=X$65,VLOOKUP(Tableau4[[#This Row],[Colonne29]],table,20),IF(VLOOKUP(Tableau4[[#This Row],[Colonne29]],table,35)=X$65,VLOOKUP(Tableau4[[#This Row],[Colonne29]],table,20),IF(VLOOKUP(Tableau4[[#This Row],[Colonne29]],table,36)=X$65,VLOOKUP(Tableau4[[#This Row],[Colonne29]],table,20),"")))) ->  | Y68: =IF(VLOOKUP(Tableau4[[#This Row],[Colonne29]],table,33)=X$65,VLOOKUP(Tableau4[[#This Row],[Colonne29]],table,21),IF(VLOOKUP(Tableau4[[#This Row],[Colonne29]],table,34)=X$65,VLOOKUP(Tableau4[[#This Row],[Colonne29]],table,21),IF(VLOOKUP(Tableau4[[#This Row],[Colonne29]],table,35)=X$65,VLOOKUP(Tableau4[[#This Row],[Colonne29]],table,21),IF(VLOOKUP(Tableau4[[#This Row],[Colonne29]],table,36)=X$65,VLOOKUP(Tableau4[[#This Row],[Colonne29]],table,21),"")))) ->  | Z68: =IF(VLOOKUP(Tableau4[[#This Row],[Colonne29]],table,33)=Z$65,VLOOKUP(Tableau4[[#This Row],[Colonne29]],table,20),IF(VLOOKUP(Tableau4[[#This Row],[Colonne29]],table,34)=Z$65,VLOOKUP(Tableau4[[#This Row],[Colonne29]],table,20),IF(VLOOKUP(Tableau4[[#This Row],[Colonne29]],table,35)=Z$65,VLOOKUP(Tableau4[[#This Row],[Colonne29]],table,20),IF(VLOOKUP(Tableau4[[#This Row],[Colonne29]],table,36)=Z$65,VLOOKUP(Tableau4[[#This Row],[Colonne29]],table,20),"")))) ->  | AA68: =IF(VLOOKUP(Tableau4[[#This Row],[Colonne29]],table,33)=Z$65,VLOOKUP(Tableau4[[#This Row],[Colonne29]],table,21),IF(VLOOKUP(Tableau4[[#This Row],[Colonne29]],table,34)=Z$65,VLOOKUP(Tableau4[[#This Row],[Colonne29]],table,21),IF(VLOOKUP(Tableau4[[#This Row],[Colonne29]],table,35)=Z$65,VLOOKUP(Tableau4[[#This Row],[Colonne29]],table,21),IF(VLOOKUP(Tableau4[[#This Row],[Colonne29]],table,36)=Z$65,VLOOKUP(Tableau4[[#This Row],[Colonne29]],table,21),"")))) ->  | AB68: =IF(VLOOKUP(Tableau4[[#This Row],[Colonne29]],table,33)=AB$65,VLOOKUP(Tableau4[[#This Row],[Colonne29]],table,20),IF(VLOOKUP(Tableau4[[#This Row],[Colonne29]],table,34)=AB$65,VLOOKUP(Tableau4[[#This Row],[Colonne29]],table,20),IF(VLOOKUP(Tableau4[[#This Row],[Colonne29]],table,35)=AB$65,VLOOKUP(Tableau4[[#This Row],[Colonne29]],table,20),IF(VLOOKUP(Tableau4[[#This Row],[Colonne29]],table,36)=AB$65,VLOOKUP(Tableau4[[#This Row],[Colonne29]],table,20),"")))) ->  | AC68: =IF(VLOOKUP(Tableau4[[#This Row],[Colonne29]],table,33)=AB$65,VLOOKUP(Tableau4[[#This Row],[Colonne29]],table,21),IF(VLOOKUP(Tableau4[[#This Row],[Colonne29]],table,34)=AB$65,VLOOKUP(Tableau4[[#This Row],[Colonne29]],table,21),IF(VLOOKUP(Tableau4[[#This Row],[Colonne29]],table,35)=AB$65,VLOOKUP(Tableau4[[#This Row],[Colonne29]],table,21),IF(VLOOKUP(Tableau4[[#This Row],[Colonne29]],table,36)=AB$65,VLOOKUP(Tableau4[[#This Row],[Colonne29]],table,21),"")))) -> 
A69: Structure - CPAM Côte-d'Or - 2016 | B69: =IF(VLOOKUP(Tableau4[[#This Row],[Colonne29]],table,33)=B$65,VLOOKUP(Tableau4[[#This Row],[Colonne29]],table,20),IF(VLOOKUP(Tableau4[[#This Row],[Colonne29]],table,34)=B$65,VLOOKUP(Tableau4[[#This Row],[Colonne29]],table,20),IF(VLOOKUP(Tableau4[[#This Row],[Colonne29]],table,35)=B$65,VLOOKUP(Tableau4[[#This Row],[Colonne29]],table,20),IF(VLOOKUP(Tableau4[[#This Row],[Colonne29]],table,36)=B$65,VLOOKUP(Tableau4[[#This Row],[Colonne29]],table,20),"")))) ->  | C69: =IF(VLOOKUP(Tableau4[[#This Row],[Colonne29]],table,33)=B$65,VLOOKUP(Tableau4[[#This Row],[Colonne29]],table,21),IF(VLOOKUP(Tableau4[[#This Row],[Colonne29]],table,34)=B$65,VLOOKUP(Tableau4[[#This Row],[Colonne29]],table,21),IF(VLOOKUP(Tableau4[[#This Row],[Colonne29]],table,35)=B$65,VLOOKUP(Tableau4[[#This Row],[Colonne29]],table,21),IF(VLOOKUP(Tableau4[[#This Row],[Colonne29]],table,36)=B$65,VLOOKUP(Tableau4[[#This Row],[Colonne29]],table,21),"")))) ->  | D69: =IF(VLOOKUP(Tableau4[[#This Row],[Colonne29]],table,33)=D$65,VLOOKUP(Tableau4[[#This Row],[Colonne29]],table,20),IF(VLOOKUP(Tableau4[[#This Row],[Colonne29]],table,34)=D$65,VLOOKUP(Tableau4[[#This Row],[Colonne29]],table,20),IF(VLOOKUP(Tableau4[[#This Row],[Colonne29]],table,35)=D$65,VLOOKUP(Tableau4[[#This Row],[Colonne29]],table,20),IF(VLOOKUP(Tableau4[[#This Row],[Colonne29]],table,36)=D$65,VLOOKUP(Tableau4[[#This Row],[Colonne29]],table,20),"")))) ->  | E69: =IF(VLOOKUP(Tableau4[[#This Row],[Colonne29]],table,33)=D$65,VLOOKUP(Tableau4[[#This Row],[Colonne29]],table,21),IF(VLOOKUP(Tableau4[[#This Row],[Colonne29]],table,34)=D$65,VLOOKUP(Tableau4[[#This Row],[Colonne29]],table,21),IF(VLOOKUP(Tableau4[[#This Row],[Colonne29]],table,35)=D$65,VLOOKUP(Tableau4[[#This Row],[Colonne29]],table,21),IF(VLOOKUP(Tableau4[[#This Row],[Colonne29]],table,36)=D$65,VLOOKUP(Tableau4[[#This Row],[Colonne29]],table,21),"")))) ->  | F69: =IF(VLOOKUP(Tableau4[[#This Row],[Colonne29]],table,33)=F$65,VLOOKUP(Tableau4[[#This Row],[Colonne29]],table,20),IF(VLOOKUP(Tableau4[[#This Row],[Colonne29]],table,34)=F$65,VLOOKUP(Tableau4[[#This Row],[Colonne29]],table,20),IF(VLOOKUP(Tableau4[[#This Row],[Colonne29]],table,35)=F$65,VLOOKUP(Tableau4[[#This Row],[Colonne29]],table,20),IF(VLOOKUP(Tableau4[[#This Row],[Colonne29]],table,36)=F$65,VLOOKUP(Tableau4[[#This Row],[Colonne29]],table,20),"")))) ->  | G69: =IF(VLOOKUP(Tableau4[[#This Row],[Colonne29]],table,33)=F$65,VLOOKUP(Tableau4[[#This Row],[Colonne29]],table,21),IF(VLOOKUP(Tableau4[[#This Row],[Colonne29]],table,34)=F$65,VLOOKUP(Tableau4[[#This Row],[Colonne29]],table,21),IF(VLOOKUP(Tableau4[[#This Row],[Colonne29]],table,35)=F$65,VLOOKUP(Tableau4[[#This Row],[Colonne29]],table,21),IF(VLOOKUP(Tableau4[[#This Row],[Colonne29]],table,36)=F$65,VLOOKUP(Tableau4[[#This Row],[Colonne29]],table,21),"")))) ->  | H69: =IF(VLOOKUP(Tableau4[[#This Row],[Colonne29]],table,33)=H$65,VLOOKUP(Tableau4[[#This Row],[Colonne29]],table,20),IF(VLOOKUP(Tableau4[[#This Row],[Colonne29]],table,34)=H$65,VLOOKUP(Tableau4[[#This Row],[Colonne29]],table,20),IF(VLOOKUP(Tableau4[[#This Row],[Colonne29]],table,35)=H$65,VLOOKUP(Tableau4[[#This Row],[Colonne29]],table,20),IF(VLOOKUP(Tableau4[[#This Row],[Colonne29]],table,36)=H$65,VLOOKUP(Tableau4[[#This Row],[Colonne29]],table,20),"")))) ->  | I69: =IF(VLOOKUP(Tableau4[[#This Row],[Colonne29]],table,33)=H$65,VLOOKUP(Tableau4[[#This Row],[Colonne29]],table,21),IF(VLOOKUP(Tableau4[[#This Row],[Colonne29]],table,34)=H$65,VLOOKUP(Tableau4[[#This Row],[Colonne29]],table,21),IF(VLOOKUP(Tableau4[[#This Row],[Colonne29]],table,35)=H$65,VLOOKUP(Tableau4[[#This Row],[Colonne29]],table,21),IF(VLOOKUP(Tableau4[[#This Row],[Colonne29]],table,36)=H$65,VLOOKUP(Tableau4[[#This Row],[Colonne29]],table,21),"")))) ->  | J69: =IF(VLOOKUP(Tableau4[[#This Row],[Colonne29]],table,33)=J$65,VLOOKUP(Tableau4[[#This Row],[Colonne29]],table,20),IF(VLOOKUP(Tableau4[[#This Row],[Colonne29]],table,34)=J$65,VLOOKUP(Tableau4[[#This Row],[Colonne29]],table,20),IF(VLOOKUP(Tableau4[[#This Row],[Colonne29]],table,35)=J$65,VLOOKUP(Tableau4[[#This Row],[Colonne29]],table,20),IF(VLOOKUP(Tableau4[[#This Row],[Colonne29]],table,36)=J$65,VLOOKUP(Tableau4[[#This Row],[Colonne29]],table,20),"")))) -> 14/03/2016 | K69: =IF(VLOOKUP(Tableau4[[#This Row],[Colonne29]],table,33)=J$65,VLOOKUP(Tableau4[[#This Row],[Colonne29]],table,21),IF(VLOOKUP(Tableau4[[#This Row],[Colonne29]],table,34)=J$65,VLOOKUP(Tableau4[[#This Row],[Colonne29]],table,21),IF(VLOOKUP(Tableau4[[#This Row],[Colonne29]],table,35)=J$65,VLOOKUP(Tableau4[[#This Row],[Colonne29]],table,21),IF(VLOOKUP(Tableau4[[#This Row],[Colonne29]],table,36)=J$65,VLOOKUP(Tableau4[[#This Row],[Colonne29]],table,21),"")))) -> 27/07/2016 | L69: =IF(VLOOKUP(Tableau4[[#This Row],[Colonne29]],table,33)=L$65,VLOOKUP(Tableau4[[#This Row],[Colonne29]],table,20),IF(VLOOKUP(Tableau4[[#This Row],[Colonne29]],table,34)=L$65,VLOOKUP(Tableau4[[#This Row],[Colonne29]],table,20),IF(VLOOKUP(Tableau4[[#This Row],[Colonne29]],table,35)=L$65,VLOOKUP(Tableau4[[#This Row],[Colonne29]],table,20),IF(VLOOKUP(Tableau4[[#This Row],[Colonne29]],table,36)=L$65,VLOOKUP(Tableau4[[#This Row],[Colonne29]],table,20),"")))) -> 14/03/2016 | M69: =IF(VLOOKUP(Tableau4[[#This Row],[Colonne29]],table,33)=L$65,VLOOKUP(Tableau4[[#This Row],[Colonne29]],table,21),IF(VLOOKUP(Tableau4[[#This Row],[Colonne29]],table,34)=L$65,VLOOKUP(Tableau4[[#This Row],[Colonne29]],table,21),IF(VLOOKUP(Tableau4[[#This Row],[Colonne29]],table,35)=L$65,VLOOKUP(Tableau4[[#This Row],[Colonne29]],table,21),IF(VLOOKUP(Tableau4[[#This Row],[Colonne29]],table,36)=L$65,VLOOKUP(Tableau4[[#This Row],[Colonne29]],table,21),"")))) -> 27/07/2016 | N69: =IF(VLOOKUP(Tableau4[[#This Row],[Colonne29]],table,33)=N$65,VLOOKUP(Tableau4[[#This Row],[Colonne29]],table,20),IF(VLOOKUP(Tableau4[[#This Row],[Colonne29]],table,34)=N$65,VLOOKUP(Tableau4[[#This Row],[Colonne29]],table,20),IF(VLOOKUP(Tableau4[[#This Row],[Colonne29]],table,35)=N$65,VLOOKUP(Tableau4[[#This Row],[Colonne29]],table,20),IF(VLOOKUP(Tableau4[[#This Row],[Colonne29]],table,36)=N$65,VLOOKUP(Tableau4[[#This Row],[Colonne29]],table,20),"")))) ->  | O69: =IF(VLOOKUP(Tableau4[[#This Row],[Colonne29]],table,33)=N$65,VLOOKUP(Tableau4[[#This Row],[Colonne29]],table,21),IF(VLOOKUP(Tableau4[[#This Row],[Colonne29]],table,34)=N$65,VLOOKUP(Tableau4[[#This Row],[Colonne29]],table,21),IF(VLOOKUP(Tableau4[[#This Row],[Colonne29]],table,35)=N$65,VLOOKUP(Tableau4[[#This Row],[Colonne29]],table,21),IF(VLOOKUP(Tableau4[[#This Row],[Colonne29]],table,36)=N$65,VLOOKUP(Tableau4[[#This Row],[Colonne29]],table,21),"")))) ->  | P69: =IF(VLOOKUP(Tableau4[[#This Row],[Colonne29]],table,33)=P$65,VLOOKUP(Tableau4[[#This Row],[Colonne29]],table,20),IF(VLOOKUP(Tableau4[[#This Row],[Colonne29]],table,34)=P$65,VLOOKUP(Tableau4[[#This Row],[Colonne29]],table,20),IF(VLOOKUP(Tableau4[[#This Row],[Colonne29]],table,35)=P$65,VLOOKUP(Tableau4[[#This Row],[Colonne29]],table,20),IF(VLOOKUP(Tableau4[[#This Row],[Colonne29]],table,36)=P$65,VLOOKUP(Tableau4[[#This Row],[Colonne29]],table,20),"")))) ->  | Q69: =IF(VLOOKUP(Tableau4[[#This Row],[Colonne29]],table,33)=P$65,VLOOKUP(Tableau4[[#This Row],[Colonne29]],table,21),IF(VLOOKUP(Tableau4[[#This Row],[Colonne29]],table,34)=P$65,VLOOKUP(Tableau4[[#This Row],[Colonne29]],table,21),IF(VLOOKUP(Tableau4[[#This Row],[Colonne29]],table,35)=P$65,VLOOKUP(Tableau4[[#This Row],[Colonne29]],table,21),IF(VLOOKUP(Tableau4[[#This Row],[Colonne29]],table,36)=P$65,VLOOKUP(Tableau4[[#This Row],[Colonne29]],table,21),"")))) ->  | R69: =IF(VLOOKUP(Tableau4[[#This Row],[Colonne29]],table,33)=R$65,VLOOKUP(Tableau4[[#This Row],[Colonne29]],table,20),IF(VLOOKUP(Tableau4[[#This Row],[Colonne29]],table,34)=R$65,VLOOKUP(Tableau4[[#This Row],[Colonne29]],table,20),IF(VLOOKUP(Tableau4[[#This Row],[Colonne29]],table,35)=R$65,VLOOKUP(Tableau4[[#This Row],[Colonne29]],table,20),IF(VLOOKUP(Tableau4[[#This Row],[Colonne29]],table,36)=R$65,VLOOKUP(Tableau4[[#This Row],[Colonne29]],table,20),"")))) -> 14/03/2016 | S69: =IF(VLOOKUP(Tableau4[[#This Row],[Colonne29]],table,33)=R$65,VLOOKUP(Tableau4[[#This Row],[Colonne29]],table,21),IF(VLOOKUP(Tableau4[[#This Row],[Colonne29]],table,34)=R$65,VLOOKUP(Tableau4[[#This Row],[Colonne29]],table,21),IF(VLOOKUP(Tableau4[[#This Row],[Colonne29]],table,35)=R$65,VLOOKUP(Tableau4[[#This Row],[Colonne29]],table,21),IF(VLOOKUP(Tableau4[[#This Row],[Colonne29]],table,36)=R$65,VLOOKUP(Tableau4[[#This Row],[Colonne29]],table,21),"")))) -> 27/07/2016 | T69: =IF(VLOOKUP(Tableau4[[#This Row],[Colonne29]],table,33)=T$65,VLOOKUP(Tableau4[[#This Row],[Colonne29]],table,20),IF(VLOOKUP(Tableau4[[#This Row],[Colonne29]],table,34)=T$65,VLOOKUP(Tableau4[[#This Row],[Colonne29]],table,20),IF(VLOOKUP(Tableau4[[#This Row],[Colonne29]],table,35)=T$65,VLOOKUP(Tableau4[[#This Row],[Colonne29]],table,20),IF(VLOOKUP(Tableau4[[#This Row],[Colonne29]],table,36)=T$65,VLOOKUP(Tableau4[[#This Row],[Colonne29]],table,20),"")))) ->  | U69: =IF(VLOOKUP(Tableau4[[#This Row],[Colonne29]],table,33)=T$65,VLOOKUP(Tableau4[[#This Row],[Colonne29]],table,21),IF(VLOOKUP(Tableau4[[#This Row],[Colonne29]],table,34)=T$65,VLOOKUP(Tableau4[[#This Row],[Colonne29]],table,21),IF(VLOOKUP(Tableau4[[#This Row],[Colonne29]],table,35)=T$65,VLOOKUP(Tableau4[[#This Row],[Colonne29]],table,21),IF(VLOOKUP(Tableau4[[#This Row],[Colonne29]],table,36)=T$65,VLOOKUP(Tableau4[[#This Row],[Colonne29]],table,21),"")))) ->  | V69: =IF(VLOOKUP(Tableau4[[#This Row],[Colonne29]],table,33)=V$65,VLOOKUP(Tableau4[[#This Row],[Colonne29]],table,20),IF(VLOOKUP(Tableau4[[#This Row],[Colonne29]],table,34)=V$65,VLOOKUP(Tableau4[[#This Row],[Colonne29]],table,20),IF(VLOOKUP(Tableau4[[#This Row],[Colonne29]],table,35)=V$65,VLOOKUP(Tableau4[[#This Row],[Colonne29]],table,20),IF(VLOOKUP(Tableau4[[#This Row],[Colonne29]],table,36)=V$65,VLOOKUP(Tableau4[[#This Row],[Colonne29]],table,20),"")))) ->  | W69: =IF(VLOOKUP(Tableau4[[#This Row],[Colonne29]],table,33)=V$65,VLOOKUP(Tableau4[[#This Row],[Colonne29]],table,21),IF(VLOOKUP(Tableau4[[#This Row],[Colonne29]],table,34)=V$65,VLOOKUP(Tableau4[[#This Row],[Colonne29]],table,21),IF(VLOOKUP(Tableau4[[#This Row],[Colonne29]],table,35)=V$65,VLOOKUP(Tableau4[[#This Row],[Colonne29]],table,21),IF(VLOOKUP(Tableau4[[#This Row],[Colonne29]],table,36)=V$65,VLOOKUP(Tableau4[[#This Row],[Colonne29]],table,21),"")))) ->  | X69: =IF(VLOOKUP(Tableau4[[#This Row],[Colonne29]],table,33)=X$65,VLOOKUP(Tableau4[[#This Row],[Colonne29]],table,20),IF(VLOOKUP(Tableau4[[#This Row],[Colonne29]],table,34)=X$65,VLOOKUP(Tableau4[[#This Row],[Colonne29]],table,20),IF(VLOOKUP(Tableau4[[#This Row],[Colonne29]],table,35)=X$65,VLOOKUP(Tableau4[[#This Row],[Colonne29]],table,20),IF(VLOOKUP(Tableau4[[#This Row],[Colonne29]],table,36)=X$65,VLOOKUP(Tableau4[[#This Row],[Colonne29]],table,20),"")))) ->  | Y69: =IF(VLOOKUP(Tableau4[[#This Row],[Colonne29]],table,33)=X$65,VLOOKUP(Tableau4[[#This Row],[Colonne29]],table,21),IF(VLOOKUP(Tableau4[[#This Row],[Colonne29]],table,34)=X$65,VLOOKUP(Tableau4[[#This Row],[Colonne29]],table,21),IF(VLOOKUP(Tableau4[[#This Row],[Colonne29]],table,35)=X$65,VLOOKUP(Tableau4[[#This Row],[Colonne29]],table,21),IF(VLOOKUP(Tableau4[[#This Row],[Colonne29]],table,36)=X$65,VLOOKUP(Tableau4[[#This Row],[Colonne29]],table,21),"")))) ->  | Z69: =IF(VLOOKUP(Tableau4[[#This Row],[Colonne29]],table,33)=Z$65,VLOOKUP(Tableau4[[#This Row],[Colonne29]],table,20),IF(VLOOKUP(Tableau4[[#This Row],[Colonne29]],table,34)=Z$65,VLOOKUP(Tableau4[[#This Row],[Colonne29]],table,20),IF(VLOOKUP(Tableau4[[#This Row],[Colonne29]],table,35)=Z$65,VLOOKUP(Tableau4[[#This Row],[Colonne29]],table,20),IF(VLOOKUP(Tableau4[[#This Row],[Colonne29]],table,36)=Z$65,VLOOKUP(Tableau4[[#This Row],[Colonne29]],table,20),"")))) ->  | AA69: =IF(VLOOKUP(Tableau4[[#This Row],[Colonne29]],table,33)=Z$65,VLOOKUP(Tableau4[[#This Row],[Colonne29]],table,21),IF(VLOOKUP(Tableau4[[#This Row],[Colonne29]],table,34)=Z$65,VLOOKUP(Tableau4[[#This Row],[Colonne29]],table,21),IF(VLOOKUP(Tableau4[[#This Row],[Colonne29]],table,35)=Z$65,VLOOKUP(Tableau4[[#This Row],[Colonne29]],table,21),IF(VLOOKUP(Tableau4[[#This Row],[Colonne29]],table,36)=Z$65,VLOOKUP(Tableau4[[#This Row],[Colonne29]],table,21),"")))) ->  | AB69: =IF(VLOOKUP(Tableau4[[#This Row],[Colonne29]],table,33)=AB$65,VLOOKUP(Tableau4[[#This Row],[Colonne29]],table,20),IF(VLOOKUP(Tableau4[[#This Row],[Colonne29]],table,34)=AB$65,VLOOKUP(Tableau4[[#This Row],[Colonne29]],table,20),IF(VLOOKUP(Tableau4[[#This Row],[Colonne29]],table,35)=AB$65,VLOOKUP(Tableau4[[#This Row],[Colonne29]],table,20),IF(VLOOKUP(Tableau4[[#This Row],[Colonne29]],table,36)=AB$65,VLOOKUP(Tableau4[[#This Row],[Colonne29]],table,20),"")))) ->  | AC69: =IF(VLOOKUP(Tableau4[[#This Row],[Colonne29]],table,33)=AB$65,VLOOKUP(Tableau4[[#This Row],[Colonne29]],table,21),IF(VLOOKUP(Tableau4[[#This Row],[Colonne29]],table,34)=AB$65,VLOOKUP(Tableau4[[#This Row],[Colonne29]],table,21),IF(VLOOKUP(Tableau4[[#This Row],[Colonne29]],table,35)=AB$65,VLOOKUP(Tableau4[[#This Row],[Colonne29]],table,21),IF(VLOOKUP(Tableau4[[#This Row],[Colonne29]],table,36)=AB$65,VLOOKUP(Tableau4[[#This Row],[Colonne29]],table,21),"")))) -> 
A70: Structure - CPAM Flandres-Dunkerque-Armentières - 2016 | B70: =IF(VLOOKUP(Tableau4[[#This Row],[Colonne29]],table,33)=B$65,VLOOKUP(Tableau4[[#This Row],[Colonne29]],table,20),IF(VLOOKUP(Tableau4[[#This Row],[Colonne29]],table,34)=B$65,VLOOKUP(Tableau4[[#This Row],[Colonne29]],table,20),IF(VLOOKUP(Tableau4[[#This Row],[Colonne29]],table,35)=B$65,VLOOKUP(Tableau4[[#This Row],[Colonne29]],table,20),IF(VLOOKUP(Tableau4[[#This Row],[Colonne29]],table,36)=B$65,VLOOKUP(Tableau4[[#This Row],[Colonne29]],table,20),"")))) ->  | C70: =IF(VLOOKUP(Tableau4[[#This Row],[Colonne29]],table,33)=B$65,VLOOKUP(Tableau4[[#This Row],[Colonne29]],table,21),IF(VLOOKUP(Tableau4[[#This Row],[Colonne29]],table,34)=B$65,VLOOKUP(Tableau4[[#This Row],[Colonne29]],table,21),IF(VLOOKUP(Tableau4[[#This Row],[Colonne29]],table,35)=B$65,VLOOKUP(Tableau4[[#This Row],[Colonne29]],table,21),IF(VLOOKUP(Tableau4[[#This Row],[Colonne29]],table,36)=B$65,VLOOKUP(Tableau4[[#This Row],[Colonne29]],table,21),"")))) ->  | D70: =IF(VLOOKUP(Tableau4[[#This Row],[Colonne29]],table,33)=D$65,VLOOKUP(Tableau4[[#This Row],[Colonne29]],table,20),IF(VLOOKUP(Tableau4[[#This Row],[Colonne29]],table,34)=D$65,VLOOKUP(Tableau4[[#This Row],[Colonne29]],table,20),IF(VLOOKUP(Tableau4[[#This Row],[Colonne29]],table,35)=D$65,VLOOKUP(Tableau4[[#This Row],[Colonne29]],table,20),IF(VLOOKUP(Tableau4[[#This Row],[Colonne29]],table,36)=D$65,VLOOKUP(Tableau4[[#This Row],[Colonne29]],table,20),"")))) ->  | E70: =IF(VLOOKUP(Tableau4[[#This Row],[Colonne29]],table,33)=D$65,VLOOKUP(Tableau4[[#This Row],[Colonne29]],table,21),IF(VLOOKUP(Tableau4[[#This Row],[Colonne29]],table,34)=D$65,VLOOKUP(Tableau4[[#This Row],[Colonne29]],table,21),IF(VLOOKUP(Tableau4[[#This Row],[Colonne29]],table,35)=D$65,VLOOKUP(Tableau4[[#This Row],[Colonne29]],table,21),IF(VLOOKUP(Tableau4[[#This Row],[Colonne29]],table,36)=D$65,VLOOKUP(Tableau4[[#This Row],[Colonne29]],table,21),"")))) ->  | F70: =IF(VLOOKUP(Tableau4[[#This Row],[Colonne29]],table,33)=F$65,VLOOKUP(Tableau4[[#This Row],[Colonne29]],table,20),IF(VLOOKUP(Tableau4[[#This Row],[Colonne29]],table,34)=F$65,VLOOKUP(Tableau4[[#This Row],[Colonne29]],table,20),IF(VLOOKUP(Tableau4[[#This Row],[Colonne29]],table,35)=F$65,VLOOKUP(Tableau4[[#This Row],[Colonne29]],table,20),IF(VLOOKUP(Tableau4[[#This Row],[Colonne29]],table,36)=F$65,VLOOKUP(Tableau4[[#This Row],[Colonne29]],table,20),"")))) -> 01/02/2016 | G70: =IF(VLOOKUP(Tableau4[[#This Row],[Colonne29]],table,33)=F$65,VLOOKUP(Tableau4[[#This Row],[Colonne29]],table,21),IF(VLOOKUP(Tableau4[[#This Row],[Colonne29]],table,34)=F$65,VLOOKUP(Tableau4[[#This Row],[Colonne29]],table,21),IF(VLOOKUP(Tableau4[[#This Row],[Colonne29]],table,35)=F$65,VLOOKUP(Tableau4[[#This Row],[Colonne29]],table,21),IF(VLOOKUP(Tableau4[[#This Row],[Colonne29]],table,36)=F$65,VLOOKUP(Tableau4[[#This Row],[Colonne29]],table,21),"")))) -> 15/06/2016 | H70: =IF(VLOOKUP(Tableau4[[#This Row],[Colonne29]],table,33)=H$65,VLOOKUP(Tableau4[[#This Row],[Colonne29]],table,20),IF(VLOOKUP(Tableau4[[#This Row],[Colonne29]],table,34)=H$65,VLOOKUP(Tableau4[[#This Row],[Colonne29]],table,20),IF(VLOOKUP(Tableau4[[#This Row],[Colonne29]],table,35)=H$65,VLOOKUP(Tableau4[[#This Row],[Colonne29]],table,20),IF(VLOOKUP(Tableau4[[#This Row],[Colonne29]],table,36)=H$65,VLOOKUP(Tableau4[[#This Row],[Colonne29]],table,20),"")))) ->  | I70: =IF(VLOOKUP(Tableau4[[#This Row],[Colonne29]],table,33)=H$65,VLOOKUP(Tableau4[[#This Row],[Colonne29]],table,21),IF(VLOOKUP(Tableau4[[#This Row],[Colonne29]],table,34)=H$65,VLOOKUP(Tableau4[[#This Row],[Colonne29]],table,21),IF(VLOOKUP(Tableau4[[#This Row],[Colonne29]],table,35)=H$65,VLOOKUP(Tableau4[[#This Row],[Colonne29]],table,21),IF(VLOOKUP(Tableau4[[#This Row],[Colonne29]],table,36)=H$65,VLOOKUP(Tableau4[[#This Row],[Colonne29]],table,21),"")))) ->  | J70: =IF(VLOOKUP(Tableau4[[#This Row],[Colonne29]],table,33)=J$65,VLOOKUP(Tableau4[[#This Row],[Colonne29]],table,20),IF(VLOOKUP(Tableau4[[#This Row],[Colonne29]],table,34)=J$65,VLOOKUP(Tableau4[[#This Row],[Colonne29]],table,20),IF(VLOOKUP(Tableau4[[#This Row],[Colonne29]],table,35)=J$65,VLOOKUP(Tableau4[[#This Row],[Colonne29]],table,20),IF(VLOOKUP(Tableau4[[#This Row],[Colonne29]],table,36)=J$65,VLOOKUP(Tableau4[[#This Row],[Colonne29]],table,20),"")))) ->  | K70: =IF(VLOOKUP(Tableau4[[#This Row],[Colonne29]],table,33)=J$65,VLOOKUP(Tableau4[[#This Row],[Colonne29]],table,21),IF(VLOOKUP(Tableau4[[#This Row],[Colonne29]],table,34)=J$65,VLOOKUP(Tableau4[[#This Row],[Colonne29]],table,21),IF(VLOOKUP(Tableau4[[#This Row],[Colonne29]],table,35)=J$65,VLOOKUP(Tableau4[[#This Row],[Colonne29]],table,21),IF(VLOOKUP(Tableau4[[#This Row],[Colonne29]],table,36)=J$65,VLOOKUP(Tableau4[[#This Row],[Colonne29]],table,21),"")))) ->  | L70: =IF(VLOOKUP(Tableau4[[#This Row],[Colonne29]],table,33)=L$65,VLOOKUP(Tableau4[[#This Row],[Colonne29]],table,20),IF(VLOOKUP(Tableau4[[#This Row],[Colonne29]],table,34)=L$65,VLOOKUP(Tableau4[[#This Row],[Colonne29]],table,20),IF(VLOOKUP(Tableau4[[#This Row],[Colonne29]],table,35)=L$65,VLOOKUP(Tableau4[[#This Row],[Colonne29]],table,20),IF(VLOOKUP(Tableau4[[#This Row],[Colonne29]],table,36)=L$65,VLOOKUP(Tableau4[[#This Row],[Colonne29]],table,20),"")))) -> 01/02/2016 | M70: =IF(VLOOKUP(Tableau4[[#This Row],[Colonne29]],table,33)=L$65,VLOOKUP(Tableau4[[#This Row],[Colonne29]],table,21),IF(VLOOKUP(Tableau4[[#This Row],[Colonne29]],table,34)=L$65,VLOOKUP(Tableau4[[#This Row],[Colonne29]],table,21),IF(VLOOKUP(Tableau4[[#This Row],[Colonne29]],table,35)=L$65,VLOOKUP(Tableau4[[#This Row],[Colonne29]],table,21),IF(VLOOKUP(Tableau4[[#This Row],[Colonne29]],table,36)=L$65,VLOOKUP(Tableau4[[#This Row],[Colonne29]],table,21),"")))) -> 15/06/2016 | N70: =IF(VLOOKUP(Tableau4[[#This Row],[Colonne29]],table,33)=N$65,VLOOKUP(Tableau4[[#This Row],[Colonne29]],table,20),IF(VLOOKUP(Tableau4[[#This Row],[Colonne29]],table,34)=N$65,VLOOKUP(Tableau4[[#This Row],[Colonne29]],table,20),IF(VLOOKUP(Tableau4[[#This Row],[Colonne29]],table,35)=N$65,VLOOKUP(Tableau4[[#This Row],[Colonne29]],table,20),IF(VLOOKUP(Tableau4[[#This Row],[Colonne29]],table,36)=N$65,VLOOKUP(Tableau4[[#This Row],[Colonne29]],table,20),"")))) ->  | O70: =IF(VLOOKUP(Tableau4[[#This Row],[Colonne29]],table,33)=N$65,VLOOKUP(Tableau4[[#This Row],[Colonne29]],table,21),IF(VLOOKUP(Tableau4[[#This Row],[Colonne29]],table,34)=N$65,VLOOKUP(Tableau4[[#This Row],[Colonne29]],table,21),IF(VLOOKUP(Tableau4[[#This Row],[Colonne29]],table,35)=N$65,VLOOKUP(Tableau4[[#This Row],[Colonne29]],table,21),IF(VLOOKUP(Tableau4[[#This Row],[Colonne29]],table,36)=N$65,VLOOKUP(Tableau4[[#This Row],[Colonne29]],table,21),"")))) ->  | P70: =IF(VLOOKUP(Tableau4[[#This Row],[Colonne29]],table,33)=P$65,VLOOKUP(Tableau4[[#This Row],[Colonne29]],table,20),IF(VLOOKUP(Tableau4[[#This Row],[Colonne29]],table,34)=P$65,VLOOKUP(Tableau4[[#This Row],[Colonne29]],table,20),IF(VLOOKUP(Tableau4[[#This Row],[Colonne29]],table,35)=P$65,VLOOKUP(Tableau4[[#This Row],[Colonne29]],table,20),IF(VLOOKUP(Tableau4[[#This Row],[Colonne29]],table,36)=P$65,VLOOKUP(Tableau4[[#This Row],[Colonne29]],table,20),"")))) ->  | Q70: =IF(VLOOKUP(Tableau4[[#This Row],[Colonne29]],table,33)=P$65,VLOOKUP(Tableau4[[#This Row],[Colonne29]],table,21),IF(VLOOKUP(Tableau4[[#This Row],[Colonne29]],table,34)=P$65,VLOOKUP(Tableau4[[#This Row],[Colonne29]],table,21),IF(VLOOKUP(Tableau4[[#This Row],[Colonne29]],table,35)=P$65,VLOOKUP(Tableau4[[#This Row],[Colonne29]],table,21),IF(VLOOKUP(Tableau4[[#This Row],[Colonne29]],table,36)=P$65,VLOOKUP(Tableau4[[#This Row],[Colonne29]],table,21),"")))) ->  | R70: =IF(VLOOKUP(Tableau4[[#This Row],[Colonne29]],table,33)=R$65,VLOOKUP(Tableau4[[#This Row],[Colonne29]],table,20),IF(VLOOKUP(Tableau4[[#This Row],[Colonne29]],table,34)=R$65,VLOOKUP(Tableau4[[#This Row],[Colonne29]],table,20),IF(VLOOKUP(Tableau4[[#This Row],[Colonne29]],table,35)=R$65,VLOOKUP(Tableau4[[#This Row],[Colonne29]],table,20),IF(VLOOKUP(Tableau4[[#This Row],[Colonne29]],table,36)=R$65,VLOOKUP(Tableau4[[#This Row],[Colonne29]],table,20),"")))) -> 01/02/2016 | S70: =IF(VLOOKUP(Tableau4[[#This Row],[Colonne29]],table,33)=R$65,VLOOKUP(Tableau4[[#This Row],[Colonne29]],table,21),IF(VLOOKUP(Tableau4[[#This Row],[Colonne29]],table,34)=R$65,VLOOKUP(Tableau4[[#This Row],[Colonne29]],table,21),IF(VLOOKUP(Tableau4[[#This Row],[Colonne29]],table,35)=R$65,VLOOKUP(Tableau4[[#This Row],[Colonne29]],table,21),IF(VLOOKUP(Tableau4[[#This Row],[Colonne29]],table,36)=R$65,VLOOKUP(Tableau4[[#This Row],[Colonne29]],table,21),"")))) -> 15/06/2016 | T70: =IF(VLOOKUP(Tableau4[[#This Row],[Colonne29]],table,33)=T$65,VLOOKUP(Tableau4[[#This Row],[Colonne29]],table,20),IF(VLOOKUP(Tableau4[[#This Row],[Colonne29]],table,34)=T$65,VLOOKUP(Tableau4[[#This Row],[Colonne29]],table,20),IF(VLOOKUP(Tableau4[[#This Row],[Colonne29]],table,35)=T$65,VLOOKUP(Tableau4[[#This Row],[Colonne29]],table,20),IF(VLOOKUP(Tableau4[[#This Row],[Colonne29]],table,36)=T$65,VLOOKUP(Tableau4[[#This Row],[Colonne29]],table,20),"")))) ->  | U70: =IF(VLOOKUP(Tableau4[[#This Row],[Colonne29]],table,33)=T$65,VLOOKUP(Tableau4[[#This Row],[Colonne29]],table,21),IF(VLOOKUP(Tableau4[[#This Row],[Colonne29]],table,34)=T$65,VLOOKUP(Tableau4[[#This Row],[Colonne29]],table,21),IF(VLOOKUP(Tableau4[[#This Row],[Colonne29]],table,35)=T$65,VLOOKUP(Tableau4[[#This Row],[Colonne29]],table,21),IF(VLOOKUP(Tableau4[[#This Row],[Colonne29]],table,36)=T$65,VLOOKUP(Tableau4[[#This Row],[Colonne29]],table,21),"")))) ->  | V70: =IF(VLOOKUP(Tableau4[[#This Row],[Colonne29]],table,33)=V$65,VLOOKUP(Tableau4[[#This Row],[Colonne29]],table,20),IF(VLOOKUP(Tableau4[[#This Row],[Colonne29]],table,34)=V$65,VLOOKUP(Tableau4[[#This Row],[Colonne29]],table,20),IF(VLOOKUP(Tableau4[[#This Row],[Colonne29]],table,35)=V$65,VLOOKUP(Tableau4[[#This Row],[Colonne29]],table,20),IF(VLOOKUP(Tableau4[[#This Row],[Colonne29]],table,36)=V$65,VLOOKUP(Tableau4[[#This Row],[Colonne29]],table,20),"")))) ->  | W70: =IF(VLOOKUP(Tableau4[[#This Row],[Colonne29]],table,33)=V$65,VLOOKUP(Tableau4[[#This Row],[Colonne29]],table,21),IF(VLOOKUP(Tableau4[[#This Row],[Colonne29]],table,34)=V$65,VLOOKUP(Tableau4[[#This Row],[Colonne29]],table,21),IF(VLOOKUP(Tableau4[[#This Row],[Colonne29]],table,35)=V$65,VLOOKUP(Tableau4[[#This Row],[Colonne29]],table,21),IF(VLOOKUP(Tableau4[[#This Row],[Colonne29]],table,36)=V$65,VLOOKUP(Tableau4[[#This Row],[Colonne29]],table,21),"")))) ->  | X70: =IF(VLOOKUP(Tableau4[[#This Row],[Colonne29]],table,33)=X$65,VLOOKUP(Tableau4[[#This Row],[Colonne29]],table,20),IF(VLOOKUP(Tableau4[[#This Row],[Colonne29]],table,34)=X$65,VLOOKUP(Tableau4[[#This Row],[Colonne29]],table,20),IF(VLOOKUP(Tableau4[[#This Row],[Colonne29]],table,35)=X$65,VLOOKUP(Tableau4[[#This Row],[Colonne29]],table,20),IF(VLOOKUP(Tableau4[[#This Row],[Colonne29]],table,36)=X$65,VLOOKUP(Tableau4[[#This Row],[Colonne29]],table,20),"")))) ->  | Y70: =IF(VLOOKUP(Tableau4[[#This Row],[Colonne29]],table,33)=X$65,VLOOKUP(Tableau4[[#This Row],[Colonne29]],table,21),IF(VLOOKUP(Tableau4[[#This Row],[Colonne29]],table,34)=X$65,VLOOKUP(Tableau4[[#This Row],[Colonne29]],table,21),IF(VLOOKUP(Tableau4[[#This Row],[Colonne29]],table,35)=X$65,VLOOKUP(Tableau4[[#This Row],[Colonne29]],table,21),IF(VLOOKUP(Tableau4[[#This Row],[Colonne29]],table,36)=X$65,VLOOKUP(Tableau4[[#This Row],[Colonne29]],table,21),"")))) ->  | Z70: =IF(VLOOKUP(Tableau4[[#This Row],[Colonne29]],table,33)=Z$65,VLOOKUP(Tableau4[[#This Row],[Colonne29]],table,20),IF(VLOOKUP(Tableau4[[#This Row],[Colonne29]],table,34)=Z$65,VLOOKUP(Tableau4[[#This Row],[Colonne29]],table,20),IF(VLOOKUP(Tableau4[[#This Row],[Colonne29]],table,35)=Z$65,VLOOKUP(Tableau4[[#This Row],[Colonne29]],table,20),IF(VLOOKUP(Tableau4[[#This Row],[Colonne29]],table,36)=Z$65,VLOOKUP(Tableau4[[#This Row],[Colonne29]],table,20),"")))) ->  | AA70: =IF(VLOOKUP(Tableau4[[#This Row],[Colonne29]],table,33)=Z$65,VLOOKUP(Tableau4[[#This Row],[Colonne29]],table,21),IF(VLOOKUP(Tableau4[[#This Row],[Colonne29]],table,34)=Z$65,VLOOKUP(Tableau4[[#This Row],[Colonne29]],table,21),IF(VLOOKUP(Tableau4[[#This Row],[Colonne29]],table,35)=Z$65,VLOOKUP(Tableau4[[#This Row],[Colonne29]],table,21),IF(VLOOKUP(Tableau4[[#This Row],[Colonne29]],table,36)=Z$65,VLOOKUP(Tableau4[[#This Row],[Colonne29]],table,21),"")))) ->  | AB70: =IF(VLOOKUP(Tableau4[[#This Row],[Colonne29]],table,33)=AB$65,VLOOKUP(Tableau4[[#This Row],[Colonne29]],table,20),IF(VLOOKUP(Tableau4[[#This Row],[Colonne29]],table,34)=AB$65,VLOOKUP(Tableau4[[#This Row],[Colonne29]],table,20),IF(VLOOKUP(Tableau4[[#This Row],[Colonne29]],table,35)=AB$65,VLOOKUP(Tableau4[[#This Row],[Colonne29]],table,20),IF(VLOOKUP(Tableau4[[#This Row],[Colonne29]],table,36)=AB$65,VLOOKUP(Tableau4[[#This Row],[Colonne29]],table,20),"")))) ->  | AC70: =IF(VLOOKUP(Tableau4[[#This Row],[Colonne29]],table,33)=AB$65,VLOOKUP(Tableau4[[#This Row],[Colonne29]],table,21),IF(VLOOKUP(Tableau4[[#This Row],[Colonne29]],table,34)=AB$65,VLOOKUP(Tableau4[[#This Row],[Colonne29]],table,21),IF(VLOOKUP(Tableau4[[#This Row],[Colonne29]],table,35)=AB$65,VLOOKUP(Tableau4[[#This Row],[Colonne29]],table,21),IF(VLOOKUP(Tableau4[[#This Row],[Colonne29]],table,36)=AB$65,VLOOKUP(Tableau4[[#This Row],[Colonne29]],table,21),"")))) -> 

Sheet Macro-planning Auditeurs
B1: janvier | G1: février | K1: mars | P1: avril | T1: mai | X1: juin | AC1: juillet | AG1: août | AL1: septembre | AP1: octobre | AT1: novembre | AY1: décembre
B2: S1 | C2: S2 | D2: S3 | E2: S4 | F2: S5 | G2: S1 | H2: S2 | I2: S3 | J2: S4 | K2: S1 | L2: S2 | M2: S3 | N2: S4 | O2: S5 | P2: S1 | Q2: S2 | R2: S3 | S2: S4 | T2: S1 | U2: S2 | V2: S3 | W2: S4 | X2: S1 | Y2: S2 | Z2: S3 | AA2: S4 | AB2: S5 | AC2: S1 | AD2: S2 | AE2: S3 | AF2: S4 | AG2: S1 | AH2: S2 | AI2: S3 | AJ2: S4 | AK2: S5 | AL2: S1 | AM2: S2 | AN2: S3 | AO2: S4 | AP2: S1 | AQ2: S2 | AR2: S3 | AS2: S4 | AT2: S1 | AU2: S2 | AV2: S3 | AW2: S4 | AX2: S5 | AY2: S1 | AZ2: S2 | BA2: S3 | BB2: S4
B3: 1 | C3: 2 | D3: 3 | E3: 4 | F3: 5 | G3: 6 | H3: 7 | I3: 8 | J3: 9 | K3: 10 | L3: 11 | M3: 12 | N3: 13 | O3: 14 | P3: 15 | Q3: 16 | R3: 17 | S3: 18 | T3: 19 | U3: 20 | V3: 21 | W3: 22 | X3: 23 | Y3: 24 | Z3: 25 | AA3: 26 | AB3: 27 | AC3: 28 | AD3: 29 | AE3: 30 | AF3: 31 | AG3: 32 | AH3: 33 | AI3: 34 | AJ3: 35 | AK3: 36 | AL3: 37 | AM3: 38 | AN3: 39 | AO3: 40 | AP3: 41 | AQ3: 42 | AR3: 43 | AS3: 44 | AT3: 45 | AU3: 46 | AV3: 47 | AW3: 48 | AX3: 49 | AY3: 50 | AZ3: 51 | BA3: 52 | BB3: 53
A4: Alain PERROT
A5: Alain SPAENLE
A6: Alexandre LE CORRE
A7: Arnaud MUDRY
A8: Corinne GALODE
A9: Joel MOSSARD
A10: Loic LE DEUNFF
A11: Mathias DIEZ
A12: Oliviana PIAZZA
A13: Patricia DAVANNE
A14: Pierre Jean BONNOIT
A15: Said BOUNOUA
A16: Sylvie ZEILIG
A17: Teddy FEUILLASTRE

Sheet Saisie budgétaire
B2: FICHE DE SUIVI BUDGETAIRE
B4: Audit: | D4: Structure - CPAM Côte-d'Or - 2016
B6: Nom de l'organisme: | D6: CPAM Côte-d'Or
B8: Catégorie de l'organisme: | C8: =IF(D8="","",IF(D8="CTI Prestations","TableCTIPrestations",IF(D8="CTI Missions Nationales","TableCTIMissionsNationales",IF(D8="CTI Centres Nationaux","TableCTICentreNationaux",CONCATENATE("Table",D8))))) -> Table3 | D8: =IF(D6="","",IF(ISNA(VLOOKUP(D6,'Code des CPAM'!$A$1:$C$164,3,FALSE)),"",VLOOKUP(D6,'Code des CPAM'!$A$1:$C$164,3,FALSE))) -> 3
B10: Prestataire: | D10: Mazars
A12: Choix des modules: | C12: Modules | D12: Montant
B14: Module 1 | D14: =IF(C14="",0,IF(C14="Non audité",0,VLOOKUP(F14,INDIRECT($C$8),4,FALSE))) -> 0 | F14: =CONCATENATE(B14,C14) -> Module 1
F15: =CONCATENATE(B15,C15) -> 
B16: Module 2 | D16: =IF(C16="",0,IF(C16="Non audité",0,VLOOKUP(F16,INDIRECT($C$8),4,FALSE))) -> 0 | F16: Module 2
B18: Module 3 | D18: =IF(C18="",0,IF(C18="Non audité",0,VLOOKUP(F18,INDIRECT($C$8),4,FALSE))) -> 0 | F18: Module 3
B20: Module 4 | D20: =IF(C20="",0,IF(C20="Non audité",0,VLOOKUP(F20,INDIRECT($C$8),4,FALSE))) -> 0 | F20: Module 4
D22: =IF(C22="",0,IF(C22="Non audité",0,VLOOKUP(F22,INDIRECT($C$8),4,FALSE))) -> 0
B24: Module 6 | D24: =IF(C24="",0,IF(C24="Non audité",0,VLOOKUP(F24,INDIRECT($C$8),4,FALSE))) -> 0 | F24: Module 6
B26: Module 7 | D26: =IF(C26="",0,IF(C26="Non audité",0,VLOOKUP(F26,INDIRECT($C$8),4,FALSE))) -> 0 | F26: Module 7
B28: Module 8 | D28: =IF(C28="",0,IF(C28="Non audité",0,VLOOKUP(F28,INDIRECT($C$8),4,FALSE))) -> 0 | F28: Module 8
B30: Module 9 | D30: =IF(C30="",0,IF(C30="Non audité",0,VLOOKUP(F30,INDIRECT($C$8),4,FALSE))) -> 0 | F30: Module 9
B32: Module 10 | D32: =IF(C32="",0,IF(C32="Non audité",0,VLOOKUP(F32,INDIRECT($C$8),4,FALSE))) -> 0 | F32: Module 10
B34: Module 11 | D34: =IF(C34="",0,IF(C34="Non audité",0,VLOOKUP(F34,INDIRECT($C$8),4,FALSE))) -> 0 | F34: Module 11
B36: Total: | D36: =SUM(D14:D34) -> 0
B38: Frais de mission: | D38: =IF(C38="",0,IF(LEFT(D8,3)="CTI",IF(C39="Oui",'Table de prix_Lot2'!F53*'Saisie budgétaire'!C38,'Table de prix_Lot2'!F54*'Saisie budgétaire'!C38),IF(VLOOKUP(D6,'Code des CPAM'!A1:D164,4,FALSE)="HM",C38*'Table de prix_Lot1'!F119,IF(C39="Oui",IF(VLOOKUP(D6,'Code des CPAM'!A1:D164,4,FALSE)="M",C38*'Table de prix_Lot1'!F112),C38*'Table de prix_Lot1'!F113)))) -> 0
B40: Frais de transport: | D40: =IF(C40="",0,IF(LEFT(D8,3)="CTI",IF(VLOOKUP(D6,'Code des CPAM'!A1:D164,4,FALSE)="M",C40*'Table de prix_Lot2'!F56,C40*'Table de prix_Lot2'!F55),IF(VLOOKUP(D6,'Code des CPAM'!A1:D164,4,FALSE)="IDF",0,IF(VLOOKUP(D6,'Code des CPAM'!A1:D164,4,FALSE)="M",'Saisie budgétaire'!C40*'Table de prix_Lot1'!F115,'Saisie budgétaire'!C40*'Table de prix_Lot1'!F120)))) -> 0
B42: Total engagé: | D42: =D40+D38+D36 -> 0

Sheet Suivi budgétaire
K1: Analyse du retard sur la phase terrain de l'audit | O1: Validation rapport provisoire | U1: Validation interne | AA1: Diffusion raport | AH1: Analyse des équipes d'audit | AK1: Analyse de la qualité | AL1: Analyse des pénalités
A2: Audit | B2: Organisme | C2: Classe | D2: Consultant | E2: Montant BC TTC (ENGAGES) | F2: Montant réel TTC | G2: Date d'envoi de la lettre de mission | H2: Envoi lettre de mission réel | I2: Date envoi Bon de Commande | J2: Envoi bon de commande réel | K2: Date phase terrain | L2: Date terrain réelle | M2: Durée terrain théorique | N2: Durée terrain réel | O2: Date de réception | P2: Date réception réelle | Q2: Date envoi du rapport validé au prestataire | R2: Date validation réelle interne | S2: Date d'envoi du rapport modifié à l'organisme par le prestataire | T2: Date réelle d'envoi aux organismes | U2: Date de réception rapport définitif | V2: Date réelle de réception du RD | W2: Date de transmission FG | X2: Transmission réelle à FG | Y2: Retour FG/PF | Z2: Retour réel | AA2: Date transmission DG | AB2: Transmission DG réelle | AC2: Date de diffusion rapport définitif | AD2: Date de diffusion réelle | AE2: Date du séminaire | AF2: Date réelle du seminaire | AG2: Délai mission total | AH2: Junior (<3) | AI2: Senior (3<5) | AJ2: Manager (>5) | AK2: Nombre de défauts | AL2: Pénalité sur composition des équipes d'audit | AM2: Pénalité de retard dans le commencement de l'audit | AN2: Pénalité sur la durée d'audit | AO2: Pénalité sur la qualité du rapport | AP2: synthèse | AQ2: Pénalité max applicable | AR2: M1 | AS2: M2 | AT2: M3 | AU2: M4 | AV2: M5 | AW2: M6 | AX2: M7 | AY2: M8 | AZ2: M9 | BA2: M10 | BB2: M11 | BC2: hebergement | BD2: nbj | BE2: nbpersonne
C3: =IF(Tableau2[Organisme]="","",IF(Tableau2[Organisme]="Multiples","",VLOOKUP(Tableau2[Organisme],'Code des CPAM'!$A$1:$C$164,3))) ->  | F3: =IF(Tableau2[Pénalité max applicable]="","",Tableau2[Montant BC TTC (ENGAGES)]-Tableau2[Pénalité max applicable]) ->  | J3: =IF(Tableau2[Date envoi Bon de Commande]="","",(IF(((TODAY()-Tableau2[Date envoi Bon de Commande])>5),"Oui",""))) ->  | AG3: =IF(Tableau2[Date d''envoi de la lettre de mission]="","",IF(Tableau2[[Date de réception rapport définitif ]]="",TODAY()-Tableau2[Date d''envoi de la lettre de mission],Tableau2[[Date de réception rapport définitif ]]-Tableau2[Date d''envoi de la lettre de mission])) ->  | AL3: =IF(AND(Tableau2[Junior (<3)]="",Tableau2[Senior (3<5)]="",Tableau2[Manager (>5)]=""),0,(IF(OR(Tableau2[Junior (<3)]>(0.2*SUM(Tableau2[Junior (<3)]:Tableau2[Manager (>5)])),SUM(Tableau2[Senior (3<5)]:Tableau2[Manager (>5)])<3,Tableau2[Manager (>5)]<SUM(Tableau2[Junior (<3)]:Tableau2[Manager (>5)])*0.3),0.25*Tableau2[Montant BC TTC (ENGAGES)],0))) -> 0 | AM3: =IF(Tableau2[[#This Row],[Envoi bon de commande réel]]="",0,IF(Tableau2[[#This Row],[Date terrain réelle]]>(Tableau2[[#This Row],[Envoi bon de commande réel]]+15),(Tableau2[[#This Row],[Date terrain réelle]]-(Tableau2[[#This Row],[Envoi bon de commande réel]]+15)*1000),0)) -> 0 | AN3: =IF(Tableau2[Durée terrain théorique]="",0,IF(Tableau2[Durée terrain réel]<Tableau2[Durée terrain théorique],(Tableau2[Montant BC TTC (ENGAGES)]*(Tableau2[Durée terrain théorique]-Tableau2[Durée terrain réel])/Tableau2[Durée terrain théorique]),0)) -> 0 | AO3: =IF(Tableau2[Nombre de défauts]="",0,Tableau2[Nombre de défauts]*350) -> 0 | AP3: =IF(AND(Tableau2[Pénalité sur composition des équipes d''audit]="",Tableau2[Pénalité de retard dans le commencement de l''audit]="",Tableau2[Pénalité sur la durée d''audit]="",Tableau2[Pénalité sur la qualité du rapport]=""),0,IF((Tableau2[Pénalité de retard dans le commencement de l''audit]+Tableau2[Pénalité sur la durée d''audit]+Tableau2[Pénalité sur composition des équipes d''audit]+Tableau2[Pénalité sur la qualité du rapport])>0.3*Tableau2[Montant BC TTC (ENGAGES)],0.3*Tableau2[Montant BC TTC (ENGAGES)],Tableau2[Pénalité de retard dans le commencement de l''audit]+Tableau2[Pénalité sur la durée d''audit]+Tableau2[Pénalité sur composition des équipes d''audit]+Tableau2[Pénalité sur la qualité du rapport])) -> 0 | AQ3: =IF(Tableau2[synthèse]=0,"",Tableau2[synthèse]) -> 

Sheet staff (hidden)
A1: staff | B1: DM | C1: Prestataire
A2: Alain PERROT | B2: Anne Sanchez | C2: Interne
A3: Alain SPAENLE | B3: Francine Scherpereel | C3: BearingPoint
A4: Alexandre LE CORRE | B4: Jacqueline Perez | C4: Eurogroup
A5: Arnaud MUDRY | B5: Jean-Michel Vallet | C5: Grant Thornton
A6: Corinne GALODE | B6: Externe | C6: Mazars
A7: Joel MOSSARD
A8: Loic LE DEUNFF
A9: Mathias DIEZ
A10: Oliviana PIAZZA
A11: Patricia DAVANNE
A12: Pierre Jean BONNOIT
A13: Said BOUNOUA
A14: Sylvie ZEILIG
A15: Teddy FEUILLASTRE

Sheet Code des CPAM (hidden)
A1: CCSS Lozère | B1: C | C1: =IF(B1="A",1,IF(B1="B",2,3)) -> 3 | D1: M
A2: CGSS Guadeloupe | B2: B | C2: =IF(B2="A",1,IF(B2="B",2,3)) -> 2 | D2: HM
A3: CGSS Guyane | B3: B | C3: 2 | D3: HM
A4: CGSS Martinique | B4: B | C4: 2 | D4: HM
A5: CGSS Réunion | B5: B | C5: 2 | D5: HM
A6: CPAM Charente-Maritime | B6: B | C6: 2 | D6: M
A7: CPAM Haute-Loire | B7: D | C7: 3 | D7: M
A8: CPAM Ain | B8: C | C8: 3 | D8: M
A9: CPAM Aisne | B9: C | C9: 3 | D9: M
A10: CPAM Allier | B10: C | C10: 3 | D10: M
A11: CPAM Alpes-de-Haute-Provence | B11: D | C11: 3 | D11: M
A12: CPAM Alpes-Maritimes | B12: B | C12: 2 | D12: M
A13: CPAM Ardèche | B13: D | C13: 3 | D13: M
A14: CPAM Ardennes | B14: D | C14: 3 | D14: M
A15: CPAM Ariège | B15: D | C15: 3 | D15: M
A16: CPAM Artois | B16: B | C16: 2 | D16: M
A17: CPAM Aube | B17: D | C17: 3 | D17: M
A18: CPAM Aude | B18: C | C18: 3 | D18: M
A19: CPAM Aveyron | B19: D | C19: 3 | D19: M
A20: CPAM Bas-Rhin | B20: B | C20: 2 | D20: M
A21: CPAM Bayonne | B21: C | C21: 3 | D21: M
A22: CPAM Boûches-du-Rhône | B22: A | C22: 1 | D22: M
A23: CPAM Calvados | B23: B | C23: 2 | D23: M
A24: CPAM Cantal | B24: D | C24: 3 | D24: M
A25: CPAM Charente | B25: C | C25: 3 | D25: M
A26: CPAM Cher | B26: D | C26: 3 | D26: M
A27: CPAM Corrèze | B27: D | C27: 3 | D27: M
A28: CPAM Corse-du-sud | B28: D | C28: 3 | D28: HM
A29: CPAM Côte-d'Or | B29: C | C29: 3 | D29: M
A30: CPAM Côte-d'Opale | B30: B | C30: 2 | D30: M
A31: CPAM Côtes d'Armor | B31: C | C31: 3 | D31: M
A32: CPAM Creuse | B32: D | C32: 3 | D32: M
A33: CPAM Deux-Sèvres | B33: D | C33: 3 | D33: M
A34: CPAM Dordogne | B34: C | C34: 3 | D34: M
A35: CPAM Doubs | B35: C | D35: M
A36: CPAM Drôme | B36: C | C36: 3 | D36: M
A37: CPAM Essonne | B37: B | C37: 2 | D37: IDF
A38: CPAM Eure | B38: B | C38: 2 | D38: M
A39: CPAM Eure-et-Loir | B39: C | C39: 3 | D39: M
A40: CPAM Finistère | B40: B | C40: 2 | D40: M
A41: CPAM Flandres-Dunkerque-Armentières | B41: C | C41: 3 | D41: M
A42: CPAM Gard | B42: B | C42: 2 | D42: M
A43: CPAM Gers | B43: D | C43: 3 | D43: M
A44: CPAM Gironde | B44: A | C44: 1 | D44: M
A45: CPAM Hainaut | B45: B | C45: 2 | D45: M
A46: CPAM Haute-Corse | B46: D | C46: 3 | D46: HM
A47: CPAM Haute-Garonne | B47: B | C47: 2 | D47: M
A48: CPAM Haute-Marne | B48: D | C48: 3 | D48: M
A49: CPAM Hautes-Alpes | B49: D | C49: 3 | D49: M
A50: CPAM Haute-Saône | B50: D | C50: 3 | D50: M
A51: CPAM Haute-Savoie | B51: B | C51: 2 | D51: M
A52: CPAM Hautes-Pyrénées | B52: D | C52: 3 | D52: M
A53: CPAM Haute-Vienne | B53: C | C53: 3 | D53: M
A54: CPAM Haut-Rhin | B54: B | C54: 2 | D54: M
A55: CPAM Hauts-de-Seine | B55: A | C55: 1 | D55: IDF
A56: CPAM Hérault | B56: B | C56: 2 | D56: M
A57: CPAM Ille-et-Vilaine | B57: B | C57: 2 | D57: M
A58: CPAM Indre | B58: D | C58: 3 | D58: M
A59: CPAM Indre-et-Loire | B59: B | C59: 2 | D59: M
A60: CPAM Isère | B60: B | C60: 2 | D60: M
A61: CPAM Jura | B61: D | C61: 3 | D61: M
A62: CPAM Landes | B62: C | C62: 3 | D62: M
A63: CPAM Le Havre | B63: C | C63: 3 | D63: M
A64: CPAM Lille-Douai | B64: B | C64: 2 | D64: M
A65: CPAM Loire | B65: B | C65: 2 | D65: M
A66: CPAM Loire-Atlantique | B66: B | C66: =IF(B66="A",1,IF(B66="B",2,3)) -> 2 | D66: M
A67: CPAM Loiret | B67: B | C67: 2 | D67: M
A68: CPAM Loir-et-Cher | B68: D | C68: 3 | D68: M
A69: CPAM Lot | B69: D | C69: 3 | D69: M
A70: CPAM Lot-et-Garonne | B70: D | C70: 3 | D70: M
A71: CPAM Maine-et-Loir | B71: B | C71: 2 | D71: M
A72: CPAM Manche | B72: C | C72: 3 | D72: M
A73: CPAM Marne | B73: C | C73: 3 | D73: M
A74: CPAM Mayenne | B74: D | C74: 3 | D74: M
A75: CPAM Meurthe-et-Moselle | B75: B | C75: 2 | D75: M
A76: CPAM Meuse | B76: D | C76: 3 | D76: M
A77: CPAM Morbihan | B77: B | C77: 2 | D77: M
A78: CPAM Moselle | B78: B | C78: 2 | D78: M
A79: CPAM Nièvre | B79: D | C79: 3 | D79: M
A80: CPAM Oise | B80: B | C80: 2 | D80: M
A81: CPAM Orne | B81: D | C81: 3 | D81: M
A82: CPAM Paris | B82: A | C82: 1 | D82: IDF
A83: CPAM Pau | B83: C | C83: 3 | D83: M
A84: CPAM Puy-de-Dôme | B84: B | C84: 2 | D84: M
A85: CPAM Pyrénées-Orientales | B85: C | C85: 3 | D85: M
A86: CPAM Rhône | B86: A | C86: 1 | D86: M
A87: CPAM Roubaix-Tourcoing | B87: B | C87: 2 | D87: M
A88: CPAM Rouen-Elbeuf-Dieppe-Seine-Maritime | B88: B | C88: 2 | D88: M
A89: CPAM Saône-et-Loire | B89: C | C89: 3 | D89: M
A90: CPAM Sarthe | B90: C | C90: 3 | D90: M
A91: CPAM Savoie | B91: C | C91: 3 | D91: M
A92: CPAM Seine-et-Marne | B92: B | C92: 2 | D92: IDF
A93: CPAM Seine-Saint-Denis | B93: A | C93: 1 | D93: IDF
A94: CPAM Somme | B94: B | C94: 2 | D94: M
A95: CPAM Tarn | B95: C | C95: 3 | D95: M
A96: CPAM Tarn-et-Garonne | B96: D | C96: 3 | D96: M
A97: CPAM Territoire-de-Belfort | B97: D | C97: 3 | D97: M
A98: CPAM Val-de-Marne | B98: B | C98: 2 | D98: IDF
A99: CPAM Val-d'Oise | B99: B | C99: 2 | D99: IDF
A100: CPAM Var | B100: B | C100: 2 | D100: M
A101: CPAM Vaucluse | B101: B | C101: 2 | D101: M
A102: CPAM Vendée | B102: B | C102: 2 | D102: M
A103: CPAM Vienne | B103: C | C103: 3 | D103: M
A104: CPAM Vosges | B104: C | C104: 3 | D104: M
A105: CPAM Yonne | B105: C | C105: 3 | D105: M
A106: CPAM Yvelines | B106: B | C106: 2 | D106: IDF
A107: CSSM Mayotte | B107: B | C107: =IF(B107="A",1,IF(B107="B",2,3)) -> 2 | D107: HM
A108: DRSM Alsace-Moselle | C108: DRSM | D108: M
A109: DRSM Aquitaine | C109: DRSM | D109: M
A110: DRSM Auvergne | C110: DRSM | D110: M
A111: DRSM Bourgogne-Franche-Comté | C111: DRSM | D111: M
A112: DRSM Bretagne | C112: DRSM | D112: M
A113: DRSM Centre | C113: DRSM | D113: M
A114: DRSM Centre-Ouest | C114: DRSM | D114: M
A115: DRSM Guadeloupe | C115: DRSM | D115: HM
A116: DRSM Guyane | C116: DRSM | D116: HM
A117: DRSM Ile de France | C117: DRSM | D117: IDF
A118: DRSM La Réunion | C118: DRSM | D118: HM
A119: DRSM Languedoc-Rousillon | C119: DRSM | D119: M
A120: DRSM Martinique | C120: DRSM | D120: HM
A121: DRSM Midi-Pyrénées | C121: DRSM | D121: M
A122: DRSM Nord-Est | C122: DRSM | D122: M
A123: DRSM Nord-Picardie | C123: DRSM | D123: M
A124: DRSM Normandie | C124: DRSM | D124: M
A125: DRSM Pays de Loire | C125: DRSM | D125: M
A126: DRSM Rhône-Alpes | C126: DRSM | D126: M
A127: DRSM Sud-Est-Corse | C127: DRSM | D127: M
A128: UGECAM Alsace | C128: UGECAM | D128: M
A129: UGECAM Aquitaine | C129: UGECAM | D129: M
A130: UGECAM Auvergne Limousin Poitou-Charente | C130: UGECAM | D130: M
A131: UGECAM Bourgogne Franche-Compté | C131: UGECAM | D131: M
A132: UGECAM Bretagne Pays de la Loire | C132: UGECAM | D132: M
A133: UGECAM Centre | C133: UGECAM | D133: M
A134: UGECAM Ile-de-France | C134: UGECAM | D134: IDF
A135: UGECAM Languedoc-Roussillon Midi-Pyrénées | C135: UGECAM | D135: M
A136: UGECAM Nord Pas-de-Calais Picardie | C136: UGECAM | D136: M
A137: UGECAM Nord-Est | C137: UGECAM | D137: M
A138: UGECAM Normandie | C138: UGECAM | D138: M
A139: UGECAM PACA-Corse | C139: UGECAM | D139: M
A140: UGECAM Rhône Alpes | C140: UGECAM | D140: M
A141: CARSAT Alsace Moselle | C141: CARSAT | D141: M
A142: CARSAT Aquitaine | C142: CARSAT | D142: M
A143: CARSAT Auvergne | C143: CARSAT | D143: M
A144: CARSAT Bourgogne Franche-Compté | C144: CARSAT | D144: M
A145: CARSAT Bretagne | C145: CARSAT | D145: M
A146: CARSAT Centre | C146: CARSAT | D146: M
A147: CARSAT Centre-Ouest | C147: CARSAT | D147: M
A148: CARSAT Languedoc Roussillon | C148: CARSAT | D148: M
A149: CARSAT Midi-Pyrénées | C149: CARSAT | D149: M
A150: CARSAT Nord Est | C150: CARSAT | D150: M
A151: CARSAT Nord Picardie | C151: CARSAT | D151: M
A152: CARSAT Normandie | C152: CARSAT | D152: M
A153: CARSAT Pays de la Loire | C153: CARSAT | D153: M
A154: CARSAT Rhône-Alpes | C154: CARSAT | D154: M
A155: CARSAT Sud-Est | C155: CARSAT | D155: M
A156: CRAMIF | C156: CARSAT | D156: IDF
A157: CTI Bretagne - Pays de Loire | C157: CTIMissionsNationales | D157: M | E157: CTIMissionsNationales
A158: CTI Grand Est | C158: CTICentresNationaux | D158: M | E158: CTICentresNationaux | F158: CTIPrestations
A159: CTI PACAC | C159: CTIPrestations | D159: M | E159: CTIPrestations
A160: CTI Rhône Alpes Auvergne | C160: CTIPrestations | D160: M | E160: CTIPrestations
A161: CTI NP-NP | C161: CTIMissionsNationales | D161: M | E161: CTIMissionsNationales
A162: CTI Sud Toulouse | C162: CTICentresNationaux | D162: M | E162: CTICentresNationaux | F162: CTIPrestations
A163: CICOA | C163: CTIMissionsNationales | D163: M | E163: CTIMissionsNationales
A164: CESTIF | C164: CTIPrestations | D164: M | E164: CTIPrestations

Sheet Table de prix_Lot1 (hidden)
E1: A
A2: Unités d'œuvre | B2: Modules d'audit | C2: Niveau de profondeur de l'audit | E2: Prix forfaitaire HT | F2: TVA | G2: Prix forfaitaire TTC
A3: UO 1 | B3: Module 1 | C3: Audité | D3: =CONCATENATE(B3,C3) -> Module 1Audité | E3: 20444 | F3: 0.2 | G3: =E3*(1+F3) -> 24532.8
A4: UO 2.1 | B4: Module 2 | C4: Niveau 1 | D4: =CONCATENATE(B4,C4) -> Module 2Niveau 1 | E4: 4114 | F4: 0.2 | G4: =E4*(1+F4) -> 4936.8
A5: UO 2.2 | C5: Niveau 2 | D5: =CONCATENATE(B4,C5) -> Module 2Niveau 2 | E5: 4114 | F5: 0.2 | G5: 4936.8
A6: UO 3.1 | B6: Module 3 | C6: Niveau 1 | D6: =CONCATENATE(B6,C6) -> Module 3Niveau 1 | E6: 2447 | F6: 0.2 | G6: 2936.4
A7: UO 3.2 | C7: Niveau 2 | D7: =CONCATENATE(B6,C7) -> Module 3Niveau 2 | E7: 3671 | F7: 0.2 | G7: 4405.2
A8: UO 4.1 | B8: Module 4 | C8: Niveau 1 | D8: =CONCATENATE(B8,C8) -> Module 4Niveau 1 | E8: 2575 | F8: 0.2 | G8: 3090
A9: UO 4.2 | C9: Niveau 2 | D9: =CONCATENATE(B8,C9) -> Module 4Niveau 2 | E9: 2575 | F9: 0.2 | G9: 3090
A10: UO 5.1 | B10: Module 5 | C10: Niveau 1 | D10: =CONCATENATE(B10,C10) -> Module 5Niveau 1 | E10: 4655 | F10: 0.2 | G10: 5586
A11: UO 5.2 | C11: Niveau 2 | D11: =CONCATENATE(B10,C11) -> Module 5Niveau 2 | E11: 4655 | F11: 0.2 | G11: 5586
A12: UO 6.1 | B12: Module 6 | C12: Niveau 1 | D12: =CONCATENATE(B12,C12) -> Module 6Niveau 1 | E12: 2888 | F12: 0.2 | G12: 3465.6
A13: UO 6.2 | C13: Niveau 2 | D13: =CONCATENATE(B12,C13) -> Module 6Niveau 2 | E13: 4332 | F13: 0.2 | G13: 5198.4
A14: UO 7.1 | B14: Module 7 | C14: Niveau 1 | D14: =CONCATENATE(B14,C14) -> Module 7Niveau 1 | E14: 9599 | F14: 0.2 | G14: 11518.8
A15: UO 7.2 | C15: Niveau 2 | D15: =CONCATENATE(B14,C15) -> Module 7Niveau 2 | E15: 6931 | F15: 0.2 | G15: 8317.2
A16: UO 8.1 | B16: Module 8 | C16: Niveau 1 | D16: =CONCATENATE(B16,C16) -> Module 8Niveau 1 | E16: 5149 | F16: 0.2 | G16: 6178.8
A17: UO 8.2 | C17: Niveau 2 | D17: =CONCATENATE(B16,C17) -> Module 8Niveau 2 | E17: 5149 | F17: 0.2 | G17: 6178.8
A18: UO 9 | B18: Module 9 | C18: Audité | D18: =CONCATENATE(B18,C18) -> Module 9Audité | E18: 9154 | F18: 0.2 | G18: 10984.8
A19: UO 10 | B19: Module 10 | C19: Audité | D19: =CONCATENATE(B19,C19) -> Module 10Audité | E19: 4577 | F19: 0.2 | G19: 5492.4
A20: UO 11 | B20: Module 11 | C20: Audité | D20: =CONCATENATE(B20,C20) -> Module 11Audité | E20: 4750 | F20: 0.2 | G20: 5700
E22: B
A23: Unités d'œuvre | B23: Modules d'audit | C23: Niveau de profondeur de l'audit | E23: Prix forfaitaire HT | F23: TVA | G23: Prix forfaitaire TTC
A24: UO 12 | B24: Module 1 | C24: Audité | D24: =CONCATENATE(B24,C24) -> Module 1Audité | E24: 15960 | F24: 0.2 | G24: =E24*(1+F24) -> 19152 | J24: 15960
A25: 13.1 | B25: Module 2 | C25: Niveau 1 | D25: =CONCATENATE(B25,C25) -> Module 2Niveau 1 | E25: 3667 | F25: 0.2 | G25: =E25*(1+F25) -> 4400.4 | J25: 3040
A26: 13.2 | C26: Niveau 2 | D26: =CONCATENATE(B25,C26) -> Module 2Niveau 2 | E26: 3667 | F26: 0.2 | G26: 4400.4 | J26: 3040
A27: 14.1 | B27: Module 3 | C27: Niveau 1 | D27: =CONCATENATE(B27,C27) -> Module 3Niveau 1 | E27: 2166 | F27: 0.2 | G27: 2599.2 | J27: 1824
A28: 14.2 | C28: Niveau 2 | D28: =CONCATENATE(B27,C28) -> Module 3Niveau 2 | E28: 3249 | F28: 0.2 | G28: 3898.8 | J28: 2736
A29: 15.1 | B29: Module 4 | C29: Niveau 1 | D29: =CONCATENATE(B29,C29) -> Module 4Niveau 1 | E29: 2176 | F29: 0.2 | G29: 2611.2 | J29: 1919
A30: 15.2 | C30: Niveau 2 | D30: =CONCATENATE(B29,C30) -> Module 4Niveau 2 | E30: 2176 | F30: 0.2 | G30: 2611.2 | J30: 1919
A31: 16.1 | B31: Module 5 | C31: Niveau 1 | D31: =CONCATENATE(B31,C31) -> Module 5Niveau 1 | E31: 4104 | F31: 0.2 | G31: 4924.8 | J31: 3420
A32: 16.2 | C32: Niveau 2 | D32: =CONCATENATE(B31,C32) -> Module 5Niveau 2 | E32: 4104 | F32: 0.2 | G32: 4924.8 | J32: 3420
A33: 17.1 | B33: Module 6 | C33: Niveau 1 | D33: =CONCATENATE(B33,C33) -> Module 6Niveau 1 | E33: 2512 | F33: 0.2 | G33: 3014.4 | J33: 2075
A34: 17.2 | C34: Niveau 2 | D34: =CONCATENATE(B33,C34) -> Module 6Niveau 2 | E34: 3768 | F34: 0.2 | G34: 4521.6 | J34: 3112
A35: 18.1 | B35: Module 7 | D35: =CONCATENATE(B35,C35) -> Module 7 | E35: 8375 | F35: 0.2 | G35: 10050 | J35: 7021
A36: 18.2 | C36: Niveau 2 | D36: =CONCATENATE(B35,C36) -> Module 7Niveau 2 | E36: 6036 | F36: 0.2 | G36: 7243.2 | J36: 5072
A37: 19.1 | B37: Module 8 | C37: Niveau 1 | D37: =CONCATENATE(B37,C37) -> Module 8Niveau 1 | E37: 4551 | F37: 0.2 | G37: 5461.2 | J37: 3810
A38: 19.2 | C38: Niveau 2 | D38: =CONCATENATE(B37,C38) -> Module 8Niveau 2 | E38: 4551 | F38: 0.2 | G38: 5461.2 | J38: 3810
A39: UO 20 | B39: Module 9 | C39: Audité | D39: =CONCATENATE(B39,C39) -> Module 9Audité | E39: 8531 | F39: 0.2 | G39: 10237.2 | J39: 6756
A40: UO 21 | B40: Module 10 | C40: Audité | D40: =CONCATENATE(B40,C40) -> Module 10Audité | E40: 4266 | F40: 0.2 | G40: 5119.2 | J40: 3378
A41: UO 22 | B41: Module 11 | C41: Audité | D41: =CONCATENATE(B41,C41) -> Module 11Audité | E41: 4750 | F41: 0.2 | G41: 5700 | J41: 4750
E43: C
A44: Unités d'œuvre | B44: Modules d'audit | C44: Niveau de profondeur de l'audit | E44: Prix forfaitaire HT | F44: TVA | G44: Prix forfaitaire TTC
A45: UO 23 | B45: Module 1 | C45: Audité | D45: =CONCATENATE(B45,C45) -> Module 1Audité | E45: 15960 | F45: 0.2 | G45: =E45*(1+F45) -> 19152
A46: UO 24.1 | B46: Module 2 | C46: Niveau 1 | D46: =CONCATENATE(B46,C46) -> Module 2Niveau 1 | E46: 3040 | F46: 0.2
A47: UO 24.2 | C47: Niveau 2 | D47: =CONCATENATE(B46,C47) -> Module 2Niveau 2 | E47: 3040 | F47: 0.2 | G47: 3648
A48: UO 25.1 | B48: Module 3 | C48: Niveau 1 | D48: =CONCATENATE(B48,C48) -> Module 3Niveau 1 | E48: 1824 | F48: 0.2 | G48: 2188.8
A49: UO 25.2 | C49: Niveau 2 | D49: =CONCATENATE(B48,C49) -> Module 3Niveau 2 | E49: 2736 | F49: 0.2 | G49: 3283.2
A50: UO 26.1 | B50: Module 4 | C50: Niveau 1 | D50: =CONCATENATE(B50,C50) -> Module 4Niveau 1 | E50: 1919 | F50: 0.2 | G50: 2302.8
A51: UO 26.2 | C51: Niveau 2 | D51: =CONCATENATE(B50,C51) -> Module 4Niveau 2 | E51: 1919 | F51: 0.2 | G51: 2302.8
A52: UO 27.1 | B52: Module 5 | C52: Niveau 1 | D52: =CONCATENATE(B52,C52) -> Module 5Niveau 1 | E52: 3420 | F52: 0.2 | G52: 4104
A53: UO 27.2 | C53: Niveau 2 | D53: =CONCATENATE(B52,C53) -> Module 5Niveau 2 | E53: 3420 | F53: 0.2 | G53: 4104
A54: UO 28.1 | B54: Module 6 | C54: Niveau 1 | D54: =CONCATENATE(B54,C54) -> Module 6Niveau 1 | E54: 2075 | F54: 0.2 | G54: 2490
A55: UO 28.2 | C55: Niveau 2 | D55: =CONCATENATE(B54,C55) -> Module 6Niveau 2 | E55: 3112 | F55: 0.2 | G55: 3734.4
A56: UO 29.1 | B56: Module 7 | C56: Niveau 1 | D56: =CONCATENATE(B56,C56) -> Module 7Niveau 1 | E56: 7021 | F56: 0.2 | G56: =(E56*(1+F56)) -> 8425.2
A57: UO 29.2 | C57: Niveau 2 | D57: =CONCATENATE(B56,C57) -> Module 7Niveau 2 | E57: 5072 | F57: 0.2 | G57: 6086.4
A58: UO 30.1 | B58: Module 8 | C58: Niveau 1 | D58: =CONCATENATE(B58,C58) -> Module 8Niveau 1 | E58: 3810 | F58: 0.2 | G58: 4572
A59: UO 30.2 | C59: Niveau 2 | D59: =CONCATENATE(B58,C59) -> Module 8Niveau 2 | E59: 3810 | F59: 0.2 | G59: 4572
A60: UO 32 | B60: Module 9 | C60: Audité | D60: =CONCATENATE(B60,C60) -> Module 9Audité | E60: 6756 | F60: 0.2 | G60: 8107.2
A61: UO 33 | B61: Module 10 | C61: Audité | D61: =CONCATENATE(B61,C61) -> Module 10Audité | E61: 3378 | F61: 0.2 | G61: 4053.6
A62: UO 34 | B62: Module 11 | C62: Audité | D62: =CONCATENATE(B62,C62) -> Module 11Audité | E62: 4750 | F62: 0.2 | G62: 5700
A64: Unités d'œuvre | B64: Modules d'audit | C64: Niveau de profondeur de l'audit | E64: Prix forfaitaire HT | F64: TVA | G64: Prix forfaitaire TTC
A65: UO 34.1 | B65: Module 7.1 | C65: Niveau 1 | E65: 3360 | F65: 0.2 | G65: =E65*(1+F65) -> 4032
A66: UO 34.2 | C66: Niveau 2 | E66: 2310 | F66: 0.2 | G66: 2772
A67: UO 35.1 | B67: Module 7.2 | C67: Niveau 1 | E67: 2400 | F67: 0.2 | G67: 2880
A68: UO 35.2 | C68: Niveau 2 | E68: 2310 | F68: 0.2 | G68: 2772
A69: UO 36.1 | B69: Module 7.3 | C69: Niveau 1 | E69: 3840 | F69: 0.2 | G69: 4608
A70: UO 36.2 | C70: Niveau 2 | E70: 2310 | F70: 0.2 | G70: 2772
C72: DRSM
A73: Unités d'œuvre | B73: Modules d'audit | C73: Niveau de profondeur de l'audit | E73: Prix forfaitaire HT | F73: TVA | G73: Prix forfaitaire TTC
A74: UO 37 | B74: Module 1 | C74: Audité | D74: Module 1Audité | E74: 14298 | F74: 0.2 | G74: =E74*(1+F74) -> 17157.6
A75: UO 38 | B75: Module 2 | C75: Audité | D75: Module 2Audité | E75: 2641 | F75: 0.2 | G75: =E75*(1+F75) -> 3169.2
A76: UO 39 | B76: Module 3 | C76: Audité | D76: Module 3Audité | E76: 2033 | F76: 0.2 | G76: 2439.6
A77: UO 40 | B77: Module 4 | C77: Audité | D77: Module 4Audité | E77: 1710 | F77: 0.2 | G77: 2052
A78: UO 41 | B78: Module 6 | C78: Audité | D78: Module 6Audité | E78: 2328 | F78: 0.2 | G78: 2793.6
A79: UO 42 | B79: Module 7 | C79: Audité | D79: Module 7Audité | E79: 5073 | F79: 0.2 | G79: 6087.6
A80: UO 43 | B80: Module 8 | C80: Audité | D80: Module 8Audité | E80: 3230 | F80: 0.2 | G80: 3876
A81: UO 44 | B81: Module 9 | C81: Audité | D81: Module 9Audité | E81: 5654 | F81: 0.2 | G81: 6784.8
A82: UO 45 | B82: Module 10 | C82: Audité | D82: Module 10Audité | E82: 2827 | F82: 0.2 | G82: 3392.4
A83: UO 46 | B83: Module 11 | C83: Audité | D83: Module 11Audité | E83: 4750 | F83: 0.2 | G83: 5700
C85: CARSAT
A86: Unités d'œuvre | B86: Modules d'audit | C86: Niveau de profondeur de l'audit | E86: Prix forfaitaire HT | F86: TVA | G86: Prix forfaitaire TTC
A87: UO 47 | B87: Module 1 | C87: Audité | D87: =CONCATENATE(B87,C87) -> Module 1Audité | E87: 9690 | F87: 0.2 | G87: =E87*(1+F87) -> 11628
A88: UO 48 | B88: Module 2 | C88: Audité | D88: Module 2Audité | E88: 1729 | F88: 0.2 | G88: 2074.8
A89: UO 49 | B89: Module 3 | C89: Audité | D89: Module 3Audité | E89: 1273 | F89: 0.2 | G89: 1527.6
A90: UO 50 | B90: Module 4 | C90: Audité | D90: Module 4Audité | E90: 1045 | F90: 0.2 | G90: 1254
A91: UO 51 | B91: Module 5 | C91: Audité | D91: Module 5Audité | E91: 1957 | F91: 0.2 | G91: 2348.4
A92: UO 52 | B92: Module 6 | C92: Audité | D92: Module 6Audité | E92: 1501 | F92: 0.2 | G92: 1801.2
A93: UO 53 | B93: Module 7 | C93: Audité | D93: Module 7Audité | E93: 3553 | F93: 0.2 | G93: 4263.6
A94: UO 54 | B94: Module 8 | C94: Audité | D94: Module 8Audité | E94: 2413 | F94: 0.2 | G94: 2895.6
A95: UO 55 | B95: Module 9 | C95: Audité | D95: Module 9Audité | E95: 5366 | F95: 0.2 | G95: 6439.2
A96: UO 56 | B96: Module 10 | C96: Audité | D96: Module 10Audité | E96: 2683 | F96: 0.2 | G96: 3219.6
A97: UO 57 | B97: Module 11 | C97: Audité | D97: Module 11Audité | E97: 4750 | F97: 0.2 | G97: 5700
C99: UGECAM
A100: Unités d'œuvre | B100: Modules d'audit | C100: Niveau de profondeur de l'audit | E100: Prix forfaitaire HT | F100: TVA | G100: Prix forfaitaire TTC
A101: UO 58 | B101: Module 1 | C101: Audité | D101: =CONCATENATE(B34:B101,"Audité") -> Module 1Audité | E101: 10545 | F101: 0.2 | G101: =E101*(1+F101) -> 12654
A102: UO 59 | B102: Module 2 | C102: Audité | D102: Module 2Audité | E102: 4427 | F102: 0.2 | G102: 5312.4
A103: UO 60 | B103: Module 3 | C103: Audité | D103: Module 3Audité | E103: 3990 | F103: 0.2 | G103: 4788
A104: UO 61 | B104: Module 4 | C104: Audité | D104: Module 4Audité | E104: 3097 | F104: 0.2 | G104: 3716.4
A105: UO 62 | B105: Module 5 | C105: Audité | D105: Module 5Audité | E105: 4788 | F105: 0.2 | G105: 5745.6
A106: UO 63 | B106: Module 9 | C106: Audité | D106: Module 9Audité | E106: 5753 | F106: 0.2 | G106: 6903.6
A107: UO 64 | B107: Module 10 | C107: Audité | D107: Module 10Audité | E107: 2877 | F107: 0.2 | G107: 3452.4
A108: UO 65 | B108: Module 11 | C108: Audité | D108: Module 11Audité | E108: 4750 | F108: 0.2 | G108: 5700
C110: Metropole
A111: Unités d'œuvre | B111: Libellé | C111: Prix forfaitaire HT | E111: TVA | F111: Prix forfaitaire TTC
A112: UO 66 | B112: Frais de mission hors transport (avec hébergement) | C112: 150 | E112: 0.2 | F112: =C112*(1+E112) -> 180 | G112: nb de j
A113: UO 67 | B113: Frais de mission hors transport (sans hébergement) | C113: 50 | E113: 0.2 | F113: =C113*(1+E113) -> 60 | G113: nb de j
A114: UO 68 | B114: Frais de Transport (en Ile de France) | C114: 0 | E114: 0.2 | F114: =C114*(1+E114) -> 0
A115: UO 69 | B115: Frais de Transport (hors Ile de France) | C115: 50 | E115: 0.2 | F115: =C115*(1+E115) -> 60 | G115: nb de p
C117: DOM et Corse
A118: Unités d'œuvre | B118: Libellé | C118: Prix forfaitaire HT | E118: TVA | F118: Prix forfaitaire TTC
A119: UO 70 | B119: Frais de mission hors transport (avec hébergement) | C119: 150 | E119: 0.2 | F119: =C119*(1+E119) -> 180
A120: UO 71 | B120: Frais de Transport | C120: 2200 | E120: 0.2 | F120: =C120*(1+E120) -> 2640

Sheet Table de prix_Lot2 (hidden)
E1: CTI PRESTATIONS | H1: CTI MISSIONS NATIONALES | K1: CENTRES NATIONAUX
A2: Unités d'œuvre | B2: Modules d'audit | C2: Niveau de profondeur de l'audit | E2: Prix forfaitaire HT | F2: TVA | G2: Prix forfaitaire TTC | H2: Prix forfaitaire HT | I2: TVA | J2: Prix forfaitaire TTC | K2: Prix forfaitaire HT | L2: TVA | M2: Prix forfaitaire TTC
A3: UO 1 | B3: Module 1 | C3: Audité | D3: =CONCATENATE(B3,C3) -> Module 1Audité | E3: 23564.3 | F3: 0.2 | G3: =E3*(1+F3) -> 28277.16 | H3: 25355.5 | I3: 0.2 | J3: =H3*(1+I3) -> 30426.6 | K3: 23564.3 | L3: 0.2 | M3: =K3*(1+L3) -> 28277.16
A4: UO 2.1 | B4: Module 2 | C4: Niveau 1 | D4: =CONCATENATE(B4,C4) -> Module 2Niveau 1 | E4: 9246.6 | F4: 0.2 | G4: =E4*(1+F4) -> 11095.92 | H4: 9246.6 | I4: 0.2 | J4: =H4*(1+I4) -> 11095.92
A5: UO 2.2 | C5: Niveau 2 | D5: =CONCATENATE(B4,C5) -> Module 2Niveau 2 | E5: 10886.55 | F5: 0.2 | G5: 13063.86 | H5: 10886.55 | I5: 0.2 | J5: 13063.86
A6: UO 3.1 | B6: Module 3 | C6: Niveau 1 | D6: Module 3Niveau 1 | K6: 8351 | L6: 0.2 | M6: =K6*(1+L6) -> 10021.2
A7: UO 3.2 | C7: Niveau 2 | D7: =CONCATENATE(B6,C7) -> Module 3Niveau 2 | K7: 10142.2 | L7: 0.2 | M7: 12170.64
A8: UO 4.1 | B8: Module 4 | C8: Niveau 1 | D8: Module 4Niveau 1 | E8: 9246.6 | F8: 0.2 | G8: 11095.92 | H8: 9246.6 | I8: 0.2 | J8: 11095.92 | K8: 9246.6 | L8: 0.2 | M8: 11095.92
A9: UO 4.2 | C9: Niveau 2 | D9: =CONCATENATE(B8,C9) -> Module 4Niveau 2 | E9: 10886.55 | F9: 0.2 | G9: 13063.86 | H9: 10886.55 | I9: 0.2 | J9: 13063.86 | K9: 10886.55 | L9: 0.2 | M9: 13063.86
A10: UO 5.1 | B10: Module 5 | C10: Niveau 1 | D10: Module 5Niveau 1 | E10: 7606.65 | F10: 0.2 | G10: 9127.98 | H10: 7606.65 | I10: 0.2 | J10: 9127.98 | K10: 7606.65 | L10: 0.2 | M10: 9127.98
A11: UO 5.2 | C11: Niveau 2 | D11: =CONCATENATE(B10,C11) -> Module 5Niveau 2 | E11: 8351 | F11: 0.2 | G11: 10021.2 | H11: 8351 | I11: 0.2 | J11: 10021.2 | K11: 8351 | L11: 0.2 | M11: 10021.2
A12: UO 6.1 | B12: Module 6 | C12: Niveau 1 | D12: Module 6Niveau 1 | E12: 10886.55 | F12: 0.2 | G12: 13063.86 | H12: 12677.75 | I12: 0.2 | J12: 15213.3 | K12: 10886.55 | L12: 0.2 | M12: 13063.86
A13: UO 6.2 | C13: Niveau 2 | D13: =CONCATENATE(B12,C13) -> Module 6Niveau 2 | E13: 12526.5 | F13: 0.2 | G13: 15031.8 | H13: 13831.45 | I13: 0.2 | J13: 16597.74 | K13: 12526.5 | L13: 0.2 | M13: 15031.8
A14: UO 7 | B14: Module 7 | C14: Audité | D14: Module 7Audité | E14: 3840.5 | F14: 0.2 | G14: 4608.6 | H14: 3840.5 | I14: 0.2 | J14: 4608.6 | K14: 3840.5 | L14: 0.2 | M14: 4608.6
A15: UO 8 | B15: Module 8 | C15: Audité | D15: Module 8Audité | E15: 2126.2 | F15: 0.2 | G15: 2551.44 | H15: 2126.2 | I15: 0.2 | J15: 2551.44 | K15: 2126.2 | L15: 0.2 | M15: 2551.44
A16: UO 9 | B16: Module 9 | C16: Audité | D16: Module 9Audité | E16: 9804.65 | F16: 0.2 | G16: 11765.58 | H16: 9804.65 | I16: 0.2 | J16: 11765.58 | K16: 9804.65 | L16: 0.2 | M16: 11765.58
E18: CTI MISSIONS NATIONALES
A19: Unités d'œuvre | B19: Modules d'audit | C19: Niveau de profondeur de l'audit | E19: Prix forfaitaire HT | F19: TVA | G19: Prix forfaitaire TTC
A20: UO 1 | B20: Module 1 | C20: Audité | D20: =CONCATENATE(B20,C20) -> Module 1Audité | E20: 25355.5 | F20: 0.2 | G20: =E20*(1+F20) -> 30426.6
A21: UO 2.1 | B21: Module 2 | C21: Niveau 1 | D21: =CONCATENATE(B21,C21) -> Module 2Niveau 1 | E21: 9246.6 | F21: 0.2 | G21: =E21*(1+F21) -> 11095.92
A22: UO 2.2 | C22: Niveau 2 | D22: =CONCATENATE(B21,C22) -> Module 2Niveau 2 | E22: 10886.55 | F22: 0.2 | G22: =E22*(1+F22) -> 13063.86
A23: UO 3.1 | B23: Module 3 | C23: Niveau 1 | D23: Module 3Niveau 1
A24: UO 3.2 | C24: Niveau 2 | D24: =CONCATENATE(B23,C24) -> Module 3Niveau 2
A25: UO 4.1 | B25: Module 4 | C25: Niveau 1 | D25: Module 4Niveau 1 | E25: 9246.6 | F25: 0.2 | G25: =E25*(1+F25) -> 11095.92
A26: UO 4.2 | C26: Niveau 2 | D26: =CONCATENATE(B25,C26) -> Module 4Niveau 2 | E26: 10886.55 | F26: 0.2 | G26: 13063.86
A27: UO 5.1 | B27: Module 5 | C27: Niveau 1 | D27: Module 5Niveau 1 | E27: 7606.65 | F27: 0.2 | G27: 9127.98
A28: UO 5.2 | C28: Niveau 2 | D28: =CONCATENATE(B27,C28) -> Module 5Niveau 2 | E28: 8351 | F28: 0.2 | G28: 10021.2
A29: UO 6.1 | B29: Module 6 | C29: Niveau 1 | D29: Module 6Niveau 1 | E29: 12677.75 | F29: 0.2 | G29: 15213.3
A30: UO 6.2 | C30: Niveau 2 | D30: =CONCATENATE(B29,C30) -> Module 6Niveau 2 | E30: 13831.45 | F30: 0.2 | G30: 16597.74
A31: UO 7 | B31: Module 7 | C31: Audité | D31: Module 7Audité | E31: 3840.5 | F31: 0.2 | G31: 4608.6
A32: UO 8 | B32: Module 8 | C32: Audité | D32: Module 8Audité | E32: 2126.2 | F32: 0.2 | G32: 2551.44
A33: UO 9 | B33: Module 9 | C33: Audité | D33: Module 9Audité | E33: 9804.65 | F33: 0.2 | G33: 11765.58
E35: CENTRES NATIONAUX
A36: Unités d'œuvre | B36: Modules d'audit | C36: Niveau de profondeur de l'audit | E36: Prix forfaitaire HT | F36: TVA | G36: Prix forfaitaire TTC
A37: UO 1 | B37: Module 1 | C37: Audité | D37: =CONCATENATE(B37,C37) -> Module 1Audité | E37: 23564.3 | F37: 0.2 | G37: =E37*(1+F37) -> 28277.16
A38: UO 2.1 | B38: Module 2 | C38: Niveau 1 | D38: =CONCATENATE(B38,C38) -> Module 2Niveau 1
A39: UO 2.2 | C39: Niveau 2 | D39: =CONCATENATE(B38,C39) -> Module 2Niveau 2
A40: UO 3.1 | B40: Module 3 | C40: Niveau 1 | D40: Module 3Niveau 1 | E40: 8351 | F40: 0.2 | G40: =E40*(1+F40) -> 10021.2
A41: UO 3.2 | C41: Niveau 2 | D41: =CONCATENATE(B40,C41) -> Module 3Niveau 2 | E41: 10142.2 | F41: 0.2 | G41: 12170.64
A42: UO 4.1 | B42: Module 4 | C42: Niveau 1 | D42: Module 4Niveau 1 | E42: 9246.6 | F42: 0.2 | G42: 11095.92
A43: UO 4.2 | C43: Niveau 2 | D43: =CONCATENATE(B42,C43) -> Module 4Niveau 2 | E43: 10886.55 | F43: 0.2 | G43: 13063.86
A44: UO 5.1 | B44: Module 5 | C44: Niveau 1 | D44: Module 5Niveau 1 | E44: 7606.65 | F44: 0.2 | G44: 9127.98
A45: UO 5.2 | C45: Niveau 2 | D45: =CONCATENATE(B44,C45) -> Module 5Niveau 2 | E45: 8351 | F45: 0.2 | G45: 10021.2
A46: UO 6.1 | B46: Module 6 | C46: Niveau 1 | D46: Module 6Niveau 1 | E46: 10886.55 | F46: 0.2
A47: UO 6.2 | C47: Niveau 2 | D47: =CONCATENATE(B46,C47) -> Module 6Niveau 2 | E47: 12526.5 | F47: 0.2 | G47: 15031.8
A48: UO 7 | B48: Module 7 | C48: Audité | D48: Module 7Audité | E48: 3840.5 | F48: 0.2 | G48: 4608.6
A49: UO 8 | B49: Module 8 | C49: Audité | D49: Module 8Audité | E49: 2126.2 | F49: 0.2 | G49: 2551.44
A50: UO 9 | B50: Module 9 | C50: Audité | D50: Module 9Audité | E50: 9804.65 | F50: 0.2 | G50: 11765.58
A52: Unités d'œuvre | B52: Libellé | C52: Prix forfaitaire HT | E52: TVA | F52: Prix forfaitaire TTC
A53: UO 10 | B53: Frais de mission hors transport (avec hébergement) | C53: 100 | E53: 0.2 | F53: =C53*(1+E53) -> 120
A54: UO 11 | B54: Frais de mission hors transport (sans hébergement) | C54: 20 | E54: 0.2 | F54: =C54*(1+E54) -> 24
A55: UO 12 | B55: Frais de Transport (en Ile de France) | C55: 20 | E55: 0.2 | F55: =C55*(1+E55) -> 24
A56: UO 13 | B56: Frais de Transport (hors Ile de France) | C56: 150 | E56: 0.2 | F56: =C56*(1+E56) -> 180
